Vendor Name,Corporate Subjective Description,Invoice Payment Amount,Payment Date
11KBW Ltd (11 KBW Holding Account),Advertising,2040,30/03/2020
11KBW Ltd (11 KBW Holding Account),Advertising,1914,30/03/2020
1st Select Ltd,Home to Sch Trans - Buses,600,27/03/2020
1st Select Ltd,Home to Sch Trans - Buses,800,06/03/2020
2Funky Arts Ltd,Grants,2500,24/03/2020
2M HEATH & HOMECARE SERVICES LTD&&ISHC3873,Home Care / Domiciliary,944.03,20/03/2020
2M HEATH & HOMECARE SERVICES LTD&&ISHC3873,Home Care / Domiciliary,13723.56,20/03/2020
31ten Consulting Ltd,Design & Supervision Fees Ext,19587.66,10/03/2020
36 Group Ltd,Fees & Charges (833),960,30/03/2020
3PB Barristers,Advertising,1800,30/03/2020
4PureHeart Limited,Private Contractors,14500,27/03/2020
5ab Care Ltd,Private Contractors,4281.42,30/03/2020
A1 63 Mercia Taxi,S.E.N. Taxi Hire,1050,31/03/2020
A1 63 Mercia Taxi,S.E.N. Taxi Hire,1330,05/03/2020
A1 63 Mercia Taxi,S.E.N. Taxi Hire,1400,31/03/2020
A1 63 Mercia Taxi,S.E.N. Taxi Hire,1800,05/03/2020
A1 Comfy Car LTD,Home to Sch Trans - Buses,1178,04/03/2020
A1 Comfy Car LTD,Home to Sch Trans - Buses,1596,04/03/2020
A1 Comfy Car LTD,Home to Sch Trans - Buses,930,27/03/2020
A1 Comfy Car LTD,Home to Sch Trans - Buses,1197,27/03/2020
A1 Taxis & Private Hire,S.E.N. Taxi Hire,1185.6,03/03/2020
A1 Taxis & Private Hire,S.E.N. Taxi Hire,910.8,03/03/2020
A1 Taxis & Private Hire,S.E.N. Taxi Hire,1824,03/03/2020
A1 Taxis & Private Hire,Home to Sch Trans - Buses,912,03/03/2020
A1 Taxis & Private Hire,Recharge of Pooled Transp Cost,1386,03/03/2020
A1 Taxis & Private Hire,S.E.N. Taxi Hire,2754.24,03/03/2020
A1 Taxis & Private Hire,S.E.N. Taxi Hire,2380.8,03/03/2020
A1 Taxis & Private Hire,Home to Sch Trans - Buses,1003.2,03/03/2020
A1 Taxis & Private Hire,S.E.N. Taxi Hire,777.6,03/03/2020
A1 Taxis & Private Hire,Recharge of Pooled Transp Cost,1008,03/03/2020
A1 Taxis & Private Hire,S.E.N. Taxi Hire,1368,03/03/2020
A1 Taxis & Private Hire,S.E.N. Taxi Hire,792,27/03/2020
A1 Taxis & Private Hire,S.E.N. Taxi Hire,1152,27/03/2020
A1 Taxis & Private Hire,Home to Sch Trans - Buses,720,27/03/2020
A1 Taxis & Private Hire,Recharge of Pooled Transp Cost,1188,27/03/2020
A1 Taxis & Private Hire,S.E.N. Taxi Hire,1008,27/03/2020
A1 Taxis & Private Hire,S.E.N. Taxi Hire,2174.4,27/03/2020
A1 Taxis & Private Hire,S.E.N. Taxi Hire,1785.6,27/03/2020
A1 Taxis & Private Hire,Home to Sch Trans - Buses,792,27/03/2020
A1 Taxis & Private Hire,S.E.N. Taxi Hire,561.6,27/03/2020
REDACTED PERSONAL DATA,Home to Sch Trans - Buses,1710,05/03/2020
REDACTED PERSONAL DATA,Home to Sch Trans - Buses,1188,05/03/2020
REDACTED PERSONAL DATA,Home to Sch Trans - Buses,840,05/03/2020
REDACTED PERSONAL DATA,Home to Sch Trans - Buses,1680,05/03/2020
REDACTED PERSONAL DATA,Home to Sch Trans - Buses,1350,27/03/2020
REDACTED PERSONAL DATA,Home to Sch Trans - Buses,891,27/03/2020
REDACTED PERSONAL DATA,Home to Sch Trans - Buses,630,27/03/2020
REDACTED PERSONAL DATA,Home to Sch Trans - Buses,1260,27/03/2020
REDACTED PERSONAL DATA,Home to Sch Trans - Buses,655.2,27/03/2020
AAA Private Hire(Shephed) Ltd,Personal Accounts - Govt Depts,605.88,16/03/2020
AAA Private Hire(Shephed) Ltd,Recharge of Pooled Transp Cost,605.88,16/03/2020
AAA Private Hire(Shephed) Ltd,S.E.N. Taxi Hire,2993.76,16/03/2020
AAA Private Hire(Shephed) Ltd,Recharge of Pooled Transp Cost,848.23,16/03/2020
AAA Private Hire(Shephed) Ltd,S.E.N. Taxi Hire,2102.76,16/03/2020
AAA Private Hire(Shephed) Ltd,S.E.N. Taxi Hire,2673,16/03/2020
AAA Private Hire(Shephed) Ltd,S.E.N. Taxi Hire,1511.13,16/03/2020
AA Taxis,S.E.N. Taxi Hire,1692,04/03/2020
AA Taxis,S.E.N. Taxi Hire,1573.2,04/03/2020
AA Taxis,S.E.N. Taxi Hire,1416,27/03/2020
AA Taxis,S.E.N. Taxi Hire,1242,27/03/2020
ABBERDALE LIMITED&&SSAROE40419,Residential,4576,09/03/2020
Abbey Cars,Personal Accounts - Govt Depts,3069,19/03/2020
Abbey Cars,Recharge of Pooled Transp Cost,3069,19/03/2020
Abbey Cars,Home to Sch Trans - Buses,1039.5,19/03/2020
ABBEYFIELDS EXTRA CARE&&SSAROE52835,Residential,-2978.76,09/03/2020
ABBEYFIELDS EXTRA CARE&&SSAROE52835,Residential,2978.76,09/03/2020
ABBEYFIELDS EXTRA CARE&&SSAROE52835,Residential,-2978.76,09/03/2020
ABBEYFIELDS EXTRA CARE&&SSAROE52835,Residential,2978.76,09/03/2020
ABBEYFIELDS EXTRA CARE&&SSAROE52835,Residential,-2978.76,09/03/2020
ABBEYFIELDS EXTRA CARE&&SSAROE52835,Residential,-1219.47,09/03/2020
ABBEYFIELDS EXTRA CARE&&SSAROE52835,Residential,-1655.36,09/03/2020
ABBEYFIELDS EXTRA CARE&&SSAROE52835,Residential,-2978.76,09/03/2020
ABBEYFIELDS EXTRA CARE&&SSAROE52835,Residential,-2978.76,09/03/2020
ABBEYFIELDS EXTRA CARE&&SSAROE52835,Residential,-2978.76,09/03/2020
ABBEYFIELDS EXTRA CARE&&SSAROE52835,Residential,-2978.76,09/03/2020
ABBEYFIELDS EXTRA CARE&&SSAROE52835,Residential,1170.23,09/03/2020
ABBEYFIELDS EXTRA CARE&&SSAROE52835,Residential,-2978.76,09/03/2020
ABBEYFIELDS EXTRA CARE&&SSAROE52835,Residential,-1383,09/03/2020
ABBEYFIELDS EXTRA CARE&&SSAROE52835,Residential,2950.68,09/03/2020
ABBEYFIELDS EXTRA CARE&&SSAROE52835,Residential,6278.76,09/03/2020
ABBEYFIELDS EXTRA CARE&&SSAROE52835,Residential,-2978.76,09/03/2020
ABBEYFIELDS EXTRA CARE&&SSAROE52835,Residential,19361.94,09/03/2020
ABBEYFIELDS EXTRA CARE&&SSAROE52835,Residential,2978.76,09/03/2020
ABBEYFIELDS EXTRA CARE&&SSAROE52835,Residential,-2978.76,09/03/2020
ABBEYFIELDS EXTRA CARE&&SSAROE52835,Residential,2978.76,09/03/2020
ABBEYFIELDS EXTRA CARE&&SSAROE52835,Residential,-2978.76,09/03/2020
ABBEYFIELDS EXTRA CARE&&SSAROE52835,Residential,2978.76,09/03/2020
ABBEY HEALTHCARE (AARON COURT) LTD&&SSARO2996,Private Contractors,1157.14,09/03/2020
ABBEY HEALTHCARE (AARON COURT) LTD&&SSARO2996,Nursing,28406.01,09/03/2020
ABBEY HEALTHCARE (AARON COURT) LTD&&SSARO2996,Private Contractors,28406.01,09/03/2020
ABBEY HEALTHCARE (AARON COURT) LTD&&SSARO2996,Residential,28406.01,09/03/2020
ABBEY HEALTHCARE (AARON COURT) LTD&&SSARO2996,Residential,1239.2,09/03/2020
ABBEY HEALTHCARE (AARON COURT) LTD&&SSARO2996,Residential,1150.69,09/03/2020
ABBOTSFORD CARE LTD&&SSARO2339,Residential,17624,09/03/2020
ABC Taxis (Leicester) Ltd,Home to Sch Trans - Buses,1368,12/03/2020
ABC Taxis (Leicester) Ltd,S.E.N. Taxi Hire,926.27,18/03/2020
ABC Taxis (Leicester) Ltd,Home to Sch Trans - Buses,1080,31/03/2020
ABC Taxis (Leicester) Ltd,Recharge of Pooled Transp Cost,924,31/03/2020
ABC Taxis (Leicester) Ltd,Recharge of Pooled Transp Cost,528,31/03/2020
ABC Taxis (Leicester) Ltd,S.E.N. Taxi Hire,689.04,31/03/2020
ABC Taxis (Leicester) Ltd,S.E.N. Taxi Hire,676.8,31/03/2020
REDACTED PERSONAL DATA,S.E.N. Taxi Hire,900.9,19/03/2020
REDACTED PERSONAL DATA,S.E.N. Taxi Hire,707.85,27/03/2020
REDACTED PERSONAL DATA,S.E.N. Taxi Hire,1487.5,24/03/2020
REDACTED PERSONAL DATA,S.E.N. Taxi Hire,1275,27/03/2020
REDACTED PERSONAL DATA,S.E.N. Taxi Hire,1269.67,13/03/2020
ABM Taxis,Home to Sch Trans - Buses,600.4,04/03/2020
ABM Taxis,Home to Sch Trans - Buses,551,04/03/2020
ABSOLUTE CARE AGENCY&&ISHC2620,Home Care / Domiciliary,1096.81,20/03/2020
ABSOLUTE CARE AGENCY&&ISHC2620,Home Care / Domiciliary,30919.6,20/03/2020
ABSOLUTE HEALTHCARE LTD T/A WESTWARDS NURSERY&&EYRSEY553923,Grants,24376.93,27/03/2020
ACACIA CARE (NOTTINGHAM) LTD T/A KINGSFIELD COURT&&SSARO8540,Residential,21982.85,09/03/2020
ACACIA CARE (NOTTINGHAM) LTD T/A KINGSFIELD COURT&&SSARO8540,Residential,660,09/03/2020
ACCREDO SUPPORT AND DEVELOPMENT LTD&&CLCD3325,Day / CLC Services,7479.08,20/03/2020
Accredo Support & Development Ltd,Private Contractors,656.12,25/03/2020
Ace Cars,S.E.N. Taxi Hire,15084,19/03/2020
Ace Cars,S.E.N. Taxi Hire,3062.4,13/03/2020
Ace Cars,S.E.N. Taxi Hire,-3519.6,19/03/2020
ACHIEVE WITH US LIMITED&&CLCD3319,Day / CLC Services,23420.62,20/03/2020
ACHIEVE WITH US LIMITED&&CLCD3319,Managed/Traditional Services,23420.62,20/03/2020
Acorn Care & Education Ltd (Sales),Payment to Ext SEN Providers,26655,12/03/2020
Acorn Care & Education Ltd (Sales),Payment to Ext SEN Providers,26655,19/03/2020
Acorn Fostering Services Ltd,Other Agency & Cont Services,4730,31/03/2020
Acorn Fostering Services Ltd,Other Agency & Cont Services,2932.47,31/03/2020
Acorn Fostering Services Ltd,Other Agency & Cont Services,2932.47,31/03/2020
Acorn Fostering Services Ltd,Other Agency & Cont Services,3025.15,31/03/2020
Acorn Fostering Services Ltd,Other Agency & Cont Services,2932.47,31/03/2020
Acorn Fostering Services Ltd,Other Agency & Cont Services,2995.93,31/03/2020
Acorn Fostering Services Ltd,Other Agency & Cont Services,3421.43,31/03/2020
Acorn Fostering Services Ltd,Private Contractors,3421.43,31/03/2020
Acorn Fostering Services Ltd,Other Agency & Cont Services,4545.72,31/03/2020
Acorn Fostering Services Ltd,Private Contractors,3288.22,31/03/2020
Acorn Fostering Services Ltd,Other Agency & Cont Services,3007,31/03/2020
Acorn Fostering Services Ltd,Other Agency & Cont Services,2995.93,31/03/2020
Acorn Fostering Services Ltd,Other Agency & Cont Services,3321.43,31/03/2020
Acorn Fostering Services Ltd,Other Agency & Cont Services,3117.71,31/03/2020
ACORN LODGE&&SSARO3214,Residential,2236.72,09/03/2020
ACORN LODGE&&SSARO3214,Residential,1447.28,09/03/2020
ACORN UNDER FIVES (BIRSTALL)&&EYRS1632,Grants,548.34,27/03/2020
ACORN UNDER FIVES (BIRSTALL)&&EYRS1632,Grants,30400.42,27/03/2020
Action for Children Services Ltd,Private Contractors,44476.99,20/03/2020
Action for Children Services Ltd,Private Contractors,44476.99,03/03/2020
Action for Children Services Ltd,Private Contractors,41090.92,03/03/2020
Action for Children Services Ltd,Private Contractors,42497.32,27/03/2020
ADA HOMECARE LTD(&&ISHC5852),Home Care / Domiciliary,3892,20/03/2020
REDACTED PERSONAL DATA,Nursing,730,27/03/2020
REDACTED PERSONAL DATA,Grants,500,17/03/2020
REDACTED PERSONAL DATA,Supported Living,120273.31,09/03/2020
REDACTED PERSONAL DATA,Supported Living,85803.67,16/03/2020
REDACTED PERSONAL DATA,Supported Living,46307.14,23/03/2020
REDACTED PERSONAL DATA,Supported Living,13153.92,31/03/2020
REDACTED PERSONAL DATA,Supported Living,15072.22,02/03/2020
REDACTED PERSONAL DATA,Supported Living,997.26,09/03/2020
REDACTED PERSONAL DATA,Supported Living,46095.03,16/03/2020
REDACTED PERSONAL DATA,Supported Living,37322.81,23/03/2020
REDACTED PERSONAL DATA,Supported Living,1110.94,31/03/2020
REDACTED PERSONAL DATA,Supported Living,581.84,02/03/2020
REDACTED PERSONAL DATA,Supported Living,199671.31,16/03/2020
REDACTED PERSONAL DATA,Supported Living,50740.19,23/03/2020
REDACTED PERSONAL DATA,Supported Living,11655.41,31/03/2020
REDACTED PERSONAL DATA,Supported Living,11713.1,02/03/2020
REDACTED PERSONAL DATA,Supported Living,1369.66,09/03/2020
REDACTED PERSONAL DATA,Supported Living,48853.13,16/03/2020
REDACTED PERSONAL DATA,Supported Living,39232.48,23/03/2020
REDACTED PERSONAL DATA,Supported Living,4089.6,31/03/2020
REDACTED PERSONAL DATA,Supported Living,731.26,02/03/2020
REDACTED PERSONAL DATA,Supported Living,200672.21,23/03/2020
REDACTED PERSONAL DATA,Supported Living,15552.11,31/03/2020
REDACTED PERSONAL DATA,Supported Living,17705.71,02/03/2020
REDACTED PERSONAL DATA,Supported Living,3743.94,09/03/2020
REDACTED PERSONAL DATA,Supported Living,48323.21,16/03/2020
REDACTED PERSONAL DATA,Supported Living,37005.35,23/03/2020
REDACTED PERSONAL DATA,Supported Living,4210.48,31/03/2020
REDACTED PERSONAL DATA,Supported Living,953.19,09/03/2020
REDACTED PERSONAL DATA,Supported Living,730.53,23/03/2020
REDACTED PERSONAL DATA,Supported Living,196887.66,31/03/2020
REDACTED PERSONAL DATA,Supported Living,182198.62,02/03/2020
REDACTED PERSONAL DATA,Supported Living,17631.23,09/03/2020
REDACTED PERSONAL DATA,Supported Living,45767.73,16/03/2020
REDACTED PERSONAL DATA,Supported Living,41617.91,23/03/2020
REDACTED PERSONAL DATA,Supported Living,5528.79,31/03/2020
REDACTED PERSONAL DATA,Supported Living,37497.27,02/03/2020
REDACTED PERSONAL DATA,Supported Living,8538.9,09/03/2020
REDACTED PERSONAL DATA,Supported Living,7979.32,16/03/2020
REDACTED PERSONAL DATA,Supported Living,35351.09,23/03/2020
REDACTED PERSONAL DATA,Managed/Traditional Services,3356.76,31/03/2020
REDACTED PERSONAL DATA,Supported Living,3356.76,31/03/2020
REDACTED PERSONAL DATA,Grants,4428,27/03/2020
ADEN HOUSE LTD&&SSARO2794,Residential,2227.08,09/03/2020
ADJUVO CARE & SUPPORT&&SSARO2208,Residential,9221.72,09/03/2020
ADJUVO CARE & SUPPORT&&SSARO2208,Residential,8848,09/03/2020
Advance Housing & Support Ltd,Cash Personal Budgets,2838.78,24/03/2020
ADVANCE HOUSING & SUPPORT LTD T/A ADVANCE&&SUPL5271,Supported Living,2715.26,20/03/2020
REDACTED PERSONAL DATA,R&M of Vehicles-Non Contract,884.54,06/03/2020
REDACTED PERSONAL DATA,R&M of Vehicles-Non Contract,2194.57,20/03/2020
AECOM Infrastructure & Environment UK Ltd,Design & Supervision Fees Ext,11577.6,04/03/2020
AFFINITY TRUST&&SUPL4188,Supported Living,1607.47,20/03/2020
AFFINITY TRUST&&SUPL4188,Supported Living,719.7,20/03/2020
AFFINITY TRUST&&SUPL4188,Supported Living,-567.22,20/03/2020
AFFINITY TRUST&&SUPL4188,Supported Living,7509.68,20/03/2020
AFFINITY TRUST&&SUPL4188,Supported Living,2022.4,20/03/2020
AFFINITY TRUST&&SUPL4188,Supported Living,1503.3,20/03/2020
AFFINITY TRUST&&SUPL4188,Supported Living,651.67,20/03/2020
AFFINITY TRUST&&SUPL4188,Supported Living,906.6,20/03/2020
AFFINITY TRUST&&SUPL4188,Supported Living,8998.87,20/03/2020
AFFINITY TRUST&&SUPL4188,Supported Living,3713.15,20/03/2020
AFFINITY TRUST&&SUPL4188,Supported Living,1052.62,20/03/2020
AFFINITY TRUST&&SUPL4188,Supported Living,5778.99,20/03/2020
AFFINITY TRUST&&SUPL4188,Supported Living,-1816.92,20/03/2020
AFFINITY TRUST&&SUPL4188,Supported Living,4231.98,20/03/2020
AFFINITY TRUST&&SUPL4188,Managed/Traditional Services,1728.27,20/03/2020
AFFINITY TRUST&&SUPL4188,Supported Living,1728.27,20/03/2020
AFFINITY TRUST&&SUPL4188,Supported Living,906.85,20/03/2020
Age UK Leicester Shire and Rutland,Grants,2500,25/03/2020
AGE UK LEICESTERSHIRE AND RUTLAND&&CLCD3314,Day / CLC Services,522.9,20/03/2020
AGE UK LEICESTERSHIRE AND RUTLAND&&CLCD3314,Day / CLC Services,27410.8,20/03/2020
Age Uk Leicester Shire & Rutland Home Help Ltd,Private Contractors,2936.75,18/03/2020
Age Uk Leicester Shire & Rutland Home Help Ltd,Aids & Adaptations,-2156.4,13/03/2020
Age Uk Leicester Shire & Rutland Home Help Ltd,Aids & Adaptations,-1936.69,02/03/2020
Age UK Oadby & Wigston,Deferred Charges (Grants & Advances),2366,27/03/2020
AHAVAH HEALTHCARELTD&&SSARO1638,Residential,1362.04,09/03/2020
AHAVAH HEALTHCARELTD&&SSARO1638,Residential,-775,09/03/2020
AHAVAH HEALTHCARELTD&&SSARO1638,Residential,15422.96,09/03/2020
Airports 4 U,S.E.N. Taxi Hire,2250,27/03/2020
REDACTED PERSONAL DATA,Residential,640.96,09/03/2020
REDACTED PERSONAL DATA,Residential,4788.72,09/03/2020
REDACTED PERSONAL DATA,Residential,1602.4,09/03/2020
ALA CARE LTD&&SSAROE1044,Residential,-700,09/03/2020
ALA CARE LTD&&SSAROE1044,Residential,16696,09/03/2020
ALA CARE LTD&&SSAROE1044,Residential,700,09/03/2020
ALA CARE LTD&&SSAROE182,Residential,1488.86,09/03/2020
ALA CARE LTD&&SSAROE182,Residential,1737,09/03/2020
ALA CARE LTD&&SSAROE182,Residential,51552.28,09/03/2020
ALA CARE LTD&&SSAROE182,Residential,7236,09/03/2020
ALA CARE LTD&&SSAROE182,Residential,827.14,09/03/2020
ALA CARE LTD&&SSAROE40269,Residential,-1654.29,09/03/2020
ALA CARE LTD&&SSAROE40269,Residential,-1665,09/03/2020
ALA CARE LTD&&SSAROE40269,Residential,1748.57,09/03/2020
ALA CARE LTD&&SSAROE40269,Residential,2220,09/03/2020
ALA CARE LTD&&SSAROE40269,Residential,24973.94,09/03/2020
ALA CARE LTD&&SSAROE40269,Residential,-2220,09/03/2020
ALA CARE LTD&&SSAROE40269,Residential,1771.43,09/03/2020
REDACTED PERSONAL DATA,Other Transfer Payments,500,27/03/2020
Alarm,Subscriptions,698.4,24/03/2020
ALBERT VILLAGE PRIMARY SCHOOL NURSERY&&EYRS1698,Grants,28138.46,27/03/2020
Aldi Stores Ltd,Personal Accounts - Other,69125.12,17/03/2020
ALEXANDRA CARE (LEICESTER) LTD DANE VIEW CARE HOME&&SSARO5677,Private Contractors,2600,09/03/2020
ALEXANDRA HOUSE&&SSAROE1111,Residential,6600,09/03/2020
REDACTED PERSONAL DATA,Provisions Expenditure,1200,27/03/2020
ALICE HOUSE (FLOLLIE INVESTMENTS LIMITED)&&SSARO5641,Residential,2320,09/03/2020
REDACTED PERSONAL DATA,S.E.N. Taxi Hire,705.37,18/03/2020
REDACTED PERSONAL DATA,Grants,1353,27/03/2020
REDACTED PERSONAL DATA,Grants,590.4,27/03/2020
ALLAG CARE LIMITED  GWENDOLEN&&SSARO3351,Residential,5522.4,09/03/2020
ALLAG CARE LTD T/A SYCAMORE COTTAGE&&SSAROE44469,Residential,-1994.99,09/03/2020
ALLAG CARE LTD T/A SYCAMORE COTTAGE&&SSAROE44469,Residential,5513.58,09/03/2020
ALLAG CARE LTD T/A SYCAMORE COTTAGE&&SSAROE44469,Residential,-2220,09/03/2020
ALLAG CARE LTD T/A SYCAMORE COTTAGE&&SSAROE44469,Residential,2316,09/03/2020
ALLAG CARE LTD T/A SYCAMORE COTTAGE&&SSAROE44469,Residential,-2220,09/03/2020
ALLAG CARE LTD T/A SYCAMORE COTTAGE&&SSAROE44469,Residential,2316,09/03/2020
ALLAG CARE LTD T/A SYCAMORE COTTAGE&&SSAROE44469,Residential,-2220,09/03/2020
ALLAG CARE LTD T/A SYCAMORE COTTAGE&&SSAROE44469,Residential,2316,09/03/2020
ALLAG CARE LTD T/A SYCAMORE COTTAGE&&SSAROE44469,Residential,-3330,09/03/2020
ALLAG CARE LTD T/A SYCAMORE COTTAGE&&SSAROE44469,Residential,-2220,09/03/2020
ALLAG CARE LTD T/A SYCAMORE COTTAGE&&SSAROE44469,Residential,12738,09/03/2020
ALLAG CARE LTD T/A SYCAMORE COTTAGE&&SSAROE44469,Residential,-1607.15,09/03/2020
ALLAG CARE LTD T/A SYCAMORE COTTAGE&&SSAROE44469,Residential,1607.14,09/03/2020
ALLAG CARE LTD T/A SYCAMORE COTTAGE&&SSAROE44469,Residential,-1665,09/03/2020
ALLAG CARE LTD T/A SYCAMORE COTTAGE&&SSAROE44469,Residential,2895,09/03/2020
ALLAG CARE LTD T/A SYCAMORE COTTAGE&&SSAROE44469,Residential,-3994.8,09/03/2020
ALLAG CARE LTD T/A SYCAMORE COTTAGE&&SSAROE44469,Residential,7986.6,09/03/2020
ALLAG CARE LTD T/A SYCAMORE COTTAGE&&SSAROE44469,Residential,-4744.8,09/03/2020
ALLAG CARE LTD T/A SYCAMORE COTTAGE&&SSAROE44469,Residential,-4787.66,09/03/2020
ALLAG CARE LTD T/A SYCAMORE COTTAGE&&SSAROE44469,Residential,-6214.8,09/03/2020
ALLAG CARE LTD T/A SYCAMORE COTTAGE&&SSAROE44469,Residential,2770.72,09/03/2020
ALLAG CARE LTD T/A SYCAMORE COTTAGE&&SSAROE44469,Residential,8800.8,09/03/2020
ALLAG CARE LTD T/A SYCAMORE COTTAGE&&SSAROE44469,Residential,-857.15,09/03/2020
ALLAG CARE LTD T/A SYCAMORE COTTAGE&&SSAROE44469,Residential,2481.42,09/03/2020
ALLAG CARE LTD T/A SYCAMORE COTTAGE&&SSAROE44469,Residential,-2220,09/03/2020
ALLAG CARE LTD T/A SYCAMORE COTTAGE&&SSAROE44469,Residential,2316,09/03/2020
ALLAG CARE LTD T/A SYCAMORE COTTAGE&&SSAROE44469,Residential,-2220,09/03/2020
ALLAG CARE LTD T/A SYCAMORE COTTAGE&&SSAROE44469,Residential,2316,09/03/2020
ALLAG CARE LTD T/A SYCAMORE COTTAGE&&SSAROE44469,Residential,-2220,09/03/2020
ALLAG CARE LTD T/A SYCAMORE COTTAGE&&SSAROE44469,Residential,2316,09/03/2020
ALLCONTRAST LTD & GIVECARE LTD&&SSAROE2374,Private Contractors,-1179.28,09/03/2020
ALLCONTRAST LTD & GIVECARE LTD&&SSAROE2374,Private Contractors,-1173.05,09/03/2020
ALLCONTRAST LTD & GIVECARE LTD&&SSAROE2374,Private Contractors,25825.68,09/03/2020
ALLCONTRAST LTD & GIVECARE LTD&&SSAROE2374,Residential,25825.68,09/03/2020
ALLCONTRAST LTD & GIVECARE LTD&&SSAROE2374,Residential,9100,09/03/2020
All Saints CE Primary School Sapcote (Inspiring Primaries Academy Trust),Payment to Ext SEN Providers,2536,31/03/2020
All Saints CE Primary School Sapcote (Inspiring Primaries Academy Trust),Payment to Ext SEN Providers,-2236,27/03/2020
All Saints CE Primary School Sapcote (Inspiring Primaries Academy Trust),Payment to Ext SEN Providers,2536,27/03/2020
ALLSORTS NURSERY SCHOOL&&EYRS1711,Grants,-531.48,27/03/2020
ALLSORTS NURSERY SCHOOL&&EYRS1711,Grants,1109.25,27/03/2020
ALLSORTS NURSERY SCHOOL&&EYRS1711,Grants,-11070.89,27/03/2020
ALLSORTS NURSERY SCHOOL&&EYRS1711,Grants,6410.68,27/03/2020
ALLSORTS NURSERY SCHOOL&&EYRS1711,Grants,3211.06,27/03/2020
ALLSORTS NURSERY SCHOOL&&EYRS1711,Grants,653.28,27/03/2020
ALLSORTS NURSERY SCHOOL&&EYRS1711,Grants,11925.06,27/03/2020
ALPHA CARE MANAGEMENT SERVICES NO 2 LTD&&SSARO1217,Private Contractors,8758.04,09/03/2020
ALPHA CARE MANAGEMENT SERVICES NO 2 LTD&&SSARO1217,Residential,8758.04,09/03/2020
REDACTED PERSONAL DATA,Grants,13456.8,27/03/2020
REDACTED PERSONAL DATA,Grants,4034.4,27/03/2020
REDACTED PERSONAL DATA,Grants,2236.65,24/03/2020
REDACTED PERSONAL DATA,Grants,-2236.65,24/03/2020
REDACTED PERSONAL DATA,Grants,984,27/03/2020
REDACTED PERSONAL DATA,S.E.N. Taxi Hire,1050,11/03/2020
Amberon Ltd,Reserve Debtors,1650,18/03/2020
AMBERWOOD CARE HOME LTD&&SSAROE40398,Residential,-19664,09/03/2020
AMBERWOOD CARE HOME LTD&&SSAROE40398,Residential,19664,09/03/2020
AMBERWOOD CARE HOME LTD&&SSAROE40398,Residential,-19664,09/03/2020
AMBERWOOD CARE HOME LTD&&SSAROE40398,Residential,19664,09/03/2020
AMBERWOOD CARE HOME LTD&&SSAROE40398,Residential,-19664,09/03/2020
AMBERWOOD CARE HOME LTD&&SSAROE40398,Residential,19664,09/03/2020
AMBERWOOD CARE HOME LTD&&SSAROE40398,Residential,-8312,09/03/2020
AMBERWOOD CARE HOME LTD&&SSAROE40398,Residential,-19664,09/03/2020
AMBERWOOD CARE HOME LTD&&SSAROE40398,Residential,105298.58,09/03/2020
AMBERWOOD CARE HOME LTD&&SSAROE40398,Residential,-19664,09/03/2020
AMBERWOOD CARE HOME LTD&&SSAROE40398,Residential,-19664,09/03/2020
AMBERWOOD CARE HOME LTD&&SSAROE40398,Residential,-19664,09/03/2020
AMBERWOOD CARE HOME LTD&&SSAROE40398,Residential,-18451.15,09/03/2020
AMBERWOOD CARE HOME LTD&&SSAROE40398,Residential,25704,09/03/2020
AMBERWOOD CARE HOME LTD&&SSAROE40398,Residential,-19664,09/03/2020
AMBERWOOD CARE HOME LTD&&SSAROE40398,Residential,19664,09/03/2020
AMBERWOOD CARE HOME LTD&&SSAROE40398,Residential,-19664,09/03/2020
AMBERWOOD CARE HOME LTD&&SSAROE40398,Residential,19664,09/03/2020
AMBERWOOD CARE HOME LTD&&SSAROE40398,Residential,-19664,09/03/2020
AMBERWOOD CARE HOME LTD&&SSAROE40398,Residential,19664,09/03/2020
AMICARE DOMICILIRY CARE SERVICES LTD&&ISHC2524,Home Care / Domiciliary,607.27,20/03/2020
AMICARE DOMICILIRY CARE SERVICES LTD&&ISHC2524,Home Care / Domiciliary,615.25,20/03/2020
AMICARE DOMICILIRY CARE SERVICES LTD&&ISHC2524,Home Care / Domiciliary,1653.18,20/03/2020
AMICARE DOMICILIRY CARE SERVICES LTD&&ISHC2524,Home Care / Domiciliary,20323.25,20/03/2020
REDACTED PERSONAL DATA,Grants,1390.35,24/03/2020
REDACTED PERSONAL DATA,Grants,-1390.35,24/03/2020
AMJ Support Services,Other Transfer Payments,12400.65,11/03/2020
AMS CARE SERVICE LTD&&SSARO2055 T/A APRIL COTTAGE,Residential,11580,09/03/2020
Amvale Ltd,Recharge of Pooled Transp Cost,3420,06/03/2020
Amvale Ltd,Recharge of Pooled Transp Cost,2700,27/03/2020
REDACTED PERSONAL DATA,Grants,6679.2,27/03/2020
REDACTED PERSONAL DATA,Grants,500,17/03/2020
REDACTED PERSONAL DATA,Grants,500,20/03/2020
REDACTED PERSONAL DATA,Grants,900,27/03/2020
REDACTED PERSONAL DATA,Grants,1088.1,27/03/2020
REDACTED PERSONAL DATA,Grants,-1088.1,27/03/2020
REDACTED PERSONAL DATA,Grants,1672.8,27/03/2020
Anchor Foster Care Services Ltd,Other Agency & Cont Services,3690.07,31/03/2020
Anchor Foster Care Services Ltd,Private Contractors,3727.31,31/03/2020
REDACTED PERSONAL DATA,Grants,7042.98,27/03/2020
REDACTED PERSONAL DATA,Grants,500,17/03/2020
REDACTED PERSONAL DATA,Materials,1043.86,04/03/2020
REDACTED PERSONAL DATA,Suspense,1400,27/03/2020
REDACTED PERSONAL DATA,Suspense,4420,27/03/2020
REDACTED PERSONAL DATA,Suspense,3372,27/03/2020
ANEW Young People Services Ltd,Other Agency & Cont Services,2289.22,24/03/2020
ANEW Young People Services Ltd,Private Contractors,2613.22,24/03/2020
ANEW Young People Services Ltd,Private Contractors,2613.22,10/03/2020
ANEW Young People Services Ltd,Private Contractors,1698.72,10/03/2020
ANEW Young People Services Ltd,Private Contractors,2613.22,24/03/2020
REDACTED PERSONAL DATA,Grants,-1808.1,27/03/2020
REDACTED PERSONAL DATA,Grants,1728.87,27/03/2020
REDACTED PERSONAL DATA,Grants,1918.8,27/03/2020
REDACTED PERSONAL DATA,Grants,2583,27/03/2020
REDACTED PERSONAL DATA,Grants,3399.6,27/03/2020
REDACTED PERSONAL DATA,Grants,-604.5,27/03/2020
REDACTED PERSONAL DATA,Grants,9249.6,27/03/2020
Anglia Fostering Agency Ltd,Other Agency & Cont Services,3478.2,31/03/2020
REDACTED PERSONAL DATA,Other Agency & Cont Services,2460,16/03/2020
REDACTED PERSONAL DATA,Other Agency & Cont Services,1065,25/03/2020
REDACTED PERSONAL DATA,Other Agency & Cont Services,1900,19/03/2020
REDACTED PERSONAL DATA,Grants,2214,27/03/2020
REDACTED PERSONAL DATA,Other Agency & Cont Services,2491.87,27/03/2020
REDACTED PERSONAL DATA,Other Agency & Cont Services,1011.25,27/03/2020
REDACTED PERSONAL DATA,Other Agency & Cont Services,1011.25,27/03/2020
REDACTED PERSONAL DATA,Other Agency & Cont Services,2437.63,27/03/2020
REDACTED PERSONAL DATA,Other Agency & Cont Services,1290,27/03/2020
REDACTED PERSONAL DATA,Residential,1134,27/03/2020
REDACTED PERSONAL DATA,Grants,2122.48,27/03/2020
REDACTED PERSONAL DATA,Grants,1180.8,27/03/2020
REDACTED PERSONAL DATA,Grants,1180.8,27/03/2020
ANSTEY EARLY LEARNING PRE SCHOOL LTD&&EYRS1737,Grants,2463.63,27/03/2020
ANSTEY EARLY LEARNING PRE SCHOOL LTD&&EYRS1737,Grants,45655.19,27/03/2020
Anstey Martin High Academy,Payment to Ext SEN Providers,1883,05/03/2020
Anstey Martin High Academy,Payment to Ext SEN Providers,3027,27/03/2020
Anstey Martin High Academy,Payment to Ext SEN Providers,3027,31/03/2020
REDACTED PERSONAL DATA,Administration Expenses,3000,11/03/2020
REDACTED PERSONAL DATA,Advertising,3600,30/03/2020
REDACTED PERSONAL DATA,Recharge of Pooled Transp Cost,792,11/03/2020
REDACTED PERSONAL DATA,S.E.N. Taxi Hire,1425,27/03/2020
REDACTED PERSONAL DATA,Recharge of Pooled Transp Cost,704,27/03/2020
REDACTED PERSONAL DATA,S.E.N. Taxi Hire,1805,11/03/2020
Aon UK Ltd,Premises Insurance,16285.56,10/03/2020
Aon UK Ltd,Miscellaneous Insurance,3663.16,27/03/2020
Aon UK Ltd,Miscellaneous Insurance,546.3,27/03/2020
APB,Design & Supervision Fees Ext,3095.95,24/03/2020
APPLE HOUSE LEICESTER LTD&&SSAROE185,Residential,1034.14,09/03/2020
APPLE HOUSE LEICESTER LTD&&SSAROE185,Residential,-1932,09/03/2020
APPLE HOUSE LEICESTER LTD&&SSAROE185,Residential,2316,09/03/2020
APPLE HOUSE LEICESTER LTD&&SSAROE185,Residential,-1932,09/03/2020
APPLE HOUSE LEICESTER LTD&&SSAROE185,Residential,2316,09/03/2020
APPLE HOUSE LEICESTER LTD&&SSAROE185,Residential,2316,09/03/2020
APPLE HOUSE LEICESTER LTD&&SSAROE185,Residential,-1932,09/03/2020
APPLE HOUSE LEICESTER LTD&&SSAROE185,Residential,2316,09/03/2020
APPLE HOUSE LEICESTER LTD&&SSAROE185,Residential,-1898,09/03/2020
APPLE HOUSE LEICESTER LTD&&SSAROE185,Residential,-1932,09/03/2020
APPLE HOUSE LEICESTER LTD&&SSAROE185,Residential,10422,09/03/2020
APPLE HOUSE LEICESTER LTD&&SSAROE185,Residential,-3168,09/03/2020
APPLE HOUSE LEICESTER LTD&&SSAROE185,Residential,6336,09/03/2020
APPLE HOUSE LEICESTER LTD&&SSAROE185,Residential,-1932,09/03/2020
APPLE HOUSE LEICESTER LTD&&SSAROE185,Residential,-2691,09/03/2020
APPLE HOUSE LEICESTER LTD&&SSAROE185,Residential,-1932,09/03/2020
APPLE HOUSE LEICESTER LTD&&SSAROE185,Residential,1557.86,09/03/2020
APPLE HOUSE LEICESTER LTD&&SSAROE185,Residential,-4071,09/03/2020
APPLE HOUSE LEICESTER LTD&&SSAROE185,Residential,7268.28,09/03/2020
APPLE HOUSE LEICESTER LTD&&SSAROE185,Residential,-1932,09/03/2020
APPLE HOUSE LEICESTER LTD&&SSAROE185,Residential,2316,09/03/2020
APPLE HOUSE LEICESTER LTD&&SSAROE185,Residential,-1932,09/03/2020
APPLE HOUSE LEICESTER LTD&&SSAROE185,Residential,2316,09/03/2020
APPLE HOUSE LEICESTER LTD&&SSAROE185,Residential,-2139,09/03/2020
APPLE HOUSE LEICESTER LTD&&SSAROE185,Residential,-532.57,09/03/2020
APPLE HOUSE LEICESTER LTD&&SSAROE185,Residential,1819.71,09/03/2020
APPLE HOUSE LEICESTER LTD&&SSAROE185,Residential,-1932,09/03/2020
APPLE HOUSE LEICESTER LTD&&SSAROE185,Residential,2316,09/03/2020
APPLE TREE DAY NURSERY&&EYRS1507,Grants,517.65,24/03/2020
APPLE TREE DAY NURSERY&&EYRS1507,Grants,33166.86,24/03/2020
ARK CARE LODGE&&SSAROE699,Residential,8580.28,09/03/2020
REDACTED PERSONAL DATA,S.E.N. Taxi Hire,1514.7,16/03/2020
Arriva Midlands Ltd,Minimum Cost Contracts,189463.5,03/03/2020
Arriva Midlands Ltd,Minimum Cost Contracts,347193.1,03/03/2020
Arriva Midlands Ltd,Minimum Cost Contracts,803.13,03/03/2020
Art Psychotherapy,Other Agency & Cont Services,-900,05/03/2020
Art Psychotherapy,Other Agency & Cont Services,900,05/03/2020
Arval UK Ltd,Operational Leasing,8078.08,27/03/2020
Asfordby Captains Close Primary School Academy T/A Discovery Schools Academies Trust,Payment to Ext SEN Providers,5474,31/03/2020
Asfordby Captains Close Primary School Academy T/A Discovery Schools Academies Trust,Payment to Ext SEN Providers,5474,27/03/2020
Asfordby Captains Close Primary School Academy T/A Discovery Schools Academies Trust,Payment to Ext SEN Providers,1503,31/03/2020
Asfordby Captains Close Primary School Academy T/A Discovery Schools Academies Trust,Payment to Ext SEN Providers,1503,27/03/2020
Asfordby Captains Close Primary School Academy T/A Discovery Schools Academies Trust,Payment to Ext SEN Providers,2974,31/03/2020
Asfordby Captains Close Primary School Academy T/A Discovery Schools Academies Trust,Payment to Ext SEN Providers,2974,27/03/2020
Asfordby Hill Primary School Academy,Payment to Ext SEN Providers,2335,31/03/2020
Asfordby Hill Primary School Academy,Payment to Ext SEN Providers,2335,27/03/2020
ASFORDBY PRE SCHOOL&&EYRS1374,Grants,702.18,27/03/2020
ASFORDBY PRE SCHOOL&&EYRS1374,Grants,24699.6,27/03/2020
ASHBY COURT NURSING HOME&&SSAROE40195,Private Contractors,-20820.56,09/03/2020
ASHBY COURT NURSING HOME&&SSAROE40195,Residential,-20820.56,09/03/2020
ASHBY COURT NURSING HOME&&SSAROE40195,Residential,22508.76,09/03/2020
ASHBY COURT NURSING HOME&&SSAROE40195,Private Contractors,-20820.56,09/03/2020
ASHBY COURT NURSING HOME&&SSAROE40195,Residential,-20820.56,09/03/2020
ASHBY COURT NURSING HOME&&SSAROE40195,Residential,22508.76,09/03/2020
ASHBY COURT NURSING HOME&&SSAROE40195,Private Contractors,-20820.56,09/03/2020
ASHBY COURT NURSING HOME&&SSAROE40195,Residential,-20820.56,09/03/2020
ASHBY COURT NURSING HOME&&SSAROE40195,Private Contractors,-10410.28,09/03/2020
ASHBY COURT NURSING HOME&&SSAROE40195,Residential,-10410.28,09/03/2020
ASHBY COURT NURSING HOME&&SSAROE40195,Private Contractors,-20820.56,09/03/2020
ASHBY COURT NURSING HOME&&SSAROE40195,Residential,-20820.56,09/03/2020
ASHBY COURT NURSING HOME&&SSAROE40195,Private Contractors,-20820.56,09/03/2020
ASHBY COURT NURSING HOME&&SSAROE40195,Residential,-20820.56,09/03/2020
ASHBY COURT NURSING HOME&&SSAROE40195,Private Contractors,-20820.56,09/03/2020
ASHBY COURT NURSING HOME&&SSAROE40195,Residential,-20820.56,09/03/2020
ASHBY COURT NURSING HOME&&SSAROE40195,Private Contractors,-20820.56,09/03/2020
ASHBY COURT NURSING HOME&&SSAROE40195,Residential,-20820.56,09/03/2020
ASHBY COURT NURSING HOME&&SSAROE40195,Private Contractors,-20820.56,09/03/2020
ASHBY COURT NURSING HOME&&SSAROE40195,Residential,-20820.56,09/03/2020
ASHBY COURT NURSING HOME&&SSAROE40195,Private Contractors,5262.8,09/03/2020
ASHBY COURT NURSING HOME&&SSAROE40195,Residential,28908.76,09/03/2020
ASHBY COURT NURSING HOME&&SSAROE40195,Private Contractors,-20820.56,09/03/2020
ASHBY COURT NURSING HOME&&SSAROE40195,Residential,-20820.56,09/03/2020
ASHBY COURT NURSING HOME&&SSAROE40195,Residential,25708.76,09/03/2020
ASHBY COURT NURSING HOME&&SSAROE40195,Private Contractors,-20820.56,09/03/2020
ASHBY COURT NURSING HOME&&SSAROE40195,Residential,-20820.56,09/03/2020
ASHBY COURT NURSING HOME&&SSAROE40195,Residential,212924.46,09/03/2020
ASHBY COURT NURSING HOME&&SSAROE40195,Private Contractors,-20820.56,09/03/2020
ASHBY COURT NURSING HOME&&SSAROE40195,Residential,-20820.56,09/03/2020
ASHBY DAY NURSERY LTD&&EYRS1376,Grants,1437.7,27/03/2020
ASHBY DAY NURSERY LTD&&EYRS1376,Grants,34571.68,27/03/2020
Ashby Hill Top Primary School Academy,Payment to Ext SEN Providers,2169,31/03/2020
Ashby Hill Top Primary School Academy,Payment to Ext SEN Providers,2169,27/03/2020
ASHBY & LEIRE PRESCHOOL&&EYRSEY557582,Grants,20644.4,27/03/2020
Ashby School Academy,Payment to Ext SEN Providers,6825,05/03/2020
Ashby School Academy,Payment to Ext SEN Providers,7538,27/03/2020
Ashby School Academy,Payment to Ext SEN Providers,7538,31/03/2020
Ashby Willesley Primary School Academy,Payment to Ext SEN Providers,3417,31/03/2020
Ashby Willesley Primary School Academy,Payment to Ext SEN Providers,3417,27/03/2020
REDACTED PERSONAL DATA,S.E.N. Taxi Hire,1164.6,27/03/2020
REDACTED PERSONAL DATA,S.E.N. Taxi Hire,1289.6,27/03/2020
REDACTED PERSONAL DATA,S.E.N. Taxi Hire,1768.5,27/03/2020
ASHLEIGH NURSING HOME&&SSAROE40196,Private Contractors,4320,09/03/2020
ASHTON LODGE&&SSAROE40467,Residential,5921.6,09/03/2020
ASH TREE&&SSAROE424,Residential,-18769.8,09/03/2020
ASH TREE&&SSAROE424,Residential,-18769.8,09/03/2020
ASH TREE&&SSAROE424,Residential,-18769.8,09/03/2020
ASH TREE&&SSAROE424,Residential,-9384.9,09/03/2020
ASH TREE&&SSAROE424,Residential,-18769.8,09/03/2020
ASH TREE&&SSAROE424,Residential,-18769.8,09/03/2020
ASH TREE&&SSAROE424,Residential,-18769.8,09/03/2020
ASH TREE&&SSAROE424,Residential,-18769.8,09/03/2020
ASH TREE&&SSAROE424,Residential,-18769.8,09/03/2020
ASH TREE&&SSAROE424,Residential,234622.5,09/03/2020
ASH TREE&&SSAROE424,Residential,-18769.8,09/03/2020
ASH TREE&&SSAROE424,Residential,-18769.8,09/03/2020
ASH TREE&&SSAROE424,Residential,-18769.8,09/03/2020
Askews & Holts Library Services Ltd,Books,552.62,13/03/2020
Askews & Holts Library Services Ltd,Books,552.57,20/03/2020
Askews & Holts Library Services Ltd,Books,512.25,20/03/2020
Askews & Holts Library Services Ltd,Books,539.83,27/03/2020
ASPIRE HEALTH & CARE LTD CHILLWEL HOUSE&&SSARO3332,Residential,1251.6,09/03/2020
ASPIRE HEALTH & CARE LTD T/AS BODEN HOUSE&&SSARO3393,Residential,2880.14,09/03/2020
ATHENA CARE LTD&&ISHCHC673,Home Care / Domiciliary,4341.12,20/03/2020
REDACTED PERSONAL DATA,S.E.N. Taxi Hire,1428,27/03/2020
REDACTED PERSONAL DATA,S.E.N. Taxi Hire,945,27/03/2020
REDACTED PERSONAL DATA,Recharge of Pooled Transp Cost,741,27/03/2020
REDACTED PERSONAL DATA,Recharge of Pooled Transp Cost,3578,05/03/2020
REDACTED PERSONAL DATA,S.E.N. Taxi Hire,3578,05/03/2020
A Time to Talk,Other Expenditure,862.5,20/03/2020
AUB (Scotland) Ltd,Other Agency & Cont Services,1100,30/03/2020
Ausden Clark Ltd,Home to Sch Trans - Buses,2775,27/03/2020
Ausden Clark Ltd,Home to Sch Trans - Buses,2700,27/03/2020
Ausden Clark Ltd,Home to Sch Trans - Buses,2700,27/03/2020
Ausden Clark Ltd,Home to Sch Trans - Buses,2700,27/03/2020
Ausden Clark Ltd,Home to Sch Trans - Buses,2625,27/03/2020
Ausden Clark Ltd,Home to Sch Trans - Buses,2271.6,27/03/2020
Ausden Clark Ltd,Home to Sch Trans - Buses,2275.8,27/03/2020
Ausden Clark Ltd,Home to Sch Trans - Buses,2429.55,27/03/2020
Ausden Clark Ltd,Home to Sch Trans - Buses,2700,27/03/2020
Ausden Clark Ltd,Home to Sch Trans - Buses,2721.45,27/03/2020
Ausden Clark Ltd,Home to Sch Trans - Buses,2700,27/03/2020
Ausden Clark Ltd,Home to Sch Trans - Buses,3000,27/03/2020
Ausden Clark Ltd,Home to Sch Trans - Buses,3300,27/03/2020
Ausden Clark Ltd,Home to Sch Trans - Buses,3000,27/03/2020
AUTISM CARE (UK) LTD&&SSAROE1335,Residential,-2040.99,09/03/2020
AUTISM CARE (UK) LTD&&SSAROE1335,Residential,2012.57,09/03/2020
AUTISM CARE (UK) LTD&&SSAROE1335,Residential,9392,09/03/2020
Autism East Midlands,Residential,2885.97,13/03/2020
Autism East Midlands,Residential,2885.97,19/03/2020
AVERY HOMES GRANTHAM LTD&&SSARO1825,Residential,5132,09/03/2020
AVERY HOMES HINCKLEY LTD&&SSARO2898,Residential,-30548,09/03/2020
AVERY HOMES HINCKLEY LTD&&SSARO2898,Residential,-30548,09/03/2020
AVERY HOMES HINCKLEY LTD&&SSARO2898,Residential,1542.86,09/03/2020
AVERY HOMES HINCKLEY LTD&&SSARO2898,Residential,-30548,09/03/2020
AVERY HOMES HINCKLEY LTD&&SSARO2898,Residential,-10751,09/03/2020
AVERY HOMES HINCKLEY LTD&&SSARO2898,Residential,-30548,09/03/2020
AVERY HOMES HINCKLEY LTD&&SSARO2898,Residential,-30548,09/03/2020
AVERY HOMES HINCKLEY LTD&&SSARO2898,Residential,-30548,09/03/2020
AVERY HOMES HINCKLEY LTD&&SSARO2898,Residential,-29148,09/03/2020
AVERY HOMES HINCKLEY LTD&&SSARO2898,Residential,1887,09/03/2020
AVERY HOMES HINCKLEY LTD&&SSARO2898,Residential,-27748,09/03/2020
AVERY HOMES HINCKLEY LTD&&SSARO2898,Residential,-3123,09/03/2020
AVERY HOMES HINCKLEY LTD&&SSARO2898,Residential,47700,09/03/2020
AVERY HOMES HINCKLEY LTD&&SSARO2898,Residential,-30548,09/03/2020
AVERY HOMES HINCKLEY LTD&&SSARO2898,Residential,38390.14,09/03/2020
AVERY HOMES HINCKLEY LTD&&SSARO2898,Residential,-30548,09/03/2020
AVERY HOMES HINCKLEY LTD&&SSARO2898,Residential,31788,09/03/2020
AVERY HOMES HINCKLEY LTD&&SSARO2898,Residential,-30548,09/03/2020
AVERY HOMES HINCKLEY LTD&&SSARO2898,Residential,296386,09/03/2020
AVVISIM CARE LTD T/A FERNLEIGH CARE HOME&&SSAROE40336,Residential,-11340,09/03/2020
AVVISIM CARE LTD T/A FERNLEIGH CARE HOME&&SSAROE40336,Residential,12112,09/03/2020
AVVISIM CARE LTD T/A FERNLEIGH CARE HOME&&SSAROE40336,Residential,-11340,09/03/2020
AVVISIM CARE LTD T/A FERNLEIGH CARE HOME&&SSAROE40336,Residential,12112,09/03/2020
AVVISIM CARE LTD T/A FERNLEIGH CARE HOME&&SSAROE40336,Residential,579,09/03/2020
AVVISIM CARE LTD T/A FERNLEIGH CARE HOME&&SSAROE40336,Residential,-11340,09/03/2020
AVVISIM CARE LTD T/A FERNLEIGH CARE HOME&&SSAROE40336,Residential,78728,09/03/2020
AVVISIM CARE LTD T/A FERNLEIGH CARE HOME&&SSAROE40336,Residential,-5670,09/03/2020
AVVISIM CARE LTD T/A FERNLEIGH CARE HOME&&SSAROE40336,Residential,-11340,09/03/2020
AVVISIM CARE LTD T/A FERNLEIGH CARE HOME&&SSAROE40336,Residential,-11340,09/03/2020
AVVISIM CARE LTD T/A FERNLEIGH CARE HOME&&SSAROE40336,Residential,-11340,09/03/2020
AVVISIM CARE LTD T/A FERNLEIGH CARE HOME&&SSAROE40336,Residential,-11340,09/03/2020
AVVISIM CARE LTD T/A FERNLEIGH CARE HOME&&SSAROE40336,Residential,-11340,09/03/2020
AVVISIM CARE LTD T/A FERNLEIGH CARE HOME&&SSAROE40336,Residential,26444,09/03/2020
AVVISIM CARE LTD T/A FERNLEIGH CARE HOME&&SSAROE40336,Residential,-11340,09/03/2020
AVVISIM CARE LTD T/A FERNLEIGH CARE HOME&&SSAROE40336,Residential,12068,09/03/2020
AVVISIM CARE LTD T/A FERNLEIGH CARE HOME&&SSAROE40336,Residential,-11340,09/03/2020
AVVISIM CARE LTD T/A FERNLEIGH CARE HOME&&SSAROE40336,Residential,12068,09/03/2020
AVVISIM CARE LTD T/A FERNLEIGH CARE HOME&&SSAROE40336,Residential,-11340,09/03/2020
AVVISIM CARE LTD T/A FERNLEIGH CARE HOME&&SSAROE40336,Residential,12068,09/03/2020
AW Play Therapy LTD,Other Agency & Cont Services,1145,13/03/2020
AYLESHAM COURT NURSING HOME&&SSAROE59696,Nursing,-19079.8,09/03/2020
AYLESHAM COURT NURSING HOME&&SSAROE59696,Private Contractors,-19079.8,09/03/2020
AYLESHAM COURT NURSING HOME&&SSAROE59696,Residential,-19079.8,09/03/2020
AYLESHAM COURT NURSING HOME&&SSAROE59696,Residential,22344,09/03/2020
AYLESHAM COURT NURSING HOME&&SSAROE59696,Nursing,-19079.8,09/03/2020
AYLESHAM COURT NURSING HOME&&SSAROE59696,Private Contractors,-19079.8,09/03/2020
AYLESHAM COURT NURSING HOME&&SSAROE59696,Residential,-19079.8,09/03/2020
AYLESHAM COURT NURSING HOME&&SSAROE59696,Residential,22344,09/03/2020
AYLESHAM COURT NURSING HOME&&SSAROE59696,Nursing,-19079.8,09/03/2020
AYLESHAM COURT NURSING HOME&&SSAROE59696,Private Contractors,-19079.8,09/03/2020
AYLESHAM COURT NURSING HOME&&SSAROE59696,Residential,-19079.8,09/03/2020
AYLESHAM COURT NURSING HOME&&SSAROE59696,Private Contractors,-9935.4,09/03/2020
AYLESHAM COURT NURSING HOME&&SSAROE59696,Residential,-9935.4,09/03/2020
AYLESHAM COURT NURSING HOME&&SSAROE59696,Nursing,-19079.8,09/03/2020
AYLESHAM COURT NURSING HOME&&SSAROE59696,Private Contractors,-19079.8,09/03/2020
AYLESHAM COURT NURSING HOME&&SSAROE59696,Residential,-19079.8,09/03/2020
AYLESHAM COURT NURSING HOME&&SSAROE59696,Nursing,-19079.8,09/03/2020
AYLESHAM COURT NURSING HOME&&SSAROE59696,Private Contractors,-19079.8,09/03/2020
AYLESHAM COURT NURSING HOME&&SSAROE59696,Residential,-19079.8,09/03/2020
AYLESHAM COURT NURSING HOME&&SSAROE59696,Nursing,-19079.8,09/03/2020
AYLESHAM COURT NURSING HOME&&SSAROE59696,Private Contractors,-19079.8,09/03/2020
AYLESHAM COURT NURSING HOME&&SSAROE59696,Residential,-19079.8,09/03/2020
AYLESHAM COURT NURSING HOME&&SSAROE59696,Nursing,-19079.8,09/03/2020
AYLESHAM COURT NURSING HOME&&SSAROE59696,Private Contractors,-19079.8,09/03/2020
AYLESHAM COURT NURSING HOME&&SSAROE59696,Residential,-19079.8,09/03/2020
AYLESHAM COURT NURSING HOME&&SSAROE59696,Nursing,-19192.8,09/03/2020
AYLESHAM COURT NURSING HOME&&SSAROE59696,Private Contractors,-19192.8,09/03/2020
AYLESHAM COURT NURSING HOME&&SSAROE59696,Residential,-19192.8,09/03/2020
AYLESHAM COURT NURSING HOME&&SSAROE59696,Private Contractors,10795.84,09/03/2020
AYLESHAM COURT NURSING HOME&&SSAROE59696,Residential,10795.84,09/03/2020
AYLESHAM COURT NURSING HOME&&SSAROE59696,Private Contractors,29342.08,09/03/2020
AYLESHAM COURT NURSING HOME&&SSAROE59696,Residential,29342.08,09/03/2020
AYLESHAM COURT NURSING HOME&&SSAROE59696,Nursing,-19079.8,09/03/2020
AYLESHAM COURT NURSING HOME&&SSAROE59696,Private Contractors,-19079.8,09/03/2020
AYLESHAM COURT NURSING HOME&&SSAROE59696,Residential,-19079.8,09/03/2020
AYLESHAM COURT NURSING HOME&&SSAROE59696,Residential,189924,09/03/2020
AYLESHAM COURT NURSING HOME&&SSAROE59696,Nursing,-19079.8,09/03/2020
AYLESHAM COURT NURSING HOME&&SSAROE59696,Private Contractors,-19079.8,09/03/2020
AYLESHAM COURT NURSING HOME&&SSAROE59696,Residential,-19079.8,09/03/2020
AYLESHAM COURT NURSING HOME&&SSAROE59696,Nursing,-19079.8,09/03/2020
AYLESHAM COURT NURSING HOME&&SSAROE59696,Private Contractors,-19079.8,09/03/2020
AYLESHAM COURT NURSING HOME&&SSAROE59696,Residential,-19079.8,09/03/2020
AYLESHAM COURT NURSING HOME&&SSAROE59696,Residential,22344,09/03/2020
AYLESTONE GRANGE LTD&&SSARO3251,Residential,8867.58,09/03/2020
A Zoom Taxis,S.E.N. Taxi Hire,3024,13/03/2020
A Zoom Taxis,S.E.N. Taxi Hire,2455.2,31/03/2020
A Zoom Taxis,S.E.N. Taxi Hire,3109.92,13/03/2020
A Zoom Taxis,S.E.N. Taxi Hire,1074,31/03/2020
A Zoom Taxis,S.E.N. Taxi Hire,1396.2,13/03/2020
A Zoom Taxis,S.E.N. Taxi Hire,2034,31/03/2020
A Zoom Taxis,S.E.N. Taxi Hire,2576.4,13/03/2020
A Zoom Taxis,Home to Sch Trans - Buses,1485,31/03/2020
A Zoom Taxis,Home to Sch Trans - Buses,1881,13/03/2020
A Zoom Taxis,S.E.N. Taxi Hire,3240,31/03/2020
A Zoom Taxis,S.E.N. Taxi Hire,4104,27/03/2020
A Zoom Taxis,S.E.N. Taxi Hire,2008.8,31/03/2020
A Zoom Taxis,S.E.N. Taxi Hire,2544.48,13/03/2020
A Zoom Taxis,S.E.N. Taxi Hire,1816.2,31/03/2020
A Zoom Taxis,S.E.N. Taxi Hire,2030.46,13/03/2020
A Zoom Taxis,S.E.N. Taxi Hire,1340.64,31/03/2020
A Zoom Taxis,S.E.N. Taxi Hire,1819.44,13/03/2020
A Zoom Taxis,Personal Accounts - Govt Depts,2808,31/03/2020
A Zoom Taxis,Personal Accounts - Govt Depts,2808,13/03/2020
A Zoom Taxis,S.E.N. Taxi Hire,3132,31/03/2020
A Zoom Taxis,S.E.N. Taxi Hire,3967.2,13/03/2020
A Zoom Taxis,S.E.N. Taxi Hire,1512,31/03/2020
A Zoom Taxis,S.E.N. Taxi Hire,1764,13/03/2020
A Zoom Taxis,Recharge of Pooled Transp Cost,3352.8,31/03/2020
A Zoom Taxis,S.E.N. Taxi Hire,3352.8,31/03/2020
A Zoom Taxis,Recharge of Pooled Transp Cost,4172.4,13/03/2020
A Zoom Taxis,S.E.N. Taxi Hire,4172.4,13/03/2020
A Zoom Taxis,Recharge of Pooled Transp Cost,882,31/03/2020
A Zoom Taxis,Recharge of Pooled Transp Cost,999.6,13/03/2020
A Zoom Taxis,S.E.N. Taxi Hire,1501.2,31/03/2020
A Zoom Taxis,S.E.N. Taxi Hire,1851.48,13/03/2020
A Zoom Taxis,S.E.N. Taxi Hire,2880,31/03/2020
A Zoom Taxis,S.E.N. Taxi Hire,3021,13/03/2020
A Zoom Taxis,S.E.N. Taxi Hire,1078.92,31/03/2020
A Zoom Taxis,S.E.N. Taxi Hire,1078.92,13/03/2020
A Zoom Taxis,S.E.N. Taxi Hire,1681.2,31/03/2020
A Zoom Taxis,S.E.N. Taxi Hire,2017.44,13/03/2020
A Zoom Taxis,S.E.N. Taxi Hire,2232,31/03/2020
A Zoom Taxis,S.E.N. Taxi Hire,2827.2,13/03/2020
A Zoom Taxis,S.E.N. Taxi Hire,1764,31/03/2020
A Zoom Taxis,S.E.N. Taxi Hire,2234.4,13/03/2020
A Zoom Taxis,S.E.N. Taxi Hire,2502,31/03/2020
A Zoom Taxis,S.E.N. Taxi Hire,3169.2,13/03/2020
A Zoom Taxis,S.E.N. Taxi Hire,2484,31/03/2020
A Zoom Taxis,S.E.N. Taxi Hire,3146.4,13/03/2020
A Zoom Taxis,S.E.N. Taxi Hire,1134,31/03/2020
A Zoom Taxis,S.E.N. Taxi Hire,1512,13/03/2020
A Zoom Taxis,S.E.N. Taxi Hire,1572.48,31/03/2020
A Zoom Taxis,S.E.N. Taxi Hire,1980,31/03/2020
A Zoom Taxis,S.E.N. Taxi Hire,1909.44,13/03/2020
A Zoom Taxis,S.E.N. Taxi Hire,1870.5,31/03/2020
A Zoom Taxis,S.E.N. Taxi Hire,2640,13/03/2020
A Zoom Taxis,S.E.N. Taxi Hire,1824.48,31/03/2020
A Zoom Taxis,S.E.N. Taxi Hire,2451,13/03/2020
A Zoom Taxis,S.E.N. Taxi Hire,712.8,31/03/2020
A Zoom Taxis,S.E.N. Taxi Hire,2476.08,13/03/2020
A Zoom Taxis,S.E.N. Taxi Hire,1346.4,13/03/2020
A Zoom Taxis,Recharge of Pooled Transp Cost,1920,31/03/2020
A Zoom Taxis,Recharge of Pooled Transp Cost,2016,13/03/2020
A Zoom Taxis,S.E.N. Taxi Hire,2268,31/03/2020
BABBLEBROOKE LTD&&EYRS1772,Grants,2264.78,27/03/2020
BABBLEBROOKE LTD&&EYRS1772,Grants,53608.8,27/03/2020
Baca Charity,Private Contractors,1800,05/03/2020
Baca Charity,Private Contractors,1560,05/03/2020
Baca Charity,Private Contractors,2440,05/03/2020
Baca Charity,Private Contractors,2440,05/03/2020
Baca Charity,Private Contractors,2440,05/03/2020
Baca Charity,Private Contractors,2440,05/03/2020
Baca Charity,Private Contractors,2440,24/03/2020
Baca Charity,Private Contractors,2440,05/03/2020
Baca Charity,Private Contractors,2440,05/03/2020
Baca Charity,Private Contractors,2440,05/03/2020
Baca Charity,Private Contractors,2440,05/03/2020
Baca Charity,Other Transfer Payments,2972.83,13/03/2020
Baca Charity,Other Transfer Payments,1047.13,13/03/2020
Baca Charity,Private Contractors,2440,24/03/2020
Baca Charity,Private Contractors,1800,24/03/2020
Baca Charity,Private Contractors,2440,24/03/2020
Baca Charity,Private Contractors,1560,24/03/2020
Baca Charity,Private Contractors,2440,24/03/2020
Baca Charity,Private Contractors,2440,24/03/2020
Baca Charity,Private Contractors,2440,24/03/2020
Baca Charity,Private Contractors,2440,24/03/2020
Baca Charity,Private Contractors,2440,24/03/2020
Baca Charity,Private Contractors,2440,24/03/2020
Baca Charity,Private Contractors,2440,24/03/2020
Baca Charity,Private Contractors,2440,24/03/2020
Baca Charity,Private Contractors,2440,24/03/2020
Baca Charity,Private Contractors,2440,24/03/2020
Baca Charity,Private Contractors,2440,24/03/2020
Baca Charity,Grants,771.9,20/03/2020
BADBY PARK LTD&&SSARO3105,Nursing,5358.21,09/03/2020
BADBY PARK LTD&&SSARO3105,Private Contractors,5358.21,09/03/2020
BADBY PARK LTD&&SSARO3105,Residential,5358.21,09/03/2020
REDACTED PERSONAL DATA,Home to Sch Trans - Buses,10570,04/03/2020
REDACTED PERSONAL DATA,Home to Sch Trans - Buses,7927.5,27/03/2020
BAGWORTH PLAYGROUP LTD&&EYRS1634,Grants,11911.32,27/03/2020
REDACTED PERSONAL DATA,S.E.N. Taxi Hire,3921.6,05/03/2020
REDACTED PERSONAL DATA,S.E.N. Taxi Hire,2895.6,05/03/2020
REDACTED PERSONAL DATA,S.E.N. Taxi Hire,3659.4,05/03/2020
REDACTED PERSONAL DATA,S.E.N. Taxi Hire,4605.6,05/03/2020
REDACTED PERSONAL DATA,S.E.N. Taxi Hire,4371.6,05/03/2020
REDACTED PERSONAL DATA,Recharge of Pooled Transp Cost,5016,05/03/2020
REDACTED PERSONAL DATA,S.E.N. Taxi Hire,5016,05/03/2020
REDACTED PERSONAL DATA,S.E.N. Taxi Hire,3100.8,05/03/2020
REDACTED PERSONAL DATA,S.E.N. Taxi Hire,2895.6,05/03/2020
REDACTED PERSONAL DATA,Home to Sch Trans - Buses,3078,05/03/2020
REDACTED PERSONAL DATA,Home to Sch Trans - Buses,1200,05/03/2020
REDACTED PERSONAL DATA,Personal Accounts - Govt Depts,600,27/03/2020
REDACTED PERSONAL DATA,S.E.N. Taxi Hire,3096,27/03/2020
REDACTED PERSONAL DATA,S.E.N. Taxi Hire,2286,27/03/2020
REDACTED PERSONAL DATA,S.E.N. Taxi Hire,2889,27/03/2020
REDACTED PERSONAL DATA,S.E.N. Taxi Hire,3636,27/03/2020
REDACTED PERSONAL DATA,S.E.N. Taxi Hire,3186,27/03/2020
REDACTED PERSONAL DATA,Recharge of Pooled Transp Cost,3960,27/03/2020
REDACTED PERSONAL DATA,S.E.N. Taxi Hire,3960,27/03/2020
REDACTED PERSONAL DATA,S.E.N. Taxi Hire,2553.6,27/03/2020
REDACTED PERSONAL DATA,S.E.N. Taxi Hire,2286,27/03/2020
REDACTED PERSONAL DATA,Home to Sch Trans - Buses,2430,27/03/2020
REDACTED PERSONAL DATA,Home to Sch Trans - Buses,750,27/03/2020
REDACTED PERSONAL DATA,Grants,996.3,27/03/2020
BARCHESTER HEALTHCARE HOME LTD T/A MARPLE DALE WINDSOR&&SSAROE350,Residential,2679.72,09/03/2020
BARCHESTER HEALTHCARE HOMES LTD CHORLEYWOOD BEAUMONT RECEIPTS ACCOUNT&&SSARO5714,Nursing,38517.14,09/03/2020
BARCHESTER HEALTHCARE HOMES LTD CHORLEYWOOD BEAUMONT RECEIPTS ACCOUNT&&SSARO5714,Private Contractors,38517.14,09/03/2020
BARCHESTER HEALTHCARE HOMES LTD CHORLEYWOOD BEAUMONT RECEIPTS ACCOUNT&&SSARO5714,Residential,38517.14,09/03/2020
BARCHESTER HEALTHCARE HOMES LTD LANCASTER GRANGE&&SARO3353,Residential,2700,09/03/2020
BARCHESTER HEALTHCARE HOMES LTD OVERSLADE HOUSE RECEIPTS ACCOUNT&&SSARO3228,Nursing,2419.2,09/03/2020
BARCHESTER HEALTHCARE HOMES LTD OVERSLADE HOUSE RECEIPTS ACCOUNT&&SSARO3228,Private Contractors,2419.2,09/03/2020
BARCHESTER HEALTHCARE HOMES LTD&&SAROE59408,Residential,955.71,09/03/2020
BARCHESTER HEALTHCARE HOMES LTD&&SAROE59408,Private Contractors,6975.12,09/03/2020
BARCHESTER HEALTHCARE HOMES LTD&&SAROE59408,Residential,6975.12,09/03/2020
BARCHESTER HEALTHCARE T/A THACKERAY HOUSE&&SSARO3370,Private Contractors,3800,09/03/2020
Barnardos,Other Agency & Cont Services,3653.57,31/03/2020
BARROW PRE SCHOOL PLAYGROUPSS&&EYRS1565,Grants,14131.04,27/03/2020
REDACTED PERSONAL DATA,Home to Sch Trans - Buses,760,06/03/2020
REDACTED PERSONAL DATA,Home to Sch Trans - Buses,580,31/03/2020
REDACTED PERSONAL DATA,Subscriptions,500,06/03/2020
Barwell CE Academy,Payment to Ext SEN Providers,1667,31/03/2020
Barwell CE Academy,Payment to Ext SEN Providers,1667,27/03/2020
Barwell CE Academy,Grants,3333,03/03/2020
Barwell Tyre Centre,R&M of Vehicles-Non Contract,691.99,13/03/2020
Barwell Tyre Centre,R&M of Vehicles-Non Contract,805.89,17/03/2020
BARWELL VILLAGE HALL PLAYGROUP&&EYRS1694,Grants,17221.2,27/03/2020
Battling Brook Primary School Academy,Payment to Ext SEN Providers,6292,31/03/2020
Battling Brook Primary School Academy,Payment to Ext SEN Providers,6292,27/03/2020
Beacon Academy,Children&Families Spprt Servs,3669,31/03/2020
Beacon Academy,Children&Families Spprt Servs,3669,27/03/2020
Beacon Academy,Payment to Ext SEN Providers,33214,11/03/2020
Beacon Academy,Payment to Ext SEN Providers,23654,30/03/2020
Beacon Academy,Payment to Ext SEN Providers,500,30/03/2020
Beacon Academy,Payment to Ext SEN Providers,500,27/03/2020
Beacon Academy,Payment to Ext SEN Providers,12906,30/03/2020
Beacon Academy,Payment to Ext SEN Providers,12906,27/03/2020
Beacon Academy,Payment to Ext SEN Providers,7317,31/03/2020
Beacon Academy,Payment to Ext SEN Providers,7317,27/03/2020
BEACON ACADEMY NURSERY&&EYRS1751,Grants,53019.42,27/03/2020
Beauchamp Academy,Payment to Ext SEN Providers,2165,30/03/2020
Beauchamp Academy,Payment to Ext SEN Providers,2165,27/03/2020
Beauchamp Academy,Payment to Ext SEN Providers,8917,05/03/2020
Beauchamp Academy,Payment to Ext SEN Providers,9909,27/03/2020
Beauchamp Academy,Payment to Ext SEN Providers,9909,31/03/2020
Beaumont Leys Specialist Science School,Children&Families Spprt Servs,630,13/03/2020
Beaumont Leys Specialist Science School,Children&Families Spprt Servs,640,13/03/2020
Beaver Bus,Home to Sch Trans - Buses,8420,05/03/2020
Beaver Bus,Home to Sch Trans - Buses,6315,27/03/2020
Beaver Bus,Home to Sch Trans - Buses,6315,27/03/2020
Beaver Childcare Ltd,Payment to Ext SEN Providers,675,31/03/2020
BEAVER CHILDCARE LTD T/A CHARNWOOD NURSERY  & PRE SCHOOL&&EYRS1519,Grants,1389.78,27/03/2020
BEAVER CHILDCARE LTD T/A CHARNWOOD NURSERY  & PRE SCHOOL&&EYRS1519,Grants,133107.5,27/03/2020
BEAVER CHILDCARE LTD T/A CHARNWOOD PRESCHOOL&&EYRSEY562091,Grants,36339.78,27/03/2020
Bedford College,Payment to Ext SEN Providers,4797.86,05/03/2020
Bedford College,Payment to Ext SEN Providers,2600,05/03/2020
Belgrave Car & Commercial Ltd,Home to Sch Trans - Buses,3870,27/03/2020
Belgrave Car & Commercial Ltd,Home to Sch Trans - Buses,5400,27/03/2020
Belgrave Car & Commercial Ltd,Home to Sch Trans - Buses,2100,27/03/2020
BELTON PLAYGROUP&&EYRS1562,Grants,1229.22,27/03/2020
BELTON PLAYGROUP&&EYRS1562,Grants,16793.84,27/03/2020
REDACTED PERSONAL DATA,Grants,500,17/03/2020
BENTLEY HOUSE LTD&&SSAROE140,Private Contractors,2108.12,09/03/2020
BERRYSTEAD NURSING & RESIDENTIAL  HOME LTD&&SSAROE2040,Residential,579,09/03/2020
BERRYSTEAD NURSING & RESIDENTIAL  HOME LTD&&SSAROE2040,Residential,-1503.44,09/03/2020
BERRYSTEAD NURSING & RESIDENTIAL  HOME LTD&&SSAROE2040,Residential,30520,09/03/2020
BERRYSTEAD NURSING & RESIDENTIAL  HOME LTD&&SSAROE2040,Residential,5299.72,09/03/2020
BERRYSTEAD NURSING & RESIDENTIAL  HOME LTD&&SSAROE2040,Residential,-2156.57,09/03/2020
BESTCARE LTD&&SSAROE1281,Residential,6847.2,09/03/2020
BESTCARE LTD&&SSAROE1281,Residential,-12964,09/03/2020
BESTCARE LTD&&SSAROE1281,Residential,13399.71,09/03/2020
BESTCARE LTD&&SSAROE1281,Residential,-12964,09/03/2020
BESTCARE LTD&&SSAROE1281,Residential,12076.29,09/03/2020
BESTCARE LTD&&SSAROE1281,Residential,-12964,09/03/2020
BESTCARE LTD&&SSAROE1281,Residential,-5372,09/03/2020
BESTCARE LTD&&SSAROE1281,Residential,-713.57,09/03/2020
BESTCARE LTD&&SSAROE1281,Residential,-12964,09/03/2020
BESTCARE LTD&&SSAROE1281,Residential,1158,09/03/2020
BESTCARE LTD&&SSAROE1281,Residential,-12964,09/03/2020
BESTCARE LTD&&SSAROE1281,Residential,579,09/03/2020
BESTCARE LTD&&SSAROE1281,Residential,-12964,09/03/2020
BESTCARE LTD&&SSAROE1281,Residential,-12964,09/03/2020
BESTCARE LTD&&SSAROE1281,Residential,-11378.29,09/03/2020
BESTCARE LTD&&SSAROE1281,Residential,9688.08,09/03/2020
BESTCARE LTD&&SSAROE1281,Residential,24360.8,09/03/2020
BESTCARE LTD&&SSAROE1281,Residential,-12964,09/03/2020
BESTCARE LTD&&SSAROE1281,Residential,18437.15,09/03/2020
BESTCARE LTD&&SSAROE1281,Residential,-12964,09/03/2020
BESTCARE LTD&&SSAROE1281,Residential,16452,09/03/2020
BESTCARE LTD&&SSAROE1281,Residential,-12964,09/03/2020
BESTCARE LTD&&SSAROE1281,Residential,107323.72,09/03/2020
BEST START NURSERIES LTD PAINT POTS DAY NURSERY&&EYRSEY2496375,Grants,-16385.98,27/03/2020
BEST START NURSERIES LTD PAINT POTS DAY NURSERY&&EYRSEY2496375,Grants,-1035.3,27/03/2020
BEST START NURSERIES LTD PAINT POTS DAY NURSERY&&EYRSEY2496375,Grants,5077.71,27/03/2020
BEST START NURSERIES LTD PAINT POTS DAY NURSERY&&EYRSEY2496375,Grants,6689.54,27/03/2020
BEST START NURSERIES LTD PAINT POTS DAY NURSERY&&EYRSEY2496375,Grants,2322.61,27/03/2020
BEST START NURSERIES LTD PAINT POTS DAY NURSERY&&EYRSEY2496375,Grants,988.4,27/03/2020
BEST START NURSERIES LTD PAINT POTS DAY NURSERY&&EYRSEY2496375,Grants,10796.83,27/03/2020
BETHEL RESIDENTIAL HOME&&SSAROE40459,Residential,661.71,09/03/2020
BETHEL RESIDENTIAL HOME&&SSAROE40459,Residential,-1571.57,09/03/2020
BETHEL RESIDENTIAL HOME&&SSAROE40459,Residential,-1075.29,09/03/2020
BETHEL RESIDENTIAL HOME&&SSAROE40459,Residential,-992.57,09/03/2020
BETHEL RESIDENTIAL HOME&&SSAROE40459,Residential,27792,09/03/2020
BETHEL RESIDENTIAL HOME&&SSAROE40459,Residential,8767.72,09/03/2020
BETHEL RESIDENTIAL HOME&&SSAROE40459,Residential,-2150.57,09/03/2020
BETHESDA CAREHOMES LTD TA PINGLENOOK&&SSAROE40346,Residential,579,09/03/2020
BETHESDA CAREHOMES LTD TA PINGLENOOK&&SSAROE40346,Residential,827.14,09/03/2020
BETHESDA CAREHOMES LTD TA PINGLENOOK&&SSAROE40346,Residential,16212,09/03/2020
BETHESDA CAREHOMES LTD TA PINGLENOOK&&SSAROE40346,Residential,2977.72,09/03/2020
BETHESDA CAREHOMES LTD TA PINGLENOOK&&SSAROE40346,Residential,-1985.14,09/03/2020
REDACTED PERSONAL DATA,Grants,2066.4,27/03/2020
REDACTED PERSONAL DATA,Home to Sch Trans - Buses,1344.15,27/03/2020
BHFS LTD T/A WINDMILL DAY NURSERY&&EYRSEY281008,Grants,46772.65,27/03/2020
BIG ADVENTURES CHILDRENS NURSERY LTD T/A DAISY CHAIN CHILDRENS NURSERY&&EYRS1731,Grants,588.84,27/03/2020
BIG ADVENTURES CHILDRENS NURSERY LTD T/A DAISY CHAIN CHILDRENS NURSERY&&EYRS1731,Grants,43739.57,27/03/2020
BIG ADVENTURES CHILDRENS NURSERY T/A DAISY CHAIN&&EYRS1587,Grants,24297.38,27/03/2020
REDACTED PERSONAL DATA,S.E.N. Taxi Hire,3272,04/03/2020
REDACTED PERSONAL DATA,S.E.N. Taxi Hire,1560,27/03/2020
REDACTED PERSONAL DATA,S.E.N. Taxi Hire,552,27/03/2020
BILINGUAL DAY NURSERY ASHBY&&EYRSEY551087,Grants,9180,27/03/2020
Bilsthorpe Heritage,Other Transfer Payments,800,13/03/2020
BIRCHESTER MEDICARE LTD&&SSARO2290,Private Contractors,2444,09/03/2020
BIRCHESTER MEDICARE LTD&&SSARO2290,Residential,2444,09/03/2020
Birchwood (Melton Area Special School),Furniture & Equipment,9100,17/03/2020
BIRCHWOOD RETIREMENT HOME LTD&&SSARO3408,Residential,2208,09/03/2020
Birkett House School Academy,Children&Families Spprt Servs,1105,31/03/2020
Birkett House School Academy,Children&Families Spprt Servs,1105,27/03/2020
Birkett House School Academy,Other Expenditure,3333,30/03/2020
Birkett House School Academy,Payment to Ext SEN Providers,9497,31/03/2020
Birkett House School Academy,Payment to Ext SEN Providers,9497,27/03/2020
Birkett House School Academy,Payment to Ext SEN Providers,155487,31/03/2020
Birkett House School Academy,Payment to Ext SEN Providers,155487,27/03/2020
Birkett House School Academy,Payment to Ext SEN Providers,6532,30/03/2020
Birstall Cabs,Recharge of Pooled Transp Cost,2996.51,19/03/2020
Birstall Cabs,S.E.N. Taxi Hire,2996.51,19/03/2020
Birstall Cabs,Personal Accounts - Govt Depts,1642.97,19/03/2020
Birstall Cabs,Recharge of Pooled Transp Cost,1642.97,19/03/2020
Birstall Cabs,S.E.N. Taxi Hire,2192.94,05/03/2020
Birstall Cabs,S.E.N. Taxi Hire,2315.11,05/03/2020
Birstall Cabs,S.E.N. Taxi Hire,1818.38,05/03/2020
Birstall Cabs,S.E.N. Taxi Hire,2023.16,05/03/2020
Birstall Cabs,Recharge of Pooled Transp Cost,2070.75,05/03/2020
Birstall Cabs,S.E.N. Taxi Hire,2070.75,05/03/2020
Birstall Cabs,S.E.N. Taxi Hire,1787.29,05/03/2020
Birstall Cabs,Home to Sch Trans - Buses,583.39,19/03/2020
Birstall Cabs,S.E.N. Taxi Hire,1611.08,05/03/2020
Birstall Cabs,S.E.N. Taxi Hire,3735.76,05/03/2020
Birstall Cabs,S.E.N. Taxi Hire,1493.13,05/03/2020
Birstall Cabs,Home to Sch Trans - Buses,713.54,05/03/2020
Birstall Cabs,Recharge of Pooled Transp Cost,2919.11,19/03/2020
Birstall Cabs,S.E.N. Taxi Hire,2919.11,19/03/2020
Birstall Cabs,S.E.N. Taxi Hire,1445.92,05/03/2020
Birstall Cabs,Home to Sch Trans - Buses,752.98,05/03/2020
Birstall Cabs,Recharge of Pooled Transp Cost,791.97,05/03/2020
Birstall Cabs,Home to Sch Trans - Buses,955.66,05/03/2020
Birstall Cabs,Personal Accounts - Govt Depts,1731.76,27/03/2020
Birstall Cabs,Recharge of Pooled Transp Cost,1731.76,27/03/2020
Birstall Cabs,S.E.N. Taxi Hire,1827.72,27/03/2020
Birstall Cabs,S.E.N. Taxi Hire,1514.82,27/03/2020
Birstall Cabs,S.E.N. Taxi Hire,1685.97,27/03/2020
Birstall Cabs,Recharge of Pooled Transp Cost,1642.72,27/03/2020
Birstall Cabs,S.E.N. Taxi Hire,1642.72,27/03/2020
Birstall Cabs,S.E.N. Taxi Hire,2840.22,27/03/2020
Birstall Cabs,Home to Sch Trans - Buses,578.79,27/03/2020
Birstall Cabs,Home to Sch Trans - Buses,704.17,27/03/2020
BIRSTALL CARE SERVICES LTD&&SSARO3339,Residential,-1099.88,09/03/2020
BIRSTALL CARE SERVICES LTD&&SSARO3339,Residential,-571.43,09/03/2020
BIRSTALL CARE SERVICES LTD&&SSARO3339,Residential,3462,09/03/2020
BIRSTALL CARE SERVICES LTD&&SSARO3339,Residential,8898,09/03/2020
Birstall Cars Ltd,S.E.N. Taxi Hire,3192,05/03/2020
Birstall Cars Ltd,S.E.N. Taxi Hire,2153.46,05/03/2020
Birstall Cars Ltd,Home to Sch Trans - Buses,830.4,05/03/2020
Birstall Cars Ltd,S.E.N. Taxi Hire,2351.13,05/03/2020
Birstall Cars Ltd,S.E.N. Taxi Hire,2169.6,19/03/2020
Birstall Cars Ltd,S.E.N. Taxi Hire,2640,27/03/2020
Birstall Cars Ltd,S.E.N. Taxi Hire,1360.08,27/03/2020
Birstall Cars Ltd,Home to Sch Trans - Buses,622.8,27/03/2020
Birstall Cars Ltd,S.E.N. Taxi Hire,1856.16,27/03/2020
Birstall Cars Ltd,Recharge of Pooled Transp Cost,1882.03,27/03/2020
BIRSTALL RAINBOW NURSERY&&EYRS1480,Grants,2344.42,27/03/2020
BIRSTALL RAINBOW NURSERY&&EYRS1480,Grants,52312.3,27/03/2020
BIZZY BEES PRESCHOOL&&EYRSEY558811,Grants,33580.78,27/03/2020
Blaby District Council,Personal Accounts - Other,1990.15,12/03/2020
Blaby Mind Matters,Grants,973,20/03/2020
BLABY PRE SCHOOL&&EYRS1517,Grants,834.69,27/03/2020
BLABY PRE SCHOOL&&EYRS1517,Grants,27807.9,27/03/2020
Blaby Stokes CE Primary School (Academy),Payment to Ext SEN Providers,2270,31/03/2020
Blaby Stokes CE Primary School (Academy),Payment to Ext SEN Providers,2270,27/03/2020
BLACKBERRY BUSH T/A BUSH BABIES CHILDRENS NURSERIES LTD&&EYRS1534,Grants,24152.4,27/03/2020
Blackfordby St Margarets CE Primary School (Academy),Payment to Ext SEN Providers,611,31/03/2020
Blackfordby St Margarets CE Primary School (Academy),Payment to Ext SEN Providers,611,27/03/2020
Blast Technology Ltd,Suspense,1760,18/03/2020
BLUEBELL NURSERY SCHOOL&&EYRS1748,Grants,19909.5,27/03/2020
BLUEBERRY BUSH T/A BUSH BABIES CHILDRENS NURSERIES LTD&&EYRS1567,Grants,-630.48,27/03/2020
BLUEBERRY BUSH T/A BUSH BABIES CHILDRENS NURSERIES LTD&&EYRS1567,Grants,1996.65,27/03/2020
BLUEBERRY BUSH T/A BUSH BABIES CHILDRENS NURSERIES LTD&&EYRS1567,Grants,-29733.75,27/03/2020
BLUEBERRY BUSH T/A BUSH BABIES CHILDRENS NURSERIES LTD&&EYRS1567,Grants,10610.38,27/03/2020
BLUEBERRY BUSH T/A BUSH BABIES CHILDRENS NURSERIES LTD&&EYRS1567,Grants,4963.82,27/03/2020
BLUEBERRY BUSH T/A BUSH BABIES CHILDRENS NURSERIES LTD&&EYRS1567,Grants,2374.61,27/03/2020
BLUEBERRY BUSH T/A BUSH BABIES CHILDRENS NURSERIES LTD&&EYRS1567,Grants,2076.03,27/03/2020
BLUEBERRY BUSH T/A BUSH BABIES CHILDRENS NURSERIES LTD&&EYRS1567,Grants,17320.5,27/03/2020
Blue Line Cars,Home to Sch Trans - Buses,570,27/03/2020
Blue Mountain Homes Ltd,Private Contractors,23530.29,30/03/2020
Blue Mountain Homes Ltd,Private Contractors,33384.57,30/03/2020
Blue Mountain Homes Ltd,Private Contractors,21745.29,30/03/2020
Blue Mountain Homes Ltd,Private Contractors,17191.71,27/03/2020
Blue Mountain Homes Ltd,Private Contractors,17191.71,11/03/2020
Blue Mountain Homes Ltd,Private Contractors,11646,11/03/2020
Blue Mountain Homes Ltd,Private Contractors,32749.28,11/03/2020
Blue Mountain Homes Ltd,Private Contractors,27970.86,30/03/2020
Blue Mountain Homes Ltd,Private Contractors,18195.43,27/03/2020
Blue Mountain Homes Ltd,Private Contractors,16082.57,27/03/2020
Blue Mountain Homes Ltd,Private Contractors,16082.57,27/03/2020
Blue Mountain Homes Ltd,Private Contractors,30636.43,27/03/2020
Blue Mountain Homes Ltd,Private Contractors,26166.29,30/03/2020
BLUE OPAL LTD T/A THE MEADOWS&&SSARO5335,Residential,4838.96,09/03/2020
BLUEWOOD RECRUITMENT LTD&&ISHC3933,Home Care / Domiciliary,8762.76,20/03/2020
REDACTED PERSONAL DATA,Recharge of Pooled Transp Cost,541.82,27/03/2020
REDACTED PERSONAL DATA,R&M of Vehicles-Non Contract,795.44,09/03/2020
Bolinda UK,Books,1318.26,12/03/2020
Bolinda UK,Books,1562.6,12/03/2020
Bolinda UK,Books,527.34,04/03/2020
Bolinda UK,Books,1132.86,20/03/2020
Bolinda UK,Books,2325.58,20/03/2020
Bolinda UK,Books,1623.17,26/03/2020
Bolinda UK,Books,1386.29,12/03/2020
Bolinda UK,Books,623.22,27/03/2020
Bolinda UK,Books,1548.55,27/03/2020
Bolinda UK,Books,3387.92,27/03/2020
Bolinda UK,Books,943.45,27/03/2020
Bolinda UK,Books,1373.26,27/03/2020
Bolinda UK,Books,7304.29,31/03/2020
Bolinda UK,Books,2586,31/03/2020
Bolinda UK,Books,2903.46,31/03/2020
Book a Cab Ltd,S.E.N. Taxi Hire,1192,27/03/2020
Borough of Charnwood Council,Supported Living,906.48,27/03/2020
Borough of Charnwood Council,Personal Accounts - Other,1852.59,12/03/2020
Bosworth Academy,Payment to Ext SEN Providers,11324,05/03/2020
Bosworth Academy,Payment to Ext SEN Providers,11764,27/03/2020
Bosworth Academy,Payment to Ext SEN Providers,11764,31/03/2020
BOSWORTH ACADEMY (BA SERVICES)&&EYRS1743,Grants,18218.4,27/03/2020
Bottesford CE Primary School Academy,Payment to Ext SEN Providers,2673,31/03/2020
Bottesford CE Primary School Academy,Payment to Ext SEN Providers,2673,27/03/2020
BOTTESFORD PRE SCHOOL PLAYGROUP&&EYRS1102,Grants,21499.2,27/03/2020
Boughton Engineering Ltd,R&M of Vehicles-Non Contract,511.04,13/03/2020
Bournemouth Convention Bureau Ltd,Training Expenses,3710,27/03/2020
BRADGATE CHILDCARE KARA UNWIN&&EYRS2038,Grants,10986,27/03/2020
BRADGATE EDUCATION PARTNERSHIP EASTFIELD PRIMARY SCHOOL TIDDLYWINKS&&EYRS1353,Grants,18591.6,27/03/2020
Bradgate Education Partnership Seagrave Village Primary School,Payment to Ext SEN Providers,1235,31/03/2020
Bradgate Education Partnership Seagrave Village Primary School,Payment to Ext SEN Providers,1235,27/03/2020
Bradgate Education Partnership T/A Gaddesby Primary School,Payment to Ext SEN Providers,990,31/03/2020
Bradgate Education Partnership T/A Gaddesby Primary School,Payment to Ext SEN Providers,1536,31/03/2020
Bradgate Education Partnership T/A Gaddesby Primary School,Payment to Ext SEN Providers,1536,27/03/2020
Bradgate Education Partnership T/A Great Dalby Primary School,Payment to Ext SEN Providers,1536,31/03/2020
Bradgate Education Partnership T/A Great Dalby Primary School,Payment to Ext SEN Providers,1536,27/03/2020
REDACTED PERSONAL DATA,S.E.N. Taxi Hire,675,27/03/2020
REDACTED PERSONAL DATA,S.E.N. Taxi Hire,950,05/03/2020
Breedon Hall Ltd,Other Recoverable Charges,1620,30/03/2020
BRIARS & ROSE LODGE&&SSAROE1126,Residential,-1932,09/03/2020
BRIARS & ROSE LODGE&&SSAROE1126,Residential,2908,09/03/2020
BRIARS & ROSE LODGE&&SSAROE1126,Residential,-1932,09/03/2020
BRIARS & ROSE LODGE&&SSAROE1126,Residential,2908,09/03/2020
BRIARS & ROSE LODGE&&SSAROE1126,Residential,-1932,09/03/2020
BRIARS & ROSE LODGE&&SSAROE1126,Residential,2908,09/03/2020
BRIARS & ROSE LODGE&&SSAROE1126,Residential,-966,09/03/2020
BRIARS & ROSE LODGE&&SSAROE1126,Residential,-1932,09/03/2020
BRIARS & ROSE LODGE&&SSAROE1126,Residential,15994,09/03/2020
BRIARS & ROSE LODGE&&SSAROE1126,Residential,-1932,09/03/2020
BRIARS & ROSE LODGE&&SSAROE1126,Residential,-1932,09/03/2020
BRIARS & ROSE LODGE&&SSAROE1126,Residential,-1932,09/03/2020
BRIARS & ROSE LODGE&&SSAROE1126,Residential,-1932,09/03/2020
BRIARS & ROSE LODGE&&SSAROE1126,Residential,13604.8,09/03/2020
BRIARS & ROSE LODGE&&SSAROE1126,Residential,7940,09/03/2020
BRIARS & ROSE LODGE&&SSAROE1126,Residential,-1932,09/03/2020
BRIARS & ROSE LODGE&&SSAROE1126,Residential,3073.43,09/03/2020
BRIARS & ROSE LODGE&&SSAROE1126,Residential,-1932,09/03/2020
BRIARS & ROSE LODGE&&SSAROE1126,Residential,2908,09/03/2020
BRIARS & ROSE LODGE&&SSAROE1126,Residential,-1932,09/03/2020
BRIARS & ROSE LODGE&&SSAROE1126,Residential,2908,09/03/2020
BRIARS&&SSAROE425,Residential,-4500.8,09/03/2020
BRIARS&&SSAROE425,Residential,-4500.8,09/03/2020
BRIARS&&SSAROE425,Residential,-1376.14,09/03/2020
BRIARS&&SSAROE425,Residential,-4500.8,09/03/2020
BRIARS&&SSAROE425,Residential,-966,09/03/2020
BRIARS&&SSAROE425,Residential,-4500.8,09/03/2020
BRIARS&&SSAROE425,Residential,31988,09/03/2020
BRIARS&&SSAROE425,Residential,-4500.8,09/03/2020
BRIARS&&SSAROE425,Residential,-4500.8,09/03/2020
BRIARS&&SSAROE425,Residential,-4500.8,09/03/2020
BRIARS&&SSAROE425,Residential,-4500.8,09/03/2020
BRIARS&&SSAROE425,Residential,9806.04,09/03/2020
BRIARS&&SSAROE425,Residential,5816,09/03/2020
BRIARS&&SSAROE425,Residential,-4500.8,09/03/2020
BRIARS&&SSAROE425,Residential,34896,09/03/2020
BRIARS&&SSAROE425,Residential,-4500.8,09/03/2020
BRIARS&&SSAROE425,Residential,-4500.8,09/03/2020
Bridge,Grants,5000,10/03/2020
Bridgeall Libraries Ltd,Books,20340,26/03/2020
BRIGHT INTERGRATED CARE LTD&&ISHC3324,Home Care / Domiciliary,21878.63,20/03/2020
Brightsparks Arts In Mental Health Group,Grants,1500,24/03/2020
BRIGHT SPARKS DAY NURSERY&&EYRS1385,Grants,665.55,27/03/2020
BRIGHT SPARKS DAY NURSERY&&EYRS1385,Grants,16713,27/03/2020
Bristow & Sutor,Minimum Cost Contracts,1498.17,23/03/2020
Bristow & Sutor,Minimum Cost Contracts,681.58,03/03/2020
Bristow & Sutor,Minimum Cost Contracts,649.8,11/03/2020
Bristow & Sutor,Minimum Cost Contracts,509.02,24/03/2020
BRITANNIA FIELDS PLAYGROUP&&EYRS1387,Grants,3346.93,27/03/2020
BRITANNIA FIELDS PLAYGROUP&&EYRS1387,Grants,19063.43,27/03/2020
British Telecom Plc,IT Equipment,581.11,11/03/2020
BROADLANDS RESIDENTIAL CARE HOME&&SARO8403,Residential,2140,09/03/2020
BROADOAK GRANGE RESIDENTIAL HOME&&SSAROE40338,Residential,1737,09/03/2020
BROADOAK GRANGE RESIDENTIAL HOME&&SSAROE40338,Residential,20844,09/03/2020
BROADOAK GRANGE RESIDENTIAL HOME&&SSAROE40338,Residential,1571.57,09/03/2020
BROADOAK GRANGE RESIDENTIAL HOME&&SSAROE40338,Residential,-2233.29,09/03/2020
BROADOAK LODGE&&SSAROE66479,Residential,-22052.6,09/03/2020
BROADOAK LODGE&&SSAROE66479,Residential,23752,09/03/2020
BROADOAK LODGE&&SSAROE66479,Residential,-24272.6,09/03/2020
BROADOAK LODGE&&SSAROE66479,Residential,26068,09/03/2020
BROADOAK LODGE&&SSAROE66479,Residential,30700,09/03/2020
BROADOAK LODGE&&SSAROE66479,Residential,-28712.6,09/03/2020
BROADOAK LODGE&&SSAROE66479,Residential,168850,09/03/2020
BROADOAK LODGE&&SSAROE66479,Residential,-14356.3,09/03/2020
BROADOAK LODGE&&SSAROE66479,Residential,-28712.6,09/03/2020
BROADOAK LODGE&&SSAROE66479,Residential,-1744.29,09/03/2020
BROADOAK LODGE&&SSAROE66479,Residential,4135.71,09/03/2020
BROADOAK LODGE&&SSAROE66479,Residential,-28712.6,09/03/2020
BROADOAK LODGE&&SSAROE66479,Residential,-30298.32,09/03/2020
BROADOAK LODGE&&SSAROE66479,Residential,-28712.6,09/03/2020
BROADOAK LODGE&&SSAROE66479,Residential,-951.43,09/03/2020
BROADOAK LODGE&&SSAROE66479,Residential,992.57,09/03/2020
BROADOAK LODGE&&SSAROE66479,Residential,-28712.6,09/03/2020
BROADOAK LODGE&&SSAROE66479,Residential,-1189.29,09/03/2020
BROADOAK LODGE&&SSAROE66479,Residential,1240.71,09/03/2020
BROADOAK LODGE&&SSAROE66479,Residential,37848,09/03/2020
BROADOAK LODGE&&SSAROE66479,Residential,-22052.6,09/03/2020
BROADOAK LODGE&&SSAROE66479,Residential,23752,09/03/2020
BROADOAK LODGE&&SSAROE66479,Residential,-1585.71,09/03/2020
BROADOAK LODGE&&SSAROE66479,Residential,1654.29,09/03/2020
BROADOAK LODGE&&SSAROE66479,Residential,-22052.6,09/03/2020
BROADOAK LODGE&&SSAROE66479,Residential,23752,09/03/2020
BROADOAK LODGE&&SSAROE66479,Residential,-22052.6,09/03/2020
BROADOAK LODGE&&SSAROE66479,Residential,23752,09/03/2020
BROAD STREET PLAYGROUP&&EYRS1388,Grants,18971.63,27/03/2020
BROAD STREET PLAYGROUP&&EYRS1388,Grants,-17717.74,27/03/2020
BROAD STREET PLAYGROUP&&EYRS1388,Grants,20979.49,27/03/2020
Brocks Hill Primary School Academy,Payment to Ext SEN Providers,1803,31/03/2020
Brocks Hill Primary School Academy,Payment to Ext SEN Providers,1803,27/03/2020
Brocks Hill Primary School Academy,Children&Families Spprt Servs,640,13/03/2020
BROOKE HOUSE DAY SCHOOL&&EYRS1660,Grants,1329.9,24/03/2020
BROOKE HOUSE DAY SCHOOL&&EYRS1660,Grants,5067.6,24/03/2020
BROOK HOUSE&&SSAROE40313,Residential,7820,09/03/2020
Brooksby Melton College,Payment to Ext SEN Providers,43545.87,30/03/2020
Brooksby Melton College,Rent,22247.41,11/03/2020
Brookvale Groby Learning Trust (Groby Community College),Payment to Ext SEN Providers,4359,05/03/2020
Brookvale Groby Learning Trust (Groby Community College),Payment to Ext SEN Providers,4941,27/03/2020
Brookvale Groby Learning Trust (Groby Community College),Payment to Ext SEN Providers,4941,31/03/2020
Brookvale High School Academy,Payment to Ext SEN Providers,7869,05/03/2020
Brookvale High School Academy,Payment to Ext SEN Providers,6877,27/03/2020
Brookvale High School Academy,Payment to Ext SEN Providers,6877,31/03/2020
BROOKVALE&&SSAROE56,Residential,2531.96,09/03/2020
Broom Leys Academy,Children&Families Spprt Servs,640,18/03/2020
Broom Leys Academy,Payment to Ext SEN Providers,6806,31/03/2020
Broom Leys Academy,Payment to Ext SEN Providers,6806,27/03/2020
Browne Jacobson Llp,Advertising,4803.78,30/03/2020
Browne Jacobson Llp,Advertising,1155,30/03/2020
Browne Jacobson Llp,Advertising,1182.6,30/03/2020
Brownlow School Academy,Payment to Ext SEN Providers,4605,31/03/2020
Brownlow School Academy,Payment to Ext SEN Providers,4605,27/03/2020
REDACTED PERSONAL DATA,Private Contractors,15739.16,09/03/2020
REDACTED PERSONAL DATA,Residential,15739.16,09/03/2020
BS Project Services Ltd,Agency Staff,798.86,13/03/2020
BS Project Services Ltd,Oracle Payroll,798.86,13/03/2020
BS Project Services Ltd,Agency Staff,910.46,20/03/2020
BS Project Services Ltd,Oracle Payroll,910.46,20/03/2020
BS Project Services Ltd,Agency Staff,939.84,20/03/2020
BS Project Services Ltd,Oracle Payroll,939.84,20/03/2020
BS Project Services Ltd,Agency Staff,869.35,27/03/2020
BS Project Services Ltd,Oracle Payroll,869.35,27/03/2020
BS Project Services Ltd,Agency Staff,939.84,27/03/2020
BS Project Services Ltd,Oracle Payroll,939.84,27/03/2020
BS Project Services Ltd,Oracle Payroll,704.88,27/03/2020
BS Project Services Ltd,Oracle Payroll,916.34,27/03/2020
BUBBLES ACTIVE PLAY AND BLUE BUBBLES PRE-SCHOOL LTD&&EYRS497949,Grants,38208.86,27/03/2020
BUCKMINSTER PRE SCHOOL&&EYRSEXMT0076,Grants,1220.47,27/03/2020
BUCKMINSTER PRE SCHOOL&&EYRSEXMT0076,Grants,6642,27/03/2020
Bucks Net Services Ltd,Bank Charges,787.99,03/03/2020
BUPA CARE HOMES T/A THE SPRNGS CARE HOME&&SARO3407,Residential,2216,09/03/2020
Burbage Community Library,Furniture,799.2,19/03/2020
BURBAGE HOMECARE LTD&&ISHCHC455,Home Care / Domiciliary,907.24,20/03/2020
BURBAGE HOMECARE LTD&&ISHCHC455,Home Care / Domiciliary,11094.39,20/03/2020
BURBAGE PRESCHOOL&&EYRS2529002,Grants,814.92,27/03/2020
BURBAGE PRESCHOOL&&EYRS2529002,Grants,13630.56,27/03/2020
BURTON ON THE WOLDS PRE SCHOOL&&EYRS1640,Grants,572.17,27/03/2020
BURTON ON THE WOLDS PRE SCHOOL&&EYRS1640,Grants,11355.6,27/03/2020
BUSH BABIES CHILDRENS NURSERIES LTD T/A LILAC BUSH NURSERY&&EYRS1739,Grants,5151.44,27/03/2020
BUSH BABIES CHILDRENS NURSERIES LTD T/A LILAC BUSH NURSERY&&EYRS1739,Grants,42347.34,27/03/2020
BUSY BEES AT BITTESWELL MONTESSORI NURSERY&&EYRS1806,Grants,6528.71,27/03/2020
BUSY BEES AT BITTESWELL MONTESSORI NURSERY&&EYRS1806,Grants,45866.34,27/03/2020
BUSY BEES AT MARKET HARBOROUGH&&EYRS1656,Grants,-967.2,27/03/2020
BUSY BEES AT MARKET HARBOROUGH&&EYRS1656,Grants,26980.2,27/03/2020
Busy Bees Childrens Day Nursery,Other Transfer Payments,602.33,02/03/2020
BUSY BEES DAY NURSERY AT LOUGHBOROUGH&&EYRS1334,Grants,-785.85,27/03/2020
BUSY BEES DAY NURSERY AT LOUGHBOROUGH&&EYRS1334,Grants,19678.56,27/03/2020
BUSY BEES DAY NURSERY&&EYRS1599,Grants,1725.5,27/03/2020
BUSY BEES DAY NURSERY&&EYRS1599,Grants,56671.56,27/03/2020
BUSY BEES DAY NURSERY&&EYRS1617,Grants,1039.01,27/03/2020
BUSY BEES DAY NURSERY&&EYRS1617,Grants,45448.98,27/03/2020
BUSY BUGS&&EYRS1661,Grants,3972.21,27/03/2020
BUSY BUGS&&EYRS1661,Grants,25646.4,27/03/2020
By The Bridge,Other Agency & Cont Services,4424.59,31/03/2020
By The Bridge,Other Agency & Cont Services,3878.37,31/03/2020
By The Bridge,Other Agency & Cont Services,4295.71,31/03/2020
By The Bridge,Other Agency & Cont Services,3102.4,31/03/2020
By The Bridge,Other Agency & Cont Services,4424.59,31/03/2020
By The Bridge,Other Agency & Cont Services,6636.88,31/03/2020
By The Bridge,Other Agency & Cont Services,4424.59,31/03/2020
By The Bridge,Other Agency & Cont Services,6636.88,31/03/2020
By The Bridge,Private Contractors,3627,31/03/2020
By The Bridge,Other Agency & Cont Services,4082.48,31/03/2020
By The Bridge,Other Agency & Cont Services,4202.71,31/03/2020
By The Bridge,Other Agency & Cont Services,4082.48,31/03/2020
By The Bridge,Other Agency & Cont Services,4082.48,31/03/2020
By The Bridge,Other Agency & Cont Services,2961.16,31/03/2020
By The Bridge,Other Agency & Cont Services,3449.86,31/03/2020
By The Bridge,Private Contractors,3156.91,31/03/2020
By The Bridge,Other Agency & Cont Services,6437.77,31/03/2020
By The Bridge,Other Agency & Cont Services,4424.59,31/03/2020
By The Bridge,Other Agency & Cont Services,3990.9,31/03/2020
CADEBY LANE STEPPING STONES&&EYRS1609,Grants,25730.26,27/03/2020
Caldecott Foundation Ltd,Private Contractors,13900,05/03/2020
Caldecott Foundation Ltd,Private Contractors,15389.29,05/03/2020
Caldecott Foundation Ltd,Private Contractors,14396.42,23/03/2020
Caldecott Foundation Ltd,Private Contractors,15389.29,31/03/2020
Calor Gas Ltd,R & M of Buildings,632.55,11/03/2020
Cambian Childcare Ltd,Private Contractors,13257.06,11/03/2020
Cambian Childcare Ltd,Private Contractors,18435.59,11/03/2020
Cambian Childcare Ltd,Private Contractors,13257.06,11/03/2020
Cambian Childcare Ltd,Private Contractors,22578.53,11/03/2020
Cambian Childcare Ltd,Private Contractors,22578.53,11/03/2020
Cambian Childcare Ltd,Private Contractors,14171.34,30/03/2020
Cambian Childcare Ltd,Private Contractors,19707.01,30/03/2020
Cambian Childcare Ltd,Private Contractors,14171.34,30/03/2020
Cambian Childcare Ltd,Private Contractors,24135.67,30/03/2020
Cambian Childcare Ltd,Private Contractors,24135.67,30/03/2020
CAMDEN SOCIETY&&CLCD3181173310,Day / CLC Services,8683.72,20/03/2020
Cameron Homes Ltd,Reserve Debtors,1000,17/03/2020
Capstone Foster Care (Midlands) Ltd,Other Agency & Cont Services,3327.01,31/03/2020
Capstone Foster Care (Midlands) Ltd,Other Agency & Cont Services,3595.65,31/03/2020
Capstone Foster Care (Midlands) Ltd,Other Agency & Cont Services,3293,31/03/2020
Capstone Foster Care (Midlands) Ltd,Other Agency & Cont Services,3559.73,31/03/2020
Capstone Foster Care (Midlands) Ltd,Other Agency & Cont Services,3428.6,31/03/2020
Capstone Foster Care (Midlands) Ltd,Other Agency & Cont Services,3428.51,31/03/2020
Capstone Foster Care (Midlands) Ltd,Other Agency & Cont Services,3396.45,31/03/2020
Capstone Foster Care (Midlands) Ltd,Other Agency & Cont Services,3595.65,31/03/2020
Capstone Foster Care (Midlands) Ltd,Other Agency & Cont Services,3595.65,31/03/2020
Capstone Foster Care (Midlands) Ltd,Other Agency & Cont Services,3428.6,31/03/2020
Capstone Foster Care (Midlands) Ltd,Other Agency & Cont Services,3378.87,31/03/2020
Capstone Foster Care (Midlands) Ltd,Other Agency & Cont Services,3394.95,31/03/2020
CARE 24 7 (BODNANT HOUSE)&&SSARO3231,Residential,22649.88,09/03/2020
CARE 24 7 LEICESTER LTD&&SSARO3330,Residential,3520,09/03/2020
CARE 4 U (LEICESTERSHIRE) LTD&&ISHC2529,Home Care / Domiciliary,1344.84,20/03/2020
CARE 4 U (LEICESTERSHIRE) LTD&&ISHC2529,Home Care / Domiciliary,1086.59,20/03/2020
CARE 4 U (LEICESTERSHIRE) LTD&&ISHC2529,Home Care / Domiciliary,519.69,20/03/2020
CARE 4 U (LEICESTERSHIRE) LTD&&ISHC2529,Home Care / Domiciliary,1029.37,20/03/2020
CARE 4 U (LEICESTERSHIRE) LTD&&ISHC2529,Home Care / Domiciliary,20279.25,20/03/2020
CARE 4 U (LEICESTERSHIRE) LTD&&ISHC2529,Home Care / Domiciliary,830.51,20/03/2020
CARE AT HOME (MIDLANDS) LTD&&ISHC2753,Home Care / Domiciliary,537.72,20/03/2020
CARE AT HOME (MIDLANDS) LTD&&ISHC2753,Home Care / Domiciliary,571.62,20/03/2020
CARE AT HOME (MIDLANDS) LTD&&ISHC2753,Home Care / Domiciliary,589.74,20/03/2020
CARE AT HOME (MIDLANDS) LTD&&ISHC2753,Home Care / Domiciliary,546.47,20/03/2020
CARE AT HOME (MIDLANDS) LTD&&ISHC2753,Home Care / Domiciliary,918.1,20/03/2020
CARE AT HOME (MIDLANDS) LTD&&ISHC2753,Home Care / Domiciliary,2063.71,20/03/2020
CARE AT HOME (MIDLANDS) LTD&&ISHC2753,Home Care / Domiciliary,604.32,20/03/2020
CARE AT HOME (MIDLANDS) LTD&&ISHC2753,Home Care / Domiciliary,676.84,20/03/2020
CARE AT HOME (MIDLANDS) LTD&&ISHC2753,Home Care / Domiciliary,1680.79,20/03/2020
CARE AT HOME (MIDLANDS) LTD&&ISHC2753,Home Care / Domiciliary,-571.62,20/03/2020
CARE AT HOME (MIDLANDS) LTD&&ISHC2753,Home Care / Domiciliary,57905.99,20/03/2020
CARE AT HOME (MIDLANDS) LTD&&ISHC2753,Home Care / Domiciliary,520.76,20/03/2020
CARE AT HOME (MIDLANDS) LTD&&ISHC2753,Home Care / Domiciliary,688.3,20/03/2020
CARELINK HEALTHCARE PROFESSIONALS LTD&&ISHC3871,Home Care / Domiciliary,1968.37,20/03/2020
CARELINK HEALTHCARE PROFESSIONALS LTD&&ISHC3871,Home Care / Domiciliary,563.1,20/03/2020
CARELINK HEALTHCARE PROFESSIONALS LTD&&ISHC3871,Home Care / Domiciliary,28603.96,20/03/2020
CARELINK HEALTHCARE PROFESSIONALS LTD&&ISHC3871,Home Care / Domiciliary,6961.09,20/03/2020
CARELINK HEALTHCARE PROFESSIONALS LTD&&ISHC3871,Home Care / Domiciliary,1495.97,20/03/2020
Caremark Hinckley Bosworth & Blaby,Private Contractors,1462.5,25/03/2020
CAREMARK HINCKLEY BOSWORTH & BLABY&&ISHC3015,Home Care / Domiciliary,1379.48,20/03/2020
CAREMARK HINCKLEY BOSWORTH & BLABY&&ISHC3015,Home Care / Domiciliary,615.77,20/03/2020
CAREMARK HINCKLEY BOSWORTH & BLABY&&ISHC3015,Home Care / Domiciliary,931.28,20/03/2020
CAREMARK HINCKLEY BOSWORTH & BLABY&&ISHC3015,Home Care / Domiciliary,882.39,20/03/2020
CAREMARK HINCKLEY BOSWORTH & BLABY&&ISHC3015,Home Care / Domiciliary,26986.41,20/03/2020
CAREMARK HINCKLEY BOSWORTH & BLABY&&ISHC3015,Home Care / Domiciliary,903.72,20/03/2020
CAREMARK HINCKLEY BOSWORTH & BLABY&&ISHC3015,Home Care / Domiciliary,825.94,20/03/2020
CARE @ RAINBOWS END&&SSARO3401,Residential,881.71,09/03/2020
CARE @ RAINBOWS END&&SSARO3401,Residential,1322.57,09/03/2020
CARE @ RAINBOWS END&&SSARO3401,Residential,881.71,09/03/2020
CARERS TRUST EAST MIDLANDS&&ISHC5076,Voluntary Associations,20540,27/03/2020
Care Today Children Services,Children&Families Spprt Servs,640,18/03/2020
CARING HANDS DOMICILIARY CARE LTD&&ISHC3229,Home Care / Domiciliary,508.64,20/03/2020
CARING HANDS DOMICILIARY CARE LTD&&ISHC3229,Home Care / Domiciliary,1073.93,20/03/2020
CARING HANDS DOMICILIARY CARE LTD&&ISHC3229,Home Care / Domiciliary,1357.43,20/03/2020
CARING HANDS DOMICILIARY CARE LTD&&ISHC3229,Home Care / Domiciliary,1314.95,20/03/2020
CARING HANDS DOMICILIARY CARE LTD&&ISHC3229,Home Care / Domiciliary,850.1,20/03/2020
CARING HANDS DOMICILIARY CARE LTD&&ISHC3229,Home Care / Domiciliary,2665.5,20/03/2020
CARING HANDS DOMICILIARY CARE LTD&&ISHC3229,Home Care / Domiciliary,1359.03,20/03/2020
CARING HANDS DOMICILIARY CARE LTD&&ISHC3229,Home Care / Domiciliary,813.45,20/03/2020
CARING HANDS DOMICILIARY CARE LTD&&ISHC3229,Home Care / Domiciliary,1159.24,20/03/2020
CARING HANDS DOMICILIARY CARE LTD&&ISHC3229,Home Care / Domiciliary,2292.06,20/03/2020
CARING HANDS DOMICILIARY CARE LTD&&ISHC3229,Home Care / Domiciliary,877.22,20/03/2020
CARING HANDS DOMICILIARY CARE LTD&&ISHC3229,Home Care / Domiciliary,98469.27,20/03/2020
CARING HANDS DOMICILIARY CARE LTD&&ISHC3229,Home Care / Domiciliary,791.57,20/03/2020
CARING HANDS DOMICILIARY CARE LTD&&ISHC3229,Home Care / Domiciliary,940.44,20/03/2020
CARING HANDS DOMICILIARY CARE LTD&&ISHC3229,Home Care / Domiciliary,859.46,20/03/2020
CARING HANDS LEICESTER LTD&&ISHC3209,Home Care / Domiciliary,519.69,20/03/2020
CARING HANDS LEICESTER LTD&&ISHC3209,Home Care / Domiciliary,2746.76,20/03/2020
CARING HANDS LEICESTER LTD&&ISHC3209,Home Care / Domiciliary,1237.95,20/03/2020
CARING HANDS LEICESTER LTD&&ISHC3209,Home Care / Domiciliary,905.52,20/03/2020
CARING HANDS LEICESTER LTD&&ISHC3209,Home Care / Domiciliary,825.3,20/03/2020
CARING HANDS LEICESTER LTD&&ISHC3209,Home Care / Domiciliary,1218.7,20/03/2020
CARING HANDS LEICESTER LTD&&ISHC3209,Home Care / Domiciliary,1007.44,20/03/2020
CARING HANDS LEICESTER LTD&&ISHC3209,Home Care / Domiciliary,1114.24,20/03/2020
CARING HANDS LEICESTER LTD&&ISHC3209,Home Care / Domiciliary,1249.26,20/03/2020
CARING HANDS LEICESTER LTD&&ISHC3209,Home Care / Domiciliary,-1667.82,20/03/2020
CARING HANDS LEICESTER LTD&&ISHC3209,Home Care / Domiciliary,1445.64,20/03/2020
CARING HANDS LEICESTER LTD&&ISHC3209,Home Care / Domiciliary,-1538.46,20/03/2020
CARING HANDS LEICESTER LTD&&ISHC3209,Home Care / Domiciliary,-727.68,20/03/2020
CARING HANDS LEICESTER LTD&&ISHC3209,Home Care / Domiciliary,3205.31,20/03/2020
CARING HANDS LEICESTER LTD&&ISHC3209,Home Care / Domiciliary,2051.28,20/03/2020
CARING HANDS LEICESTER LTD&&ISHC3209,Home Care / Domiciliary,1015.91,20/03/2020
CARING HANDS LEICESTER LTD&&ISHC3209,Home Care / Domiciliary,776.16,20/03/2020
CARING HANDS LEICESTER LTD&&ISHC3209,Home Care / Domiciliary,1634.76,20/03/2020
CARING HANDS LEICESTER LTD&&ISHC3209,Home Care / Domiciliary,1100.4,20/03/2020
CARING HANDS LEICESTER LTD&&ISHC3209,Home Care / Domiciliary,31364.24,20/03/2020
CARING HANDS LEICESTER LTD&&ISHC3209,Home Care / Domiciliary,4639.39,20/03/2020
CARING HANDS LEICESTER LTD&&ISHC3209,Home Care / Domiciliary,1681.68,20/03/2020
CARING HANDS LEICESTER LTD&&ISHC3209,Home Care / Domiciliary,-1566.86,20/03/2020
Carlton Academy,Children&Families Spprt Servs,620,13/03/2020
Carlton Construction Services,Suspense,10195.5,19/03/2020
Carlton Construction Services,Suspense,9045.6,13/03/2020
Carlton Construction Services,Suspense,8132.1,20/03/2020
Carlton Construction Services,Suspense,8047.8,27/03/2020
Carlton Construction Services,Suspense,11322.6,27/03/2020
Carlton Construction Services,Suspense,7055.7,27/03/2020
REDACTED PERSONAL DATA,Grants,2361.6,27/03/2020
REDACTED PERSONAL DATA,Grants,1933.2,27/03/2020
REDACTED PERSONAL DATA,Grants,900,27/03/2020
REDACTED PERSONAL DATA,Grants,19811.2,27/03/2020
REDACTED PERSONAL DATA,Grants,544.06,24/03/2020
REDACTED PERSONAL DATA,Grants,-544.06,24/03/2020
REDACTED PERSONAL DATA,Private Contractors,2940,13/03/2020
REDACTED PERSONAL DATA,Private Contractors,1470,19/03/2020
Casaegis Ltd,Private Contractors,5520,13/03/2020
Casaegis Ltd,Private Contractors,4800,13/03/2020
Casaegis Ltd,Private Contractors,5520,13/03/2020
Casaegis Ltd,Private Contractors,2760,30/03/2020
Casaegis Ltd,Private Contractors,2400,30/03/2020
Casaegis Ltd,Private Contractors,2760,13/03/2020
Casaegis Ltd,Other Agency & Cont Services,3540,13/03/2020
Casaegis Ltd,Other Agency & Cont Services,3540,27/03/2020
Casaegis Ltd,Private Contractors,2760,27/03/2020
Casaegis Ltd,Private Contractors,2760,27/03/2020
Castle Donington College Academy,Payment to Ext SEN Providers,3470,05/03/2020
Castle Donington College Academy,Payment to Ext SEN Providers,3932,27/03/2020
Castle Donington College Academy,Payment to Ext SEN Providers,3932,31/03/2020
CASTLE LANE DAY NURSERY&&EYRS1393,Grants,61162.92,27/03/2020
CASTLE PLAYGROUP&&EYRS1394,Grants,18484.2,27/03/2020
Castle Rock High Academy,Payment to Ext SEN Providers,8403,05/03/2020
Castle Rock High Academy,Payment to Ext SEN Providers,9523,27/03/2020
Castle Rock High Academy,Payment to Ext SEN Providers,9523,31/03/2020
CASTLEROCK RECRUITMENT GROUP LTD&&ISHC3232,Home Care / Domiciliary,555.81,20/03/2020
CASTLEROCK RECRUITMENT GROUP LTD&&ISHC3232,Home Care / Domiciliary,947.13,20/03/2020
CASTLEROCK RECRUITMENT GROUP LTD&&ISHC3232,Home Care / Domiciliary,1389.1,20/03/2020
CASTLEROCK RECRUITMENT GROUP LTD&&ISHC3232,Home Care / Domiciliary,1130.18,20/03/2020
CASTLEROCK RECRUITMENT GROUP LTD&&ISHC3232,Home Care / Domiciliary,540.21,20/03/2020
CASTLEROCK RECRUITMENT GROUP LTD&&ISHC3232,Home Care / Domiciliary,2513.03,20/03/2020
CASTLEROCK RECRUITMENT GROUP LTD&&ISHC3232,Home Care / Domiciliary,3443.13,20/03/2020
CASTLEROCK RECRUITMENT GROUP LTD&&ISHC3232,Home Care / Domiciliary,1196.3,20/03/2020
CASTLEROCK RECRUITMENT GROUP LTD&&ISHC3232,Home Care / Domiciliary,868.23,20/03/2020
CASTLEROCK RECRUITMENT GROUP LTD&&ISHC3232,Home Care / Domiciliary,769.56,20/03/2020
CASTLEROCK RECRUITMENT GROUP LTD&&ISHC3232,Home Care / Domiciliary,687.25,20/03/2020
CASTLEROCK RECRUITMENT GROUP LTD&&ISHC3232,Home Care / Domiciliary,752.85,20/03/2020
CASTLEROCK RECRUITMENT GROUP LTD&&ISHC3232,Home Care / Domiciliary,552.09,20/03/2020
CASTLEROCK RECRUITMENT GROUP LTD&&ISHC3232,Home Care / Domiciliary,1364.68,20/03/2020
CASTLE VIEW DAY NURSERY&&EYRS1758,Grants,31881.67,27/03/2020
Catch 22 Charity Ltd,Other Transfer Payments,3594,06/03/2020
CATERPILLA DAY NURSERY&&EYRS1708,Grants,-698.26,27/03/2020
CATERPILLA DAY NURSERY&&EYRS1708,Grants,29141.82,27/03/2020
CATERPILLAR PRE SCHOOL&&EYRS1789,Grants,2076.19,27/03/2020
CATERPILLAR PRE SCHOOL&&EYRS1789,Grants,26493.36,27/03/2020
REDACTED PERSONAL DATA,Residential,2280,10/03/2020
Catmose College,Other Local Authorities,6290.63,17/03/2020
Catmose College,Other Local Authorities,2592.12,17/03/2020
CATON HOUSE NURSING & RESIDENTIAL HOME&&SARO9040,Residential,4337.76,09/03/2020
CATON HOUSE NURSING & RESIDENTIAL HOME&&SARO9040,Residential,4027.92,09/03/2020
CEDAR HOUSE CARE HOME LTD&&SSAROE40413,Residential,5920,09/03/2020
Cedars Academy Lionheart Academies Trust,Children&Families Spprt Servs,640,18/03/2020
Cedars Academy Lionheart Academies Trust,Payment to Ext SEN Providers,4018,30/03/2020
Cedars Academy Lionheart Academies Trust,Payment to Ext SEN Providers,4018,27/03/2020
Cedars Academy Lionheart Academies Trust,Payment to Ext SEN Providers,4386,05/03/2020
Cedars Academy Lionheart Academies Trust,Payment to Ext SEN Providers,-3477,27/03/2020
Cedars Academy Lionheart Academies Trust,Payment to Ext SEN Providers,4340,31/03/2020
REDACTED PERSONAL DATA,Grants,15903.72,27/03/2020
Central Coaches Ltd,Home to Sch Trans - Buses,11957.82,13/03/2020
Centrebus Holdings Ltd T/A Hinckley Bus,Minimum Cost Contracts,33529.93,10/03/2020
Centrebus Holdings Ltd T/A Hinckley Bus,Minimum Cost Contracts,3807.08,10/03/2020
Centrebus Ltd,Minimum Cost Contracts,28257.75,20/03/2020
Centrebus Ltd,Minimum Cost Contracts,70065.62,20/03/2020
CHAPEL LANE PLAYGROUP&&EYRSEY562225,Grants,2677.41,27/03/2020
CHAPEL LANE PLAYGROUP&&EYRSEY562225,Grants,15202.8,27/03/2020
Charitable Giving,Personal Accounts - Other,1228.15,12/03/2020
Charles Vig,Other Transfer Payments,810.6,27/03/2020
REDACTED PERSONAL DATA,Grants,4523.4,27/03/2020
REDACTED PERSONAL DATA,Other Agency & Cont Services,1080,02/03/2020
REDACTED PERSONAL DATA,Other Agency & Cont Services,1080,02/03/2020
REDACTED PERSONAL DATA,Grants,959.4,27/03/2020
REDACTED PERSONAL DATA,Grants,1279.2,27/03/2020
Charnwood Arts Therapy Service Ltd,Other Agency & Cont Services,1995,19/03/2020
Charnwood Arts Therapy Service Ltd,Other Agency & Cont Services,1634,27/03/2020
Charnwood Borough Council,Other Recoverable Charges,520,13/03/2020
Charnwood Borough Council,Other Recoverable Charges,2288,27/03/2020
Charnwood Borough Council,Other Recoverable Charges,4992,27/03/2020
CHARNWOOD COLLEGE&&EYRS1392,Grants,45139.92,27/03/2020
CHARNWOOD PARK&&SAROE40270,Residential,-5638.08,09/03/2020
CHARNWOOD PARK&&SAROE40270,Residential,-8018.08,09/03/2020
CHARNWOOD PARK&&SAROE40270,Residential,-8018.08,09/03/2020
CHARNWOOD PARK&&SAROE40270,Residential,8034.08,09/03/2020
CHARNWOOD PARK&&SAROE40270,Residential,-3859.04,09/03/2020
CHARNWOOD PARK&&SAROE40270,Residential,-8018.08,09/03/2020
CHARNWOOD PARK&&SAROE40270,Residential,39823.86,09/03/2020
CHARNWOOD PARK&&SAROE40270,Residential,-8018.08,09/03/2020
CHARNWOOD PARK&&SAROE40270,Residential,853.71,09/03/2020
CHARNWOOD PARK&&SAROE40270,Residential,-8018.08,09/03/2020
CHARNWOOD PARK&&SAROE40270,Residential,-10698.08,09/03/2020
CHARNWOOD PARK&&SAROE40270,Residential,7138.29,09/03/2020
CHARNWOOD PARK&&SAROE40270,Residential,-7824.51,09/03/2020
CHARNWOOD PARK&&SAROE40270,Residential,8618.08,09/03/2020
CHARNWOOD PARK&&SAROE40270,Residential,-1615.01,09/03/2020
CHARNWOOD PARK&&SAROE40270,Residential,4021.86,09/03/2020
CHARNWOOD PARK&&SAROE40270,Residential,-5638.08,09/03/2020
CHARNWOOD PARK&&SAROE40270,Residential,27336.69,09/03/2020
CHARNWOOD PARK&&SAROE40270,Residential,-5638.08,09/03/2020
CHARNWOOD PARK&&SAROE40270,Residential,-5638.08,09/03/2020
Chartwell Trust Care,Private Contractors,17899.96,13/03/2020
Chartwell Trust Care,Other Agency & Cont Services,24567.06,13/03/2020
Chartwell Trust Care,Other Agency & Cont Services,26261.34,31/03/2020
CHARTWELL TRUST CARE PLC&&SSARO2345,Residential,31445.12,09/03/2020
CHARTWELL TRUST CARE PLC&&SSARO2345,Residential,13345.44,09/03/2020
CHEEKY MONKEYS PRE SCHOOL&&EYRS1689,Grants,14593.2,27/03/2020
CHERRE RESIDENTIAL CARE LTD T/A AYEESHA RAJ&&SSAROE40381,Residential,19691.16,09/03/2020
CHERRYTREE CARE LTD&&SSAROE40314,Residential,-14196,09/03/2020
CHERRYTREE CARE LTD&&SSAROE40314,Residential,11960,09/03/2020
CHERRYTREE CARE LTD&&SSAROE40314,Residential,11792.85,09/03/2020
CHERRYTREE CARE LTD&&SSAROE40314,Residential,-1300,09/03/2020
CHERRYTREE CARE LTD&&SSAROE40314,Residential,-14196,09/03/2020
CHERRYTREE CARE LTD&&SSAROE40314,Residential,17735.72,09/03/2020
CHERRYTREE CARE LTD&&SSAROE40314,Residential,11960,09/03/2020
CHERRYTREE CARE LTD&&SSAROE40314,Residential,-14196,09/03/2020
CHERRYTREE CARE LTD&&SSAROE40314,Residential,-5440.85,09/03/2020
CHERRYTREE CARE LTD&&SSAROE40314,Residential,-14196,09/03/2020
CHERRYTREE CARE LTD&&SSAROE40314,Residential,-14196,09/03/2020
CHERRYTREE CARE LTD&&SSAROE40314,Residential,-12617.43,09/03/2020
CHERRYTREE CARE LTD&&SSAROE40314,Residential,-12522.43,09/03/2020
CHERRYTREE CARE LTD&&SSAROE40314,Residential,-11596,09/03/2020
CHERRYTREE CARE LTD&&SSAROE40314,Residential,7044,09/03/2020
CHERRYTREE CARE LTD&&SSAROE40314,Residential,-2232.14,09/03/2020
CHERRYTREE CARE LTD&&SSAROE40314,Residential,14805.86,09/03/2020
CHERRYTREE CARE LTD&&SSAROE40314,Residential,-9096,09/03/2020
CHERRYTREE CARE LTD&&SSAROE40314,Residential,52830,09/03/2020
CHERRYTREE CARE LTD&&SSAROE40314,Residential,-555,09/03/2020
CHERRYTREE CARE LTD&&SSAROE40314,Residential,1158,09/03/2020
CHERRYTREE CARE LTD&&SSAROE40314,Residential,-9096,09/03/2020
CHERRYTREE CARE LTD&&SSAROE40314,Residential,14281.43,09/03/2020
CHERRYTREE CARE LTD&&SSAROE40314,Residential,-11596,09/03/2020
CHERRYTREE CARE LTD&&SSAROE40314,Residential,13631.43,09/03/2020
CHESTNUTS ARNESBY LTD&&SSAROE40279,Residential,2731.84,09/03/2020
CHESTNUTS ARNESBY LTD&&SSAROE40279,Residential,36493.28,09/03/2020
CHESTNUTS ARNESBY LTD&&SSAROE40279,Residential,5590,09/03/2020
CHESTNUTS ARNESBY LTD&&SSAROE40279,Residential,-5590,09/03/2020
Child Care Bureau Ltd,Other Agency & Cont Services,3432.14,31/03/2020
Child Care Bureau Ltd,Other Agency & Cont Services,3387.86,31/03/2020
CHILDREN 1ST AT SHEPSHED&&EYRS1705,Grants,50579.05,27/03/2020
CHILDREN 1ST @ BIRSTALL&&EYRSEY561767,Grants,-1219.09,27/03/2020
CHILDREN 1ST @ BIRSTALL&&EYRSEY561767,Grants,66167.83,27/03/2020
CHILDREN 1ST @ HATHERN &&EYRSEY561772,Grants,742.58,27/03/2020
CHILDREN 1ST @ HATHERN &&EYRSEY561772,Grants,44491.01,27/03/2020
CHILDREN 1ST @ SYSTON&&EYRSEY561773,Grants,-647.18,27/03/2020
CHILDREN 1ST @ SYSTON&&EYRSEY561773,Grants,59014.7,27/03/2020
CHILDRENS CO (LEICESTER) LTD&&EYRS1601,Grants,-2676.75,27/03/2020
CHILDRENS CO (LEICESTER) LTD&&EYRS1601,Grants,-1265.07,27/03/2020
CHILDRENS CO (LEICESTER) LTD&&EYRS1601,Grants,59647.02,27/03/2020
Children's Sensory Therapy,Other Agency & Cont Services,2008.17,17/03/2020
Children's Sensory Therapy,Other Agency & Cont Services,2157,20/03/2020
Children's Sensory Therapy,Other Agency & Cont Services,2988,20/03/2020
Children's Sensory Therapy,Other Agency & Cont Services,4361.67,20/03/2020
Children's Sensory Therapy,Other Agency & Cont Services,703.52,27/03/2020
Children's Sensory Therapy,Other Agency & Cont Services,8797.34,27/03/2020
Childrens Therapy Solutions Ltd,Other Expenditure,1010.32,05/03/2020
Childrens Therapy Solutions Ltd,Other Agency & Cont Services,966.8,06/03/2020
Childrens Therapy Solutions Ltd,Other Agency & Cont Services,984.4,06/03/2020
Childrens Therapy Solutions Ltd,Other Agency & Cont Services,1408.41,06/03/2020
Childrens Therapy Solutions Ltd,Other Agency & Cont Services,1401,27/03/2020
CHILDS PLAY PRE SCHOOL&&EYRS1579,Grants,9220.57,27/03/2020
CHILDS TIME LTD T/A HANDKERCHIEF NURSERY&&EYRS1426,Grants,598.45,27/03/2020
CHILDS TIME LTD T/A HANDKERCHIEF NURSERY&&EYRS1426,Grants,52010.1,27/03/2020
REDACTED PERSONAL DATA,Other Transfer Payments,500,03/03/2020
REDACTED PERSONAL DATA,Other Expenditure,562,10/03/2020
CHOICES FOR LIFE (UK)LTD&&CLCD3323,Day / CLC Services,65500.27,20/03/2020
CHOICES FOR LIFE (UK)LTD&&CLCD3323,Managed/Traditional Services,65500.27,20/03/2020
Christ Church & St Peters CE Primary School Academy,Payment to Ext SEN Providers,6842,31/03/2020
Christ Church & St Peters CE Primary School Academy,Payment to Ext SEN Providers,6842,27/03/2020
Christ Church & St Peters CE Primary School Academy,Payment to Ext SEN Providers,1768,27/03/2020
Christ Church & St Peters CE Primary School Academy,Payment to Ext SEN Providers,7516,31/03/2020
Christ Church & St Peters CE Primary School Academy,Payment to Ext SEN Providers,7516,27/03/2020
Christ Church & St Peters CE Primary School Academy,Payment to Ext SEN Providers,2003,31/03/2020
Christ Church & St Peters CE Primary School Academy,Payment to Ext SEN Providers,2003,27/03/2020
CHURCH HALL PLAYGROUP&&EYRS1399,Grants,32735.64,27/03/2020
Church Hill CE Junior Academy,Payment to Ext SEN Providers,1934,31/03/2020
Church Hill CE Junior Academy,Payment to Ext SEN Providers,1934,27/03/2020
Church Hill Infant School Academy,Payment to Ext SEN Providers,768,31/03/2020
Church Hill Infant School Academy,Payment to Ext SEN Providers,768,27/03/2020
Church Langton Primary School (Academy),Payment to Ext SEN Providers,3075,31/03/2020
Church Langton Primary School (Academy),Payment to Ext SEN Providers,3075,27/03/2020
CIPFA C Co Ltd,Consultants & Specialists,2394,05/03/2020
Circle Taxis Ltd,S.E.N. Taxi Hire,1978.8,05/03/2020
Circle Taxis Ltd,S.E.N. Taxi Hire,3465.6,05/03/2020
Circle Taxis Ltd,S.E.N. Taxi Hire,1869.6,05/03/2020
Circle Taxis Ltd,S.E.N. Taxi Hire,1732.8,05/03/2020
Circle Taxis Ltd,S.E.N. Taxi Hire,1183.2,05/03/2020
Circle Taxis Ltd,Recharge of Pooled Transp Cost,1075.2,05/03/2020
Circle Taxis Ltd,S.E.N. Taxi Hire,2568,05/03/2020
Circle Taxis Ltd,S.E.N. Taxi Hire,1824,05/03/2020
Circle Taxis Ltd,S.E.N. Taxi Hire,1188,05/03/2020
Circle Taxis Ltd,S.E.N. Taxi Hire,2508,05/03/2020
Circle Taxis Ltd,Home to Sch Trans - Buses,2280,05/03/2020
Circle Taxis Ltd,Personal Accounts - Govt Depts,1209.6,05/03/2020
Circle Taxis Ltd,Recharge of Pooled Transp Cost,1209.6,05/03/2020
Circle Taxis Ltd,S.E.N. Taxi Hire,3024,05/03/2020
Circle Taxis Ltd,S.E.N. Taxi Hire,2325.6,05/03/2020
Circle Taxis Ltd,S.E.N. Taxi Hire,2052,05/03/2020
Circle Taxis Ltd,S.E.N. Taxi Hire,1909.2,05/03/2020
Circle Taxis Ltd,S.E.N. Taxi Hire,1900.8,05/03/2020
Circle Taxis Ltd,S.E.N. Taxi Hire,2775.3,05/03/2020
Circle Taxis Ltd,Recharge of Pooled Transp Cost,2016,05/03/2020
Circle Taxis Ltd,S.E.N. Taxi Hire,2671.2,05/03/2020
Circle Taxis Ltd,S.E.N. Taxi Hire,1188,05/03/2020
Circle Taxis Ltd,S.E.N. Taxi Hire,1746,27/03/2020
Circle Taxis Ltd,S.E.N. Taxi Hire,2736,27/03/2020
Circle Taxis Ltd,S.E.N. Taxi Hire,1377.6,27/03/2020
Circle Taxis Ltd,S.E.N. Taxi Hire,1368,27/03/2020
Circle Taxis Ltd,S.E.N. Taxi Hire,1224,27/03/2020
Circle Taxis Ltd,Recharge of Pooled Transp Cost,1075.2,27/03/2020
Circle Taxis Ltd,S.E.N. Taxi Hire,1926,27/03/2020
Circle Taxis Ltd,S.E.N. Taxi Hire,1392,27/03/2020
Circle Taxis Ltd,S.E.N. Taxi Hire,972,27/03/2020
Circle Taxis Ltd,S.E.N. Taxi Hire,1980,27/03/2020
Circle Taxis Ltd,Home to Sch Trans - Buses,1935,27/03/2020
Circle Taxis Ltd,Personal Accounts - Govt Depts,1176,27/03/2020
Circle Taxis Ltd,Recharge of Pooled Transp Cost,1176,27/03/2020
Circle Taxis Ltd,S.E.N. Taxi Hire,2192.4,27/03/2020
Circle Taxis Ltd,S.E.N. Taxi Hire,1846.8,27/03/2020
Circle Taxis Ltd,S.E.N. Taxi Hire,1620,27/03/2020
Circle Taxis Ltd,S.E.N. Taxi Hire,1548,27/03/2020
Circle Taxis Ltd,S.E.N. Taxi Hire,1267.2,27/03/2020
Circle Taxis Ltd,S.E.N. Taxi Hire,2201.1,27/03/2020
Circle Taxis Ltd,Recharge of Pooled Transp Cost,1512,27/03/2020
Circle Taxis Ltd,S.E.N. Taxi Hire,2217.6,27/03/2020
Circle Taxis Ltd,S.E.N. Taxi Hire,972,27/03/2020
Circle Taxis Ltd,S.E.N. Taxi Hire,504,27/03/2020
CITY & COUNTY CARE SERVICES LTD&&ISHCHC486,Home Care / Domiciliary,4009.5,20/03/2020
REDACTED PERSONAL DATA,Recharge of Pooled Transp Cost,1410,27/03/2020
REDACTED PERSONAL DATA,Grants,1820.4,27/03/2020
REDACTED PERSONAL DATA,Grants,3785.4,27/03/2020
REDACTED PERSONAL DATA,Grants,4097.38,27/03/2020
REDACTED PERSONAL DATA,Grants,1033.2,27/03/2020
REDACTED PERSONAL DATA,Grants,3022.85,27/03/2020
REDACTED PERSONAL DATA,Grants,1992.6,27/03/2020
REDACTED PERSONAL DATA,Grants,1476,27/03/2020
REDACTED PERSONAL DATA,Grants,885.6,27/03/2020
CLAREGRANGE LTD&&SSAROE21,Personal Accounts - Other,227473.95,05/03/2020
CLAREGRANGE LTD&&SSAROE21,Residential,-792.86,05/03/2020
CLAREGRANGE LTD&&SSAROE21,Residential,-1451.43,05/03/2020
CLAREGRANGE LTD&&SSAROE21,Nursing,-32522.32,05/03/2020
CLAREGRANGE LTD&&SSAROE21,Private Contractors,-32522.32,05/03/2020
CLAREGRANGE LTD&&SSAROE21,Residential,-32522.32,05/03/2020
CLAREGRANGE LTD&&SSAROE21,Residential,-2220,05/03/2020
CLAREGRANGE LTD&&SSAROE21,Nursing,-16521.73,05/03/2020
CLAREGRANGE LTD&&SSAROE21,Private Contractors,-16521.73,05/03/2020
CLAREGRANGE LTD&&SSAROE21,Residential,-16521.73,05/03/2020
CLAREGRANGE LTD&&SSAROE21,Residential,-932,05/03/2020
CLAREGRANGE LTD&&SSAROE21,Residential,-546,05/03/2020
CLAREGRANGE LTD&&SSAROE21,Nursing,-32522.32,05/03/2020
CLAREGRANGE LTD&&SSAROE21,Private Contractors,-32522.32,05/03/2020
CLAREGRANGE LTD&&SSAROE21,Residential,-32522.32,05/03/2020
CLAREGRANGE LTD&&SSAROE21,Residential,-2220,05/03/2020
CLAREGRANGE LTD&&SSAROE21,Residential,-1744.29,05/03/2020
CLAREGRANGE LTD&&SSAROE21,Residential,-1585.71,05/03/2020
CLAREGRANGE LTD&&SSAROE21,Private Contractors,-1446,05/03/2020
CLAREGRANGE LTD&&SSAROE21,Nursing,-32522.32,05/03/2020
CLAREGRANGE LTD&&SSAROE21,Private Contractors,-32522.32,05/03/2020
CLAREGRANGE LTD&&SSAROE21,Residential,-32522.32,05/03/2020
CLAREGRANGE LTD&&SSAROE21,Residential,-2220,05/03/2020
CLAREGRANGE LTD&&SSAROE21,Nursing,-34122.61,05/03/2020
CLAREGRANGE LTD&&SSAROE21,Private Contractors,-34122.61,05/03/2020
CLAREGRANGE LTD&&SSAROE21,Residential,-34122.61,05/03/2020
CLAREGRANGE LTD&&SSAROE21,Residential,-2061.43,05/03/2020
CLAREGRANGE LTD&&SSAROE21,Nursing,-35377.47,05/03/2020
CLAREGRANGE LTD&&SSAROE21,Private Contractors,-35377.47,05/03/2020
CLAREGRANGE LTD&&SSAROE21,Residential,-35377.47,05/03/2020
CLAREGRANGE LTD&&SSAROE21,Residential,-1864,05/03/2020
CLAREGRANGE LTD&&SSAROE21,Nursing,-31758.47,05/03/2020
CLAREGRANGE LTD&&SSAROE21,Private Contractors,-31758.47,05/03/2020
CLAREGRANGE LTD&&SSAROE21,Residential,-31758.47,05/03/2020
CLAREGRANGE LTD&&SSAROE21,Residential,-1864,05/03/2020
CLAREGRANGE LTD&&SSAROE21,Private Contractors,-2052,05/03/2020
CLAREGRANGE LTD&&SSAROE21,Residential,-2052,05/03/2020
CLAREGRANGE LTD&&SSAROE21,Private Contractors,-619.71,05/03/2020
CLAREGRANGE LTD&&SSAROE21,Residential,-1030.71,05/03/2020
CLAREGRANGE LTD&&SSAROE21,Residential,13514.57,05/03/2020
CLAREGRANGE LTD&&SSAROE21,Residential,-546,05/03/2020
CLAREGRANGE LTD&&SSAROE47217,Private Contractors,5640,09/03/2020
CLAREGRANGE LTD&&SSAROE47217,Residential,5640,09/03/2020
CLAREGRANGE LTD&&SSAROE47217,Residential,2316,09/03/2020
CLAREGRANGE TRADING LTD T/A WALTHAM HALL&&SARO5107,Residential,42378.32,09/03/2020
REDACTED PERSONAL DATA,Grants,1795.8,27/03/2020
CLARENDON MEWS CARE LTD&&SSARO3356,Residential,30020.14,09/03/2020
CLARENDON PLAYGROUP&&EYRS1564,Grants,1324.65,27/03/2020
CLARENDON PLAYGROUP&&EYRS1564,Grants,29325.08,27/03/2020
Claybrooke Primary School Academy,Payment to Ext SEN Providers,1803,31/03/2020
Claybrooke Primary School Academy,Payment to Ext SEN Providers,1803,27/03/2020
CLEARVISION (GB) T/A CHATAWAY RESIDENTIAL HOME LTD&&SSAROE40294,Residential,1158,09/03/2020
CLEARVISION (GB) T/A CHATAWAY RESIDENTIAL HOME LTD&&SSAROE40294,Residential,18281.14,09/03/2020
Clockwise Credit Union  1,Personal Accounts - Other,4469,04/03/2020
Clockwise Credit Union  1,Personal Accounts - Other,610,04/03/2020
Coalville Cabs Ltd,S.E.N. Taxi Hire,2280,11/03/2020
Coalville Cabs Ltd,S.E.N. Taxi Hire,1140,11/03/2020
Coalville Cabs Ltd,S.E.N. Taxi Hire,1746.48,04/03/2020
Coalville Cabs Ltd,S.E.N. Taxi Hire,950.4,04/03/2020
Coalville Cabs Ltd,S.E.N. Taxi Hire,1322.4,04/03/2020
Coalville Cabs Ltd,S.E.N. Taxi Hire,1482,04/03/2020
Coalville Cabs Ltd,S.E.N. Taxi Hire,3429.12,04/03/2020
Coalville Cabs Ltd,S.E.N. Taxi Hire,2909.33,04/03/2020
Coalville Cabs Ltd,S.E.N. Taxi Hire,2088.48,04/03/2020
Coalville Cabs Ltd,Home to Sch Trans - Buses,1121.76,04/03/2020
Coalville Cabs Ltd,Recharge of Pooled Transp Cost,1637.76,04/03/2020
Coalville Cabs Ltd,S.E.N. Taxi Hire,1637.76,04/03/2020
Coalville Cabs Ltd,Home to Sch Trans - Buses,729.6,04/03/2020
Coalville Cabs Ltd,S.E.N. Taxi Hire,729.6,04/03/2020
Coalville Cabs Ltd,Home to Sch Trans - Buses,2126.4,04/03/2020
Coalville Cabs Ltd,S.E.N. Taxi Hire,2717.76,04/03/2020
Coalville Cabs Ltd,Home to Sch Trans - Buses,1166.4,04/03/2020
Coalville Cabs Ltd,S.E.N. Taxi Hire,1867.32,04/03/2020
Coalville Cabs Ltd,S.E.N. Taxi Hire,2438.88,04/03/2020
Coalville Cabs Ltd,S.E.N. Taxi Hire,1358.88,04/03/2020
Coalville Cabs Ltd,S.E.N. Taxi Hire,2100,04/03/2020
Coalville Cabs Ltd,S.E.N. Taxi Hire,2527.2,04/03/2020
Coalville Cabs Ltd,Home to Sch Trans - Buses,1792.8,04/03/2020
Coalville Cabs Ltd,S.E.N. Taxi Hire,1928.88,04/03/2020
Coalville Cabs Ltd,Home to Sch Trans - Buses,1041.6,04/03/2020
Coalville Cabs Ltd,S.E.N. Taxi Hire,2424,04/03/2020
Coalville Cabs Ltd,S.E.N. Taxi Hire,1581.36,04/03/2020
Coalville Cabs Ltd,S.E.N. Taxi Hire,1130.88,04/03/2020
Coalville Cabs Ltd,S.E.N. Taxi Hire,2535.36,04/03/2020
Coalville Cabs Ltd,S.E.N. Taxi Hire,2964,04/03/2020
Coalville Cabs Ltd,Home to Sch Trans - Buses,1089.84,04/03/2020
Coalville Cabs Ltd,S.E.N. Taxi Hire,1550.4,04/03/2020
Coalville Cabs Ltd,S.E.N. Taxi Hire,1080,04/03/2020
Coalville Cabs Ltd,S.E.N. Taxi Hire,2106,05/03/2020
Coalville Cabs Ltd,S.E.N. Taxi Hire,2517.12,04/03/2020
Coalville Cabs Ltd,S.E.N. Taxi Hire,768.24,04/03/2020
Coalville Cabs Ltd,S.E.N. Taxi Hire,1021.44,04/03/2020
Coalville Cabs Ltd,Home to Sch Trans - Buses,729.6,04/03/2020
Coalville Cabs Ltd,S.E.N. Taxi Hire,2270.88,04/03/2020
Coalville Cabs Ltd,S.E.N. Taxi Hire,3019.68,04/03/2020
Coalville Cabs Ltd,S.E.N. Taxi Hire,1874.16,04/03/2020
Coalville Cabs Ltd,S.E.N. Taxi Hire,2248.08,04/03/2020
Coalville Cabs Ltd,S.E.N. Taxi Hire,1819.44,04/03/2020
Coalville Cabs Ltd,Home to Sch Trans - Buses,1056,04/03/2020
Coalville Cabs Ltd,S.E.N. Taxi Hire,2964,04/03/2020
Coalville Cabs Ltd,S.E.N. Taxi Hire,1589.76,04/03/2020
Coalville Cabs Ltd,S.E.N. Taxi Hire,624,04/03/2020
Coalville Cabs Ltd,S.E.N. Taxi Hire,2453.28,04/03/2020
Coalville Cabs Ltd,S.E.N. Taxi Hire,2248.08,04/03/2020
Coalville Cabs Ltd,S.E.N. Taxi Hire,1789.8,04/03/2020
Coalville Cabs Ltd,S.E.N. Taxi Hire,1924.32,04/03/2020
Coalville Cabs Ltd,S.E.N. Taxi Hire,2813.52,04/03/2020
Coalville Cabs Ltd,S.E.N. Taxi Hire,1443,04/03/2020
Coalville Cabs Ltd,S.E.N. Taxi Hire,2225.28,04/03/2020
Coalville Cabs Ltd,S.E.N. Taxi Hire,1883.28,04/03/2020
Coalville Cabs Ltd,S.E.N. Taxi Hire,2407.68,04/03/2020
Coalville Cabs Ltd,S.E.N. Taxi Hire,1416.72,04/03/2020
Coalville Cabs Ltd,S.E.N. Taxi Hire,984,04/03/2020
Coalville Cabs Ltd,S.E.N. Taxi Hire,1935.36,04/03/2020
Coalville Cabs Ltd,S.E.N. Taxi Hire,2061.12,04/03/2020
Coalville Cabs Ltd,S.E.N. Taxi Hire,2220.72,04/03/2020
Coalville Cabs Ltd,S.E.N. Taxi Hire,2343.84,04/03/2020
Coalville Cabs Ltd,S.E.N. Taxi Hire,2390.4,04/03/2020
Coalville Cabs Ltd,S.E.N. Taxi Hire,1545.12,04/03/2020
Coalville Cabs Ltd,S.E.N. Taxi Hire,1885.56,04/03/2020
Coalville Cabs Ltd,S.E.N. Taxi Hire,886.92,04/03/2020
Coalville Cabs Ltd,S.E.N. Taxi Hire,1646.4,04/03/2020
Coalville Cabs Ltd,S.E.N. Taxi Hire,2030.4,04/03/2020
Coalville Cabs Ltd,Home to Sch Trans - Buses,1264.8,04/03/2020
Coalville Cabs Ltd,S.E.N. Taxi Hire,982.08,04/03/2020
Coalville Cabs Ltd,Recharge of Pooled Transp Cost,561.6,04/03/2020
Coalville Cabs Ltd,Recharge of Pooled Transp Cost,739.2,04/03/2020
Coalville Cabs Ltd,Personal Accounts - Govt Depts,706.56,04/03/2020
Coalville Cabs Ltd,Recharge of Pooled Transp Cost,706.56,04/03/2020
Coalville Cabs Ltd,Recharge of Pooled Transp Cost,2160,04/03/2020
Coalville Cabs Ltd,Personal Accounts - Govt Depts,1267.2,04/03/2020
Coalville Cabs Ltd,Recharge of Pooled Transp Cost,1267.2,04/03/2020
Coalville Cabs Ltd,Recharge of Pooled Transp Cost,2752.8,04/03/2020
Coalville Cabs Ltd,Personal Accounts - Govt Depts,1214.4,04/03/2020
Coalville Cabs Ltd,Recharge of Pooled Transp Cost,1214.4,04/03/2020
Coalville Cabs Ltd,Recharge of Pooled Transp Cost,1080,04/03/2020
Coalville Cabs Ltd,Recharge of Pooled Transp Cost,1270.08,04/03/2020
Coalville Cabs Ltd,Recharge of Pooled Transp Cost,540,04/03/2020
Coalville Cabs Ltd,Recharge of Pooled Transp Cost,702,04/03/2020
Coalville Cabs Ltd,Recharge of Pooled Transp Cost,786.72,04/03/2020
Coalville Cabs Ltd,Recharge of Pooled Transp Cost,1055.76,04/03/2020
Coalville Cabs Ltd,Recharge of Pooled Transp Cost,3160.08,04/03/2020
Coalville Cabs Ltd,Recharge of Pooled Transp Cost,1442.4,04/03/2020
Coalville Cabs Ltd,S.E.N. Taxi Hire,1378.8,27/03/2020
Coalville Cabs Ltd,S.E.N. Taxi Hire,792,27/03/2020
Coalville Cabs Ltd,S.E.N. Taxi Hire,974.4,27/03/2020
Coalville Cabs Ltd,S.E.N. Taxi Hire,1170,27/03/2020
Coalville Cabs Ltd,S.E.N. Taxi Hire,2707.2,27/03/2020
Coalville Cabs Ltd,S.E.N. Taxi Hire,2296.8,27/03/2020
Coalville Cabs Ltd,S.E.N. Taxi Hire,1519.68,27/03/2020
Coalville Cabs Ltd,Home to Sch Trans - Buses,885.6,27/03/2020
Coalville Cabs Ltd,Recharge of Pooled Transp Cost,1033.92,27/03/2020
Coalville Cabs Ltd,S.E.N. Taxi Hire,1033.92,27/03/2020
Coalville Cabs Ltd,Home to Sch Trans - Buses,576,27/03/2020
Coalville Cabs Ltd,S.E.N. Taxi Hire,576,27/03/2020
Coalville Cabs Ltd,Home to Sch Trans - Buses,1594.8,27/03/2020
Coalville Cabs Ltd,S.E.N. Taxi Hire,2145.6,27/03/2020
Coalville Cabs Ltd,Home to Sch Trans - Buses,758.16,27/03/2020
Coalville Cabs Ltd,S.E.N. Taxi Hire,1340.64,27/03/2020
Coalville Cabs Ltd,S.E.N. Taxi Hire,1933.92,27/03/2020
Coalville Cabs Ltd,S.E.N. Taxi Hire,1072.8,27/03/2020
Coalville Cabs Ltd,S.E.N. Taxi Hire,1728,27/03/2020
Coalville Cabs Ltd,S.E.N. Taxi Hire,2106,27/03/2020
Coalville Cabs Ltd,Home to Sch Trans - Buses,1344.6,27/03/2020
Coalville Cabs Ltd,S.E.N. Taxi Hire,1522.8,27/03/2020
Coalville Cabs Ltd,Home to Sch Trans - Buses,1108.8,27/03/2020
Coalville Cabs Ltd,S.E.N. Taxi Hire,1575.6,27/03/2020
Coalville Cabs Ltd,S.E.N. Taxi Hire,1293.84,27/03/2020
Coalville Cabs Ltd,S.E.N. Taxi Hire,892.8,27/03/2020
Coalville Cabs Ltd,S.E.N. Taxi Hire,2001.6,27/03/2020
Coalville Cabs Ltd,S.E.N. Taxi Hire,2340,27/03/2020
Coalville Cabs Ltd,Home to Sch Trans - Buses,860.4,27/03/2020
Coalville Cabs Ltd,S.E.N. Taxi Hire,1124.04,27/03/2020
Coalville Cabs Ltd,S.E.N. Taxi Hire,900,27/03/2020
Coalville Cabs Ltd,S.E.N. Taxi Hire,1530,27/03/2020
Coalville Cabs Ltd,S.E.N. Taxi Hire,1987.2,27/03/2020
Coalville Cabs Ltd,S.E.N. Taxi Hire,651.84,27/03/2020
Coalville Cabs Ltd,S.E.N. Taxi Hire,806.4,27/03/2020
Coalville Cabs Ltd,Home to Sch Trans - Buses,576,27/03/2020
Coalville Cabs Ltd,Recharge of Pooled Transp Cost,1792.8,27/03/2020
Coalville Cabs Ltd,S.E.N. Taxi Hire,1792.8,27/03/2020
Coalville Cabs Ltd,S.E.N. Taxi Hire,2516.4,27/03/2020
Coalville Cabs Ltd,S.E.N. Taxi Hire,1479.6,27/03/2020
Coalville Cabs Ltd,S.E.N. Taxi Hire,1774.8,27/03/2020
Coalville Cabs Ltd,S.E.N. Taxi Hire,1436.4,27/03/2020
Coalville Cabs Ltd,Home to Sch Trans - Buses,792,27/03/2020
Coalville Cabs Ltd,S.E.N. Taxi Hire,2340,27/03/2020
Coalville Cabs Ltd,S.E.N. Taxi Hire,1324.8,27/03/2020
Coalville Cabs Ltd,S.E.N. Taxi Hire,507,31/03/2020
Coalville Cabs Ltd,S.E.N. Taxi Hire,1936.8,27/03/2020
Coalville Cabs Ltd,S.E.N. Taxi Hire,1774.8,27/03/2020
Coalville Cabs Ltd,S.E.N. Taxi Hire,1413,27/03/2020
Coalville Cabs Ltd,S.E.N. Taxi Hire,1519.2,27/03/2020
Coalville Cabs Ltd,S.E.N. Taxi Hire,2221.2,27/03/2020
Coalville Cabs Ltd,S.E.N. Taxi Hire,1092,27/03/2020
Coalville Cabs Ltd,S.E.N. Taxi Hire,1756.8,27/03/2020
Coalville Cabs Ltd,S.E.N. Taxi Hire,1486.8,27/03/2020
Coalville Cabs Ltd,S.E.N. Taxi Hire,1900.8,27/03/2020
Coalville Cabs Ltd,S.E.N. Taxi Hire,1072.32,27/03/2020
Coalville Cabs Ltd,S.E.N. Taxi Hire,738,27/03/2020
Coalville Cabs Ltd,S.E.N. Taxi Hire,1612.8,27/03/2020
Coalville Cabs Ltd,S.E.N. Taxi Hire,1753.2,27/03/2020
Coalville Cabs Ltd,S.E.N. Taxi Hire,1850.4,27/03/2020
Coalville Cabs Ltd,S.E.N. Taxi Hire,1792.8,27/03/2020
Coalville Cabs Ltd,S.E.N. Taxi Hire,584.64,27/03/2020
Coalville Cabs Ltd,S.E.N. Taxi Hire,1488.6,27/03/2020
Coalville Cabs Ltd,S.E.N. Taxi Hire,700.2,27/03/2020
Coalville Cabs Ltd,S.E.N. Taxi Hire,1070.16,27/03/2020
Coalville Cabs Ltd,S.E.N. Taxi Hire,1522.8,27/03/2020
Coalville Cabs Ltd,Home to Sch Trans - Buses,695.64,27/03/2020
Coalville Cabs Ltd,Recharge of Pooled Transp Cost,672,27/03/2020
Coalville Cabs Ltd,Recharge of Pooled Transp Cost,2179.08,27/03/2020
Coalville Cabs Ltd,Personal Accounts - Govt Depts,706.56,27/03/2020
Coalville Cabs Ltd,Recharge of Pooled Transp Cost,706.56,27/03/2020
Coalville Cabs Ltd,Recharge of Pooled Transp Cost,1566,27/03/2020
Coalville Cabs Ltd,Personal Accounts - Govt Depts,1128,27/03/2020
Coalville Cabs Ltd,Recharge of Pooled Transp Cost,1128,27/03/2020
Coalville Cabs Ltd,Personal Accounts - Govt Depts,1104,27/03/2020
Coalville Cabs Ltd,Recharge of Pooled Transp Cost,1104,27/03/2020
Coalville Cabs Ltd,Recharge of Pooled Transp Cost,960,27/03/2020
Coalville Cabs Ltd,Recharge of Pooled Transp Cost,1270.08,27/03/2020
Coalville Cabs Ltd,Recharge of Pooled Transp Cost,624,27/03/2020
Coalville Cabs Ltd,Recharge of Pooled Transp Cost,1128,27/03/2020
Coalville Cabs Ltd,Recharge of Pooled Transp Cost,607.92,27/03/2020
Coalville Cabs Ltd,Recharge of Pooled Transp Cost,946.56,27/03/2020
Coalville King Edward VII Academy,Payment to Ext SEN Providers,1706,05/03/2020
Coalville King Edward VII Academy,Payment to Ext SEN Providers,1934,27/03/2020
Coalville King Edward VII Academy,Payment to Ext SEN Providers,1934,31/03/2020
COBDEN PRESCHOOL&&EYRS1784,Grants,11371,27/03/2020
COBDEN PRESCHOOL&&EYRS1784,Grants,63200.79,27/03/2020
Cobden Primary School Academy,Payment to Ext SEN Providers,6542,31/03/2020
Cobden Primary School Academy,Payment to Ext SEN Providers,6542,27/03/2020
COFRESH HOMES LLP (TUDOR CARE HOMES)&&SSARO1585,Residential,-579,05/03/2020
COFRESH HOMES LLP (TUDOR CARE HOMES)&&SSARO1585,Residential,-546.86,05/03/2020
COFRESH HOMES LLP (TUDOR CARE HOMES)&&SSARO1585,Residential,1125.86,05/03/2020
REDACTED PERSONAL DATA,Grants,4305,27/03/2020
REDACTED PERSONAL DATA,Residential,4302,17/03/2020
REDACTED PERSONAL DATA,Other Support,933.12,27/03/2020
REDACTED PERSONAL DATA,Other Support,870,27/03/2020
REDACTED PERSONAL DATA,Other Support,870,27/03/2020
REDACTED PERSONAL DATA,Other Support,720,27/03/2020
Community Academies Trust,Children&Families Spprt Servs,640,18/03/2020
COMMUNITY CARELINE NORTHWEST LEICESTERSHIRE LTD&&ISHCHC1514,Home Care / Domiciliary,790.02,20/03/2020
COMMUNITY CARELINE NORTHWEST LEICESTERSHIRE LTD&&ISHCHC1514,Home Care / Domiciliary,860,20/03/2020
COMMUNITY CARELINE NORTHWEST LEICESTERSHIRE LTD&&ISHCHC1514,Home Care / Domiciliary,9844.72,20/03/2020
COMMUNITY CARELINE NORTHWEST LEICESTERSHIRE LTD&&ISHCHC1514,Home Care / Domiciliary,3224.33,20/03/2020
COMMUNITY CENTRE PLAYGROUP (STONEY STANTON)&&EYRS1402,Grants,994.8,27/03/2020
COMMUNITY CENTRE PLAYGROUP (STONEY STANTON)&&EYRS1402,Grants,17613,27/03/2020
COMMUNITY LIVING PROJECT&&SSAROE56011,Residential,-5171.4,09/03/2020
COMMUNITY LIVING PROJECT&&SSAROE56011,Residential,-5171.4,09/03/2020
COMMUNITY LIVING PROJECT&&SSAROE56011,Residential,-700.39,09/03/2020
COMMUNITY LIVING PROJECT&&SSAROE56011,Residential,-5171.4,09/03/2020
COMMUNITY LIVING PROJECT&&SSAROE56011,Residential,-1932,09/03/2020
COMMUNITY LIVING PROJECT&&SSAROE56011,Residential,-5171.4,09/03/2020
COMMUNITY LIVING PROJECT&&SSAROE56011,Residential,31988,09/03/2020
COMMUNITY LIVING PROJECT&&SSAROE56011,Residential,-5171.4,09/03/2020
COMMUNITY LIVING PROJECT&&SSAROE56011,Residential,-5171.4,09/03/2020
COMMUNITY LIVING PROJECT&&SSAROE56011,Residential,-5171.4,09/03/2020
COMMUNITY LIVING PROJECT&&SSAROE56011,Residential,-5171.4,09/03/2020
COMMUNITY LIVING PROJECT&&SSAROE56011,Residential,18516.92,09/03/2020
COMMUNITY LIVING PROJECT&&SSAROE56011,Residential,5816,09/03/2020
COMMUNITY LIVING PROJECT&&SSAROE56011,Residential,-5171.4,09/03/2020
COMMUNITY LIVING PROJECT&&SSAROE56011,Residential,34896,09/03/2020
COMMUNITY LIVING PROJECT&&SSAROE56011,Residential,-5171.4,09/03/2020
COMMUNITY LIVING PROJECT&&SSAROE56011,Residential,-5171.4,09/03/2020
Compass Fostering Central Ltd,Other Agency & Cont Services,1584.6,27/03/2020
Compass Fostering Central Ltd,Other Agency & Cont Services,3143.88,31/03/2020
Compass Fostering Central Ltd,Other Agency & Cont Services,3143.88,31/03/2020
Compass Fostering Central Ltd,Other Agency & Cont Services,3012.88,31/03/2020
Compass Fostering Central Ltd,Other Agency & Cont Services,3143.88,31/03/2020
Compass Fostering Central Ltd,Other Agency & Cont Services,3143.89,31/03/2020
Compass Fostering Central Ltd,Other Agency & Cont Services,3143.93,31/03/2020
Compass Fostering Central Ltd,Other Agency & Cont Services,3143.88,31/03/2020
Compass Fostering Central Ltd,Other Agency & Cont Services,3162,31/03/2020
Compass Fostering Central Ltd,Other Agency & Cont Services,3902.77,31/03/2020
Compass Fostering Central Ltd,Other Agency & Cont Services,3143.88,31/03/2020
Compass Fostering Central Ltd,Other Agency & Cont Services,3143.88,31/03/2020
Compass Fostering Central Ltd,Other Agency & Cont Services,3162,31/03/2020
Compass Fostering Central Ltd,Other Agency & Cont Services,3143.88,31/03/2020
Compass Fostering Central Ltd,Other Agency & Cont Services,3035.52,31/03/2020
Compass Fostering Central Ltd,Other Agency & Cont Services,3143.88,31/03/2020
Compass Fostering Central Ltd,Other Agency & Cont Services,-2332.56,31/03/2020
Compass Fostering Central Ltd,Other Agency & Cont Services,3143.93,31/03/2020
Compass Fostering Central Ltd,Other Agency & Cont Services,3162,31/03/2020
Compass Fostering Central Ltd,Other Agency & Cont Services,4553.28,31/03/2020
Compass Fostering Central Ltd,Other Agency & Cont Services,3274.88,31/03/2020
Compass Fostering Central Ltd,Other Agency & Cont Services,3012.88,31/03/2020
Compass Fostering Central Ltd,Other Agency & Cont Services,3274.88,31/03/2020
Compass Fostering Central Ltd,Other Agency & Cont Services,3162,31/03/2020
Compass Fostering Central Ltd,Other Agency & Cont Services,6655.41,31/03/2020
Compass Group,Training Expenses,2806.2,13/03/2020
COMPASSION & CARE LTD(&&ISHC9109),Home Care / Domiciliary,560.95,20/03/2020
COMPASSION & CARE LTD(&&ISHC9109),Home Care / Domiciliary,526.21,20/03/2020
COMPASSION & CARE LTD(&&ISHC9109),Home Care / Domiciliary,504.86,20/03/2020
COMPASSION & CARE LTD(&&ISHC9109),Home Care / Domiciliary,543.69,20/03/2020
COMPASSION & CARE LTD(&&ISHC9109),Home Care / Domiciliary,1584.1,20/03/2020
Conatus Child Psychology,Other Agency & Cont Services,1250,20/03/2020
Conatus Child Psychology,Other Agency & Cont Services,1763.13,27/03/2020
Conatus Child Psychology,Other Agency & Cont Services,1250,27/03/2020
CONDOVER COLLEGE LTD&&SSAROE1331,Residential,20814.12,09/03/2020
CONIFER LODGE&&SSAROE40296,Residential,-7288.44,09/03/2020
CONIFER LODGE&&SSAROE40296,Residential,7288.44,09/03/2020
CONIFER LODGE&&SSAROE40296,Residential,-7288.44,09/03/2020
CONIFER LODGE&&SSAROE40296,Residential,7288.44,09/03/2020
CONIFER LODGE&&SSAROE40296,Residential,-9687.28,09/03/2020
CONIFER LODGE&&SSAROE40296,Residential,9708.44,09/03/2020
CONIFER LODGE&&SSAROE40296,Residential,-4854.22,09/03/2020
CONIFER LODGE&&SSAROE40296,Residential,-9708.44,09/03/2020
CONIFER LODGE&&SSAROE40296,Residential,53396.42,09/03/2020
CONIFER LODGE&&SSAROE40296,Residential,-9708.44,09/03/2020
CONIFER LODGE&&SSAROE40296,Residential,-9708.44,09/03/2020
CONIFER LODGE&&SSAROE40296,Residential,-9708.44,09/03/2020
CONIFER LODGE&&SSAROE40296,Residential,-9708.44,09/03/2020
CONIFER LODGE&&SSAROE40296,Residential,-1296.43,09/03/2020
CONIFER LODGE&&SSAROE40296,Residential,1296.42,09/03/2020
CONIFER LODGE&&SSAROE40296,Residential,12174.85,09/03/2020
CONIFER LODGE&&SSAROE40296,Residential,-4832,09/03/2020
CONIFER LODGE&&SSAROE40296,Residential,4832,09/03/2020
CONIFER LODGE&&SSAROE40296,Residential,-4832,09/03/2020
CONIFER LODGE&&SSAROE40296,Residential,4832,09/03/2020
CONIFER LODGE&&SSAROE40296,Residential,-7288.44,09/03/2020
CONIFER LODGE&&SSAROE40296,Residential,7288.44,09/03/2020
Conkers After School Club,Payment to Ext SEN Providers,540,31/03/2020
Conservation Volunteers,Grants,2500,30/03/2020
REDACTED PERSONAL DATA,Grants,2199.65,27/03/2020
REDACTED PERSONAL DATA,Other Transfer Payments,1000,05/03/2020
COSBY PRIMARY SCHOOL PRE-SCHOOL&&EYRSEXMT0107,Grants,29599.84,27/03/2020
Costar Uk Ltd,Subscriptions,6840.05,27/03/2020
Countesthorpe Leysland Community College,Payment to Ext SEN Providers,2955,05/03/2020
Countesthorpe Leysland Community College,Payment to Ext SEN Providers,3206,27/03/2020
Countesthorpe Leysland Community College,Payment to Ext SEN Providers,3206,31/03/2020
COUNTESTHORPE LEYSLAND COMMUNITY COLLEGE DAY NURSERY&&EYRS1491,Grants,16921.8,27/03/2020
Country Land & Business Ass,Subscriptions,1517,27/03/2020
Countryside Properties (WPL) Ltd,Personal Accounts - Other,3972.8,05/03/2020
Cove Care Residential Ltd,Private Contractors,20300,11/03/2020
CRAEGMOOR FACILITIES CO LTD RE CHARNWOOD LODGE&&SSAROE346,Residential,7136.32,09/03/2020
CRAEGMOOR FACILITIES CO LTD RE HALIFAX DRIVE&&SSAROE29669A,Residential,7228,09/03/2020
CRAEGMOOR FACILITIES CO LTD RE MAR LODGE&&SSAROE66405,Residential,-8779.52,09/03/2020
CRAEGMOOR FACILITIES CO LTD RE MAR LODGE&&SSAROE66405,Residential,-8779.52,09/03/2020
CRAEGMOOR FACILITIES CO LTD RE MAR LODGE&&SSAROE66405,Residential,-563.32,09/03/2020
CRAEGMOOR FACILITIES CO LTD RE MAR LODGE&&SSAROE66405,Residential,-8779.52,09/03/2020
CRAEGMOOR FACILITIES CO LTD RE MAR LODGE&&SSAROE66405,Residential,-3864,09/03/2020
CRAEGMOOR FACILITIES CO LTD RE MAR LODGE&&SSAROE66405,Residential,-8779.52,09/03/2020
CRAEGMOOR FACILITIES CO LTD RE MAR LODGE&&SSAROE66405,Residential,63976,09/03/2020
CRAEGMOOR FACILITIES CO LTD RE MAR LODGE&&SSAROE66405,Residential,-8779.52,09/03/2020
CRAEGMOOR FACILITIES CO LTD RE MAR LODGE&&SSAROE66405,Residential,-8779.52,09/03/2020
CRAEGMOOR FACILITIES CO LTD RE MAR LODGE&&SSAROE66405,Residential,-8779.52,09/03/2020
CRAEGMOOR FACILITIES CO LTD RE MAR LODGE&&SSAROE66405,Residential,-8779.52,09/03/2020
CRAEGMOOR FACILITIES CO LTD RE MAR LODGE&&SSAROE66405,Residential,5016.68,09/03/2020
CRAEGMOOR FACILITIES CO LTD RE MAR LODGE&&SSAROE66405,Residential,11632,09/03/2020
CRAEGMOOR FACILITIES CO LTD RE MAR LODGE&&SSAROE66405,Residential,-8779.52,09/03/2020
CRAEGMOOR FACILITIES CO LTD RE MAR LODGE&&SSAROE66405,Residential,69792,09/03/2020
CRAEGMOOR FACILITIES CO LTD RE MAR LODGE&&SSAROE66405,Residential,-8779.52,09/03/2020
CRAEGMOOR FACILITIES CO LTD RE MAR LODGE&&SSAROE66405,Residential,-8779.52,09/03/2020
CRAEGMOOR FACILITIES CO LTD RE MEADOWS&&SSAROE40227,Private Contractors,19317.04,09/03/2020
CRAEGMOOR FACILITIES CO LTD RE MEADOWS&&SSAROE40227,Residential,19317.04,09/03/2020
CRAEGMOOR FACILITIES CO LTD RE MEADOWS&&SSAROE40227,Residential,19692,09/03/2020
CRAEGMOOR FACILITIES CO LTD RE MEADOWS&&SSAROE40227,Residential,4056,09/03/2020
CRAEGMOOR FACILITIES COMPANY LTD&&SSAROE8,Residential,6830,09/03/2020
Crafting Relationships,Grants,1000,13/03/2020
Credo Care Ltd,Other Agency & Cont Services,6700.43,31/03/2020
Creswell HeritageTrust,Other Transfer Payments,1412,20/03/2020
Creswell HeritageTrust,Other Transfer Payments,950,20/03/2020
CROFT C OF E COMMUNITY PLAYGROUP&&EYRS1405,Grants,24981.34,27/03/2020
Crown Cars (Leic) Ltd,Recharge of Pooled Transp Cost,1340.16,06/03/2020
Crown Cars (Leic) Ltd,Recharge of Pooled Transp Cost,1795.2,06/03/2020
Crown Cars (Leic) Ltd,Personal Accounts - Govt Depts,1257.9,06/03/2020
Crown Cars (Leic) Ltd,Recharge of Pooled Transp Cost,1257.9,06/03/2020
Crown Cars (Leic) Ltd,S.E.N. Taxi Hire,2095.32,06/03/2020
Crown Cars (Leic) Ltd,S.E.N. Taxi Hire,1570.92,06/03/2020
Crown Cars (Leic) Ltd,S.E.N. Taxi Hire,861.6,06/03/2020
Crown Cars (Leic) Ltd,Recharge of Pooled Transp Cost,1006.2,06/03/2020
Crown Cars (Leic) Ltd,Recharge of Pooled Transp Cost,1005.12,31/03/2020
Crown Cars (Leic) Ltd,Recharge of Pooled Transp Cost,1346.4,31/03/2020
Crown Cars (Leic) Ltd,Personal Accounts - Govt Depts,898.5,31/03/2020
Crown Cars (Leic) Ltd,Recharge of Pooled Transp Cost,898.5,31/03/2020
Crown Cars (Leic) Ltd,S.E.N. Taxi Hire,1654.2,31/03/2020
Crown Cars (Leic) Ltd,S.E.N. Taxi Hire,1157.52,31/03/2020
Crown Cars (Leic) Ltd,S.E.N. Taxi Hire,775.44,31/03/2020
Crown Cars (Leic) Ltd,Recharge of Pooled Transp Cost,928.8,31/03/2020
Croxton Kerrial CE Primary School Academy,Payment to Ext SEN Providers,2097,31/03/2020
Croxton Kerrial CE Primary School Academy,Payment to Ext SEN Providers,2097,27/03/2020
CSS LTD T/A GRETTON HOMES&&SARO3372,Residential,7183.48,09/03/2020
CULPEPER CARE LTD&&SSARO8650,Residential,3000,09/03/2020
CYGNET (DH) LTD T/A TOLLER ROAD&&SARO5736,Residential,17800.8,09/03/2020
CYGNET HEALTH T/A 15 THE SYCAMORES&&SARO8633,Residential,15306.48,09/03/2020
REDACTED PERSONAL DATA,Grants,2952,27/03/2020
REDACTED PERSONAL DATA,Residential,2730,20/03/2020
DAIRY FARM DAY NURSERY&&EYRS1813,Grants,22755,27/03/2020
DALLINGTON HOUSE&&SSAROE40408,Residential,-1654.29,05/03/2020
DALLINGTON HOUSE&&SSAROE40408,Residential,-1488.86,05/03/2020
DALLINGTON HOUSE&&SSAROE40408,Residential,-1240.71,05/03/2020
DALLINGTON HOUSE&&SSAROE40408,Residential,4383.86,05/03/2020
Dame Kelly Holmes Trust,Grants,2500,13/03/2020
REDACTED PERSONAL DATA,Grants,1165.27,27/03/2020
REDACTED PERSONAL DATA,Grants,1771.33,27/03/2020
Darrens Taxis,Recharge of Pooled Transp Cost,790,27/03/2020
Darrens Taxis,S.E.N. Taxi Hire,790,27/03/2020
DAVID LEWIS CENTRE&&SSAROE72,Residential,2186.2,09/03/2020
David Ross Education Trust Re Charnwood College,Payment to Ext SEN Providers,2472,05/03/2020
David Ross Education Trust Re Charnwood College,Payment to Ext SEN Providers,2802,27/03/2020
David Ross Education Trust Re Charnwood College,Payment to Ext SEN Providers,2802,31/03/2020
REDACTED PERSONAL DATA,Residential,4200,25/03/2020
REDACTED PERSONAL DATA,Materials,1335.85,20/03/2020
REDACTED PERSONAL DATA,S.E.N. Taxi Hire,975,27/03/2020
REDACTED PERSONAL DATA,Residential,-2316,05/03/2020
REDACTED PERSONAL DATA,Residential,2316,05/03/2020
REDACTED PERSONAL DATA,Grants,1896.16,27/03/2020
REDACTED PERSONAL DATA,Grants,5328,27/03/2020
REDACTED PERSONAL DATA,Grants,885.6,27/03/2020
REDACTED PERSONAL DATA,Grants,5608.8,27/03/2020
Day Rental T/A Car Hire Day of Swansea Ltd,Contract Hire,1005.48,23/03/2020
Day Rental T/A Car Hire Day of Swansea Ltd,Contract Hire,670.32,10/03/2020
REDACTED PERSONAL DATA,Grants,-722.17,27/03/2020
REDACTED PERSONAL DATA,Grants,1522.2,27/03/2020
DEAFINITELY INDEPENDENT&&SSAROE700,Residential,3852,09/03/2020
DEAFINITELY INDEPENDENT&&SSAROE700,Residential,4197.04,09/03/2020
REDACTED PERSONAL DATA,Grants,1771.2,27/03/2020
REDACTED PERSONAL DATA,Grants,4206.6,27/03/2020
REDACTED PERSONAL DATA,Other Agency & Cont Services,1310,05/03/2020
REDACTED PERSONAL DATA,Other Agency & Cont Services,1310,27/03/2020
REDACTED PERSONAL DATA,Grants,1574.4,27/03/2020
REDACTED PERSONAL DATA,Grants,2309.4,27/03/2020
REDACTED PERSONAL DATA,Grants,3247.2,27/03/2020
De Lisle College (St Thomas Aquinas Catholic Multi Academy Trust),Payment to Ext SEN Providers,5251,05/03/2020
De Lisle College (St Thomas Aquinas Catholic Multi Academy Trust),Payment to Ext SEN Providers,4325,27/03/2020
De Lisle College (St Thomas Aquinas Catholic Multi Academy Trust),Payment to Ext SEN Providers,4325,31/03/2020
REDACTED PERSONAL DATA,S.E.N. Taxi Hire,1173,06/03/2020
REDACTED PERSONAL DATA,S.E.N. Taxi Hire,897,27/03/2020
De Montfort University,Training Expenses,2502,27/03/2020
DEN FARMSIDE&&EYRSEY556945,Grants,2060.08,27/03/2020
DEN FARMSIDE&&EYRSEY556945,Grants,33228,27/03/2020
Department For Work & Pensions,Provisions Expenditure,647,09/03/2020
Department For Work & Pensions,Provisions Expenditure,3268,03/03/2020
Department of Work and Pensions CMS Employers,Personal Accounts - Other,2297.27,12/03/2020
REDACTED PERSONAL DATA,Grants,4818.6,27/03/2020
DERWEN COLLEGE&&SSAROE205,Residential,3950.24,09/03/2020
DE VERDUN CHILDRENS NURSERY&&EYRS1718,Grants,30544.2,27/03/2020
REDACTED PERSONAL DATA,Recharge of Pooled Transp Cost,2153.25,13/03/2020
REDACTED PERSONAL DATA,Recharge of Pooled Transp Cost,1885,27/03/2020
D&H COMMUNITY SUPPORT LTD&&CLCD3309,Day / CLC Services,1877.35,20/03/2020
D&H COMMUNITY SUPPORT LTD&&CLCD3309,Day / CLC Services,94614.92,20/03/2020
D&H COMMUNITY SUPPORT LTD&&CLCD3309,Managed/Traditional Services,94614.92,20/03/2020
REDACTED PERSONAL DATA,Grants,8630.7,27/03/2020
DIGINEW LTD&&SSARO3320,Residential,2238.76,09/03/2020
Diners Club International,Suspense,1709.95,20/03/2020
Diners Club International,Public Transport -  Staff,2051.3,24/03/2020
Diners Club International,Public Transport -  Staff,1549.3,31/03/2020
Diocese of Leicester Academies Trust,Buildings - Operational,7992.87,03/03/2020
Direct Cabs,S.E.N. Taxi Hire,1480,04/03/2020
Direct Cabs,S.E.N. Taxi Hire,566.5,04/03/2020
Direct Cabs,S.E.N. Taxi Hire,1120,04/03/2020
Direct Cabs,S.E.N. Taxi Hire,1900,04/03/2020
Direct Cabs,Home to Sch Trans - Buses,684,04/03/2020
Direct Cabs,Recharge of Pooled Transp Cost,1760,04/03/2020
Direct Cabs,S.E.N. Taxi Hire,1170,27/03/2020
Direct Cabs,S.E.N. Taxi Hire,1015,27/03/2020
Direct Cabs,S.E.N. Taxi Hire,1500,27/03/2020
Direct Cabs,Home to Sch Trans - Buses,540,27/03/2020
Direct Cabs,Recharge of Pooled Transp Cost,1240,27/03/2020
DIRECT CARE WORKS LTD&&CLCD3327,Day / CLC Services,7318.64,20/03/2020
Direct Taxis,S.E.N. Taxi Hire,1140,04/03/2020
Direct Taxis,S.E.N. Taxi Hire,1520,04/03/2020
Direct Taxis,S.E.N. Taxi Hire,2964,04/03/2020
Direct Taxis,S.E.N. Taxi Hire,1710,04/03/2020
Direct Taxis,Recharge of Pooled Transp Cost,1086,04/03/2020
Direct Taxis,Recharge of Pooled Transp Cost,1126,27/03/2020
Direct Taxis,S.E.N. Taxi Hire,900,27/03/2020
Direct Taxis,S.E.N. Taxi Hire,1200,27/03/2020
Direct Taxis,S.E.N. Taxi Hire,2340,27/03/2020
Direct Taxis,S.E.N. Taxi Hire,1350,27/03/2020
Diversity Social Care Ltd,Private Contractors,1848,27/03/2020
Diversity Social Care Ltd,Private Contractors,1224,27/03/2020
DIWALI LTD&&SSAROE40425,Residential,4520,09/03/2020
Dixons Coach & Travel Services,Home to Sch Trans - Buses,2648.79,04/03/2020
Dixons Coach & Travel Services,Home to Sch Trans - Buses,2091.15,27/03/2020
REDACTED PERSONAL DATA,S.E.N. Taxi Hire,879.12,17/03/2020
REDACTED PERSONAL DATA,Grants,4434.89,27/03/2020
REDACTED PERSONAL DATA,Residential,-2575.41,09/03/2020
REDACTED PERSONAL DATA,Residential,14593.99,09/03/2020
REDACTED PERSONAL DATA,Residential,1389.24,09/03/2020
REDACTED PERSONAL DATA,Residential,-1716.94,09/03/2020
REDACTED PERSONAL DATA,Residential,1389.24,09/03/2020
REDACTED PERSONAL DATA,Residential,4823.12,09/03/2020
REDACTED PERSONAL DATA,Residential,1389.24,09/03/2020
REDACTED PERSONAL DATA,Residential,-1716.94,09/03/2020
REDACTED PERSONAL DATA,Residential,6251.58,09/03/2020
REDACTED PERSONAL DATA,Residential,-662,09/03/2020
REDACTED PERSONAL DATA,Residential,-3433.88,09/03/2020
REDACTED PERSONAL DATA,Residential,-3433.88,09/03/2020
REDACTED PERSONAL DATA,Residential,-1716.94,09/03/2020
REDACTED PERSONAL DATA,Residential,-692.14,09/03/2020
REDACTED PERSONAL DATA,Residential,-3433.88,09/03/2020
REDACTED PERSONAL DATA,Residential,43908.64,09/03/2020
REDACTED PERSONAL DATA,Residential,1822.92,09/03/2020
REDACTED PERSONAL DATA,Residential,1230.92,09/03/2020
REDACTED PERSONAL DATA,Residential,1280.92,09/03/2020
Dodds Solicitors LLP,Advertising,1502.9,25/03/2020
Dodds Solicitors LLP,Advertising,958.24,30/03/2020
Dodds Solicitors LLP,Advertising,1141.19,30/03/2020
Dodds Solicitors LLP,Advertising,1502.4,30/03/2020
Dodds Solicitors LLP,Advertising,3370.77,30/03/2020
REDACTED PERSONAL DATA,Grants,664.95,27/03/2020
REDACTED PERSONAL DATA,Grants,3552,27/03/2020
Dorothy Goodman School Academy,Children&Families Spprt Servs,630,13/03/2020
Dorothy Goodman School Academy,Payment to Ext SEN Providers,3333,31/03/2020
Dorothy Goodman School Academy,Payment to Ext SEN Providers,3333,27/03/2020
Dorothy Goodman School Academy,Payment to Ext SEN Providers,-1701,27/03/2020
Dorothy Goodman School Academy,Payment to Ext SEN Providers,39236,27/03/2020
Dorothy Goodman School Academy,Payment to Ext SEN Providers,167756,31/03/2020
Dorothy Goodman School Academy,Payment to Ext SEN Providers,167756,27/03/2020
Dorothy Goodman School Academy,Payment to Ext SEN Providers,561,30/03/2020
DRE HEALTHCARE LTD&&SSAROE417,Residential,2700,09/03/2020
DRE HEALTHCARE LTD&&SSAROE417,Private Contractors,8696.56,09/03/2020
DRE HEALTHCARE LTD&&SSAROE417,Residential,8696.56,09/03/2020
DRE HEALTHCARE LTD&&SSAROE417,Residential,10307.52,09/03/2020
DRE HEALTHCARE LTD&&SSAROE417,Private Contractors,8696.56,09/03/2020
DRE HEALTHCARE LTD&&SSAROE417,Residential,8696.56,09/03/2020
DRE HEALTHCARE LTD&&SSAROE417,Residential,6411.76,09/03/2020
DRE HEALTHCARE LTD&&SSAROE417,Residential,500,09/03/2020
REDACTED PERSONAL DATA,S.E.N. Taxi Hire,1173.15,16/03/2020
Drive4it,Home to Sch Trans - Buses,823.2,27/03/2020
Driven By Riide Ltd T/A  ADT Taxis,Personal Accounts - Govt Depts,1555.5,03/03/2020
Driven By Riide Ltd T/A  ADT Taxis,Recharge of Pooled Transp Cost,1555.5,03/03/2020
Driven By Riide Ltd T/A  ADT Taxis,Recharge of Pooled Transp Cost,916,13/03/2020
Driven By Riide Ltd T/A  ADT Taxis,Home to Sch Trans - Buses,594,13/03/2020
Driven By Riide Ltd T/A  ADT Taxis,Recharge of Pooled Transp Cost,510,13/03/2020
Driven By Riide Ltd T/A  ADT Taxis,S.E.N. Taxi Hire,1805,13/03/2020
Driven By Riide Ltd T/A  ADT Taxis,Home to Sch Trans - Buses,612,13/03/2020
Driven By Riide Ltd T/A  ADT Taxis,Recharge of Pooled Transp Cost,1435,13/03/2020
Driven By Riide Ltd T/A  ADT Taxis,S.E.N. Taxi Hire,1435,13/03/2020
Driven By Riide Ltd T/A  ADT Taxis,Home to Sch Trans - Buses,820.8,13/03/2020
Driven By Riide Ltd T/A  ADT Taxis,Personal Accounts - Govt Depts,1492,13/03/2020
Driven By Riide Ltd T/A  ADT Taxis,Recharge of Pooled Transp Cost,1492,13/03/2020
Driven By Riide Ltd T/A  ADT Taxis,S.E.N. Taxi Hire,2470,13/03/2020
Driven By Riide Ltd T/A  ADT Taxis,S.E.N. Taxi Hire,2432,13/03/2020
Driven By Riide Ltd T/A  ADT Taxis,S.E.N. Taxi Hire,1425,27/03/2020
Driven By Riide Ltd T/A  ADT Taxis,S.E.N. Taxi Hire,1050,27/03/2020
Driven By Riide Ltd T/A  ADT Taxis,Home to Sch Trans - Buses,648,27/03/2020
Driven By Riide Ltd T/A  ADT Taxis,Personal Accounts - Govt Depts,1571,31/03/2020
Driven By Riide Ltd T/A  ADT Taxis,Recharge of Pooled Transp Cost,1571,31/03/2020
Driven By Riide Ltd T/A  ADT Taxis,S.E.N. Taxi Hire,1950,27/03/2020
Driven By Riide Ltd T/A  ADT Taxis,S.E.N. Taxi Hire,1920,27/03/2020
Driven By Riide Ltd T/A  ADT Taxis,Home to Sch Trans - Buses,540,27/03/2020
Driven By Riide Ltd T/A  ADT Taxis,Recharge of Pooled Transp Cost,712,27/03/2020
Driven By Riide Ltd T/A  ADT Taxis,S.E.N. Taxi Hire,2232,27/03/2020
Driven By Riide Ltd T/A  ADT Taxis,S.E.N. Taxi Hire,1943.64,27/03/2020
Driven By Riide Ltd T/A  ADT Taxis,S.E.N. Taxi Hire,1206,27/03/2020
Driven By Riide Ltd T/A  ADT Taxis,S.E.N. Taxi Hire,1688.23,27/03/2020
Driven By Riide Ltd T/A  ADT Taxis,S.E.N. Taxi Hire,791.89,27/03/2020
Driven By Riide Ltd T/A  ADT Taxis,S.E.N. Taxi Hire,2015.82,27/03/2020
Driven By Riide Ltd T/A  ADT Taxis,S.E.N. Taxi Hire,1319.52,27/03/2020
Driven By Riide Ltd T/A  ADT Taxis,S.E.N. Taxi Hire,1439.82,27/03/2020
Driven By Riide Ltd T/A  ADT Taxis,S.E.N. Taxi Hire,1773,27/03/2020
Driven By Riide Ltd T/A  ADT Taxis,S.E.N. Taxi Hire,1647,27/03/2020
Driven By Riide Ltd T/A  ADT Taxis,S.E.N. Taxi Hire,1281.6,27/03/2020
Driven By Riide Ltd T/A  ADT Taxis,S.E.N. Taxi Hire,1008,27/03/2020
Driven By Riide Ltd T/A  ADT Taxis,S.E.N. Taxi Hire,1313.76,27/03/2020
Driven By Riide Ltd T/A  ADT Taxis,S.E.N. Taxi Hire,1079.64,31/03/2020
Driven By Riide Ltd T/A  ADT Taxis,S.E.N. Taxi Hire,1879.2,27/03/2020
Driven By Riide Ltd T/A  ADT Taxis,Personal Accounts - Govt Depts,1536,27/03/2020
Driven By Riide Ltd T/A  ADT Taxis,Recharge of Pooled Transp Cost,1536,27/03/2020
Driven By Riide Ltd T/A  ADT Taxis,Recharge of Pooled Transp Cost,881.5,27/03/2020
Driven By Riide Ltd T/A  ADT Taxis,Recharge of Pooled Transp Cost,1382.4,27/03/2020
Driven By Riide Ltd T/A  ADT Taxis,Recharge of Pooled Transp Cost,1620,27/03/2020
Driven By Riide Ltd T/A  ADT Taxis,Recharge of Pooled Transp Cost,1086,27/03/2020
Driven By Riide Ltd T/A  ADT Taxis,S.E.N. Taxi Hire,2130,27/03/2020
Driven By Riide Ltd T/A  ADT Taxis,Home to Sch Trans - Buses,1061.82,27/03/2020
Dudley Lodge Safeguarding Children Services,Private Contractors,16961.43,25/03/2020
Dudley Lodge Safeguarding Children Services,Private Contractors,10942.86,25/03/2020
DUNELM (NORTH EAST AUTISM SOCIETY)&&SSAROE66277,Residential,7005.32,09/03/2020
DWELL LTD T/A LONG LEA &&SSARO3392,Residential,2013,09/03/2020
DWP Debt Management,Personal Accounts - Other,2807.69,12/03/2020
EARLY YEARS NURSERY&&EYRS1679,Grants,40718.88,27/03/2020
EARLY YEARS NURSERY&&EYRS1697,Grants,2872.79,27/03/2020
EARLY YEARS NURSERY&&EYRS1697,Grants,66364.71,27/03/2020
Eastfield Primary School Academy,Payment to Ext SEN Providers,5373,31/03/2020
Eastfield Primary School Academy,Payment to Ext SEN Providers,5373,27/03/2020
Eastfield Primary School Academy,Grants,3000,03/03/2020
Effect Digital Ltd,Materials,1200,27/03/2020
EGERTON LODGE&&SSAROE40415,Residential,-8620.72,09/03/2020
EGERTON LODGE&&SSAROE40415,Residential,7462.72,09/03/2020
EGERTON LODGE&&SSAROE40415,Residential,-8620.72,09/03/2020
EGERTON LODGE&&SSAROE40415,Residential,7462.72,09/03/2020
EGERTON LODGE&&SSAROE40415,Residential,-8620.72,09/03/2020
EGERTON LODGE&&SSAROE40415,Residential,7462.72,09/03/2020
EGERTON LODGE&&SSAROE40415,Residential,-5105.25,09/03/2020
EGERTON LODGE&&SSAROE40415,Residential,-8620.72,09/03/2020
EGERTON LODGE&&SSAROE40415,Residential,46669.53,09/03/2020
EGERTON LODGE&&SSAROE40415,Residential,-10210.5,09/03/2020
EGERTON LODGE&&SSAROE40415,Residential,-10210.5,09/03/2020
EGERTON LODGE&&SSAROE40415,Residential,-10210.5,09/03/2020
EGERTON LODGE&&SSAROE40415,Residential,-9772.89,09/03/2020
EGERTON LODGE&&SSAROE40415,Residential,-510.99,09/03/2020
EGERTON LODGE&&SSAROE40415,Residential,7665.01,09/03/2020
EGERTON LODGE&&SSAROE40415,Residential,739.2,09/03/2020
EGERTON LODGE&&SSAROE40415,Residential,18623.52,09/03/2020
EGERTON LODGE&&SSAROE40415,Residential,-8620.72,09/03/2020
EGERTON LODGE&&SSAROE40415,Residential,7462.72,09/03/2020
EGERTON LODGE&&SSAROE40415,Residential,-8620.72,09/03/2020
EGERTON LODGE&&SSAROE40415,Residential,7462.72,09/03/2020
EGERTON LODGE&&SSAROE40415,Residential,-8620.72,09/03/2020
EGERTON LODGE&&SSAROE40415,Residential,7462.72,09/03/2020
REDACTED PERSONAL DATA,Grants,590.4,27/03/2020
REDACTED PERSONAL DATA,Grants,-813.45,27/03/2020
REDACTED PERSONAL DATA,Grants,9102,27/03/2020
REDACTED PERSONAL DATA,Grants,1657.55,27/03/2020
REDACTED PERSONAL DATA,Grants,984,27/03/2020
Elaines Taxis Ltd,Home to Sch Trans - Buses,891,13/03/2020
Elaines Taxis Ltd,Home to Sch Trans - Buses,1140.48,13/03/2020
Elaines Taxis Ltd,S.E.N. Taxi Hire,1425.6,13/03/2020
Elaines Taxis Ltd,S.E.N. Taxi Hire,1378.08,13/03/2020
Elaines Taxis Ltd,Recharge of Pooled Transp Cost,1621.62,13/03/2020
REDACTED PERSONAL DATA,Grants,5672.4,27/03/2020
REDACTED PERSONAL DATA,Grants,1226.4,27/03/2020
ELITE TAXIS LTD,S.E.N. Taxi Hire,1356.6,04/03/2020
ELITE TAXIS LTD,S.E.N. Taxi Hire,1071,31/03/2020
REDACTED PERSONAL DATA,Residential,3269.4,09/03/2020
REDACTED PERSONAL DATA,Grants,738,27/03/2020
REDACTED PERSONAL DATA,Grants,688.8,27/03/2020
REDACTED PERSONAL DATA,Grants,500,20/03/2020
REDACTED PERSONAL DATA,Grants,1514.16,27/03/2020
REDACTED PERSONAL DATA,Home to Sch Trans - Buses,519.75,13/03/2020
REDACTED PERSONAL DATA,Home to Sch Trans - Buses,525,27/03/2020
REDACTED PERSONAL DATA,Grants,3900,05/03/2020
REDACTED PERSONAL DATA,Residential,2288,09/03/2020
Elliotts Coaches Ltd,Home to Sch Trans - Buses,2613.26,03/03/2020
Elliotts Coaches Ltd,Home to Sch Trans - Buses,2063.1,27/03/2020
ELLISTOWN PLAYGROUP&&EYRS1585,Grants,13319.79,27/03/2020
ELMS RESIDENTIAL HOME LTD T/A THE ELMS&&SSAROE40414,Residential,-1406.14,09/03/2020
ELMS RESIDENTIAL HOME LTD T/A THE ELMS&&SSAROE40414,Residential,1737,09/03/2020
ELMS RESIDENTIAL HOME LTD T/A THE ELMS&&SSAROE40414,Residential,23160,09/03/2020
ELMS RESIDENTIAL HOME LTD T/A THE ELMS&&SSAROE40414,Residential,579,09/03/2020
ELMS RESIDENTIAL HOME LTD T/A THE ELMS&&SSAROE40414,Residential,1406.14,09/03/2020
ELMS RESIDENTIAL HOME LTD T/A THE ELMS&&SSAROE40414,Residential,661.72,09/03/2020
Emblem Print Products Ltd,Materials,732.67,30/03/2020
Embrace Multi Academy Trust T/A Arnesby Church of England Primary School (ARN),Payment to Ext SEN Providers,1536,31/03/2020
Embrace Multi Academy Trust T/A Arnesby Church of England Primary School (ARN),Payment to Ext SEN Providers,1536,27/03/2020
Embrace Multi Academy Trust T/A Brockington College Academy (BRO),Payment to Ext SEN Providers,9900,05/03/2020
Embrace Multi Academy Trust T/A Brockington College Academy (BRO),Payment to Ext SEN Providers,10714,27/03/2020
Embrace Multi Academy Trust T/A Brockington College Academy (BRO),Payment to Ext SEN Providers,10714,31/03/2020
Embrace Multi Academy Trust T/A Croft C of E Primary School (CRO),Payment to Ext SEN Providers,6010,31/03/2020
Embrace Multi Academy Trust T/A Croft C of E Primary School (CRO),Payment to Ext SEN Providers,6010,27/03/2020
Embrace Multi Academy Trust T/A Huncote Community Primary School Academy Trust (HUN),Payment to Ext SEN Providers,2305,31/03/2020
Embrace Multi Academy Trust T/A Huncote Community Primary School Academy Trust (HUN),Payment to Ext SEN Providers,2305,27/03/2020
Embrace Multi Academy Trust T/A Manorfield Church of England Primary School (MAN),Payment to Ext SEN Providers,4210,31/03/2020
Embrace Multi Academy Trust T/A Manorfield Church of England Primary School (MAN),Payment to Ext SEN Providers,4210,27/03/2020
Embrace Multi Academy Trust T/A Sherrier Church of England Primary School (SHE),Children&Families Spprt Servs,8779,03/03/2020
Embrace Multi Academy Trust T/A Whetstone St Peters CE Primary School (STP),Payment to Ext SEN Providers,1235,31/03/2020
Embrace Multi Academy Trust T/A Whetstone St Peters CE Primary School (STP),Payment to Ext SEN Providers,1235,27/03/2020
REDACTED PERSONAL DATA,Grants,1108.18,27/03/2020
REDACTED PERSONAL DATA,Grants,1328.4,27/03/2020
REDACTED PERSONAL DATA,Grants,3423.6,27/03/2020
REDACTED PERSONAL DATA,Grants,1476,27/03/2020
EMMANUEL PLAYGROUP&&EYRS1106,Grants,16277.44,27/03/2020
REDACTED PERSONAL DATA,Grants,1000.73,27/03/2020
REDACTED PERSONAL DATA,Grants,587.16,16/03/2020
REDACTED PERSONAL DATA,Grants,40700.26,27/03/2020
REDACTED PERSONAL DATA,Grants,1468.14,27/03/2020
REDACTED PERSONAL DATA,Grants,1082.38,27/03/2020
EMSA HOMEHELP LTD T/A BLUEBIRD CARE LEICS&&ISHC3983,Home Care / Domiciliary,4801.15,20/03/2020
ENDERBY DANEMILL PRE SCHOOL&&EYRS140316,Grants,21097.8,27/03/2020
Enderby Danemill Primary School T/A Discovery Schools Academies Trust Ltd,Payment to Ext SEN Providers,5905,31/03/2020
Enderby Danemill Primary School T/A Discovery Schools Academies Trust Ltd,Payment to Ext SEN Providers,5905,27/03/2020
Engie Power Ltd,Gas,1522.16,30/03/2020
ENRYCH&&CLCD3315,Day / CLC Services,1035.49,20/03/2020
ENRYCH&&CLCD3315,Day / CLC Services,24279,20/03/2020
Eon Energy Solutions Ltd Highway Lighting,Private Contractors,780,04/03/2020
Eon Energy Solutions Ltd Highway Lighting,Private Contractors,-780,04/03/2020
Equita Ltd,Minimum Cost Contracts,4847.45,30/03/2020
REDACTED PERSONAL DATA,Grants,1817.53,27/03/2020
REDACTED PERSONAL DATA,Grants,-1651.3,27/03/2020
REDACTED PERSONAL DATA,Grants,2017.2,27/03/2020
Erics Fuels Ltd,S.E.N. Taxi Hire,2049.3,16/03/2020
Erics Fuels Ltd,S.E.N. Taxi Hire,1571.56,16/03/2020
Erics Fuels Ltd,S.E.N. Taxi Hire,1977.84,16/03/2020
Erics Fuels Ltd,S.E.N. Taxi Hire,2079,16/03/2020
Erics Fuels Ltd,Recharge of Pooled Transp Cost,1857.43,16/03/2020
REDACTED PERSONAL DATA,Grants,984,27/03/2020
Esland North Ltd,Private Contractors,5914.29,05/03/2020
Esland North Ltd,Private Contractors,29414.29,20/03/2020
Esland North Ltd,Private Contractors,7457.14,05/03/2020
Esland North Ltd,Private Contractors,29414.29,20/03/2020
Esland North Ltd,Private Contractors,29414.29,12/03/2020
Esland North Ltd,Private Contractors,-6171.43,05/03/2020
Esland North Ltd,Private Contractors,6171.43,20/03/2020
Esland North Ltd,Private Contractors,-5914.29,20/03/2020
Esland North Ltd,Private Contractors,-1542.86,20/03/2020
Esland North Ltd,Private Contractors,1285.71,27/03/2020
Esland North Ltd,Private Contractors,-2028.57,27/03/2020
Esland North Ltd,Private Contractors,31442.86,27/03/2020
Esland North Ltd,Private Contractors,31442.86,27/03/2020
Esland North Ltd,Payment to Ext SEN Providers,3410,19/03/2020
Esland North Ltd,Private Contractors,514.29,27/03/2020
ESPA LTD&&SSAROE247,Residential,16546.72,09/03/2020
ESPO,Furniture,3506.4,17/03/2020
REDACTED PERSONAL DATA,Payment to Ext SEN Providers,1217,10/03/2020
REDACTED PERSONAL DATA,Payment to Ext SEN Providers,3675.6,25/03/2020
Everest Taxis,Recharge of Pooled Transp Cost,633.6,25/03/2020
Everest Taxis,Recharge of Pooled Transp Cost,1039.5,18/03/2020
Evington Executive Cars,S.E.N. Taxi Hire,576,27/03/2020
EVINGTON GRANGE LTD&&SARO3365,Residential,6066.08,09/03/2020
EVOLVING CARE&&ISHC2825,Home Care / Domiciliary,1222.68,20/03/2020
Express Cars,S.E.N. Taxi Hire,2671.2,06/03/2020
Express Cars,S.E.N. Taxi Hire,2289.6,31/03/2020
Fairfield Community Primary School Academy,Payment to Ext SEN Providers,3339,31/03/2020
Fairfield Community Primary School Academy,Payment to Ext SEN Providers,3339,27/03/2020
FAIRFIELD LITTLE LEARNERS&&EYRS1412,Grants,1209,27/03/2020
FAIRFIELD LITTLE LEARNERS&&EYRS1412,Grants,25534.8,27/03/2020
FAIRFIELD SCHOOL NURSERY&&EYRS1201,Grants,1511.25,27/03/2020
FAIRFIELD SCHOOL NURSERY&&EYRS1201,Grants,79630.2,27/03/2020
Faith In Families,Other Agency & Cont Services,4580.4,27/03/2020
Falcon Support Services EM Ltd,Private Contractors,2727.02,11/03/2020
Falcon Support Services EM Ltd,Grants,3761.54,20/03/2020
Farndon Fields Academy Ltd T/A Discovery Schools Academy Trust,Buildings - Operational,44276.25,25/03/2020
Farndon Fields Academy Ltd T/A Discovery Schools Academy Trust,Payment to Ext SEN Providers,3038,31/03/2020
Farndon Fields Academy Ltd T/A Discovery Schools Academy Trust,Payment to Ext SEN Providers,3038,27/03/2020
Favour Recruitment Ltd T/A Favour Health Ltd,Other Agency & Cont Services,-921.14,30/03/2020
Favour Recruitment Ltd T/A Favour Health Ltd,Other Agency & Cont Services,6448,05/03/2020
Favour Recruitment Ltd T/A Favour Health Ltd,Other Agency & Cont Services,2763.42,30/03/2020
Favour Recruitment Ltd T/A Favour Health Ltd,Other Agency & Cont Services,3653.87,31/03/2020
Favour Recruitment Ltd T/A Favour Health Ltd,Other Agency & Cont Services,10123.36,30/03/2020
Favour Recruitment Ltd T/A Favour Health Ltd,Other Agency & Cont Services,2763.42,31/03/2020
REDACTED PERSONAL DATA,Residential,14375.88,09/03/2020
REDACTED PERSONAL DATA,Grants,7246.8,27/03/2020
REDACTED PERSONAL DATA,Suspense,2438.7,27/03/2020
REDACTED PERSONAL DATA,Suspense,570,27/03/2020
REDACTED PERSONAL DATA,Grants,1476,27/03/2020
Fenners Chambers,Advertising,900,30/03/2020
FIELD HOUSE NURSING HOME LTD&&SSARO2972,Residential,3567.36,09/03/2020
REDACTED PERSONAL DATA,Admin/Clerical/Prof Staff,7980,28/03/2020
REDACTED PERSONAL DATA,Admin/Clerical/Prof Staff,5460,28/03/2020
REDACTED PERSONAL DATA,Admin/Clerical/Prof Staff,9240,28/03/2020
REDACTED PERSONAL DATA,Admin/Clerical/Prof Staff,5040,28/03/2020
REDACTED PERSONAL DATA,Admin/Clerical/Prof Staff,-7980,28/03/2020
REDACTED PERSONAL DATA,Admin/Clerical/Prof Staff,-5460,28/03/2020
REDACTED PERSONAL DATA,Admin/Clerical/Prof Staff,-5040,28/03/2020
REDACTED PERSONAL DATA,Admin/Clerical/Prof Staff,-9240,28/03/2020
REDACTED PERSONAL DATA,Grants,4380.15,27/03/2020
Fire Brigade Union,Fees & Charges (833),3179.21,20/03/2020
Fire Brigade Union,Personal Accounts - Other,3179.21,20/03/2020
Fire Fighters Charity,Personal Accounts - Other,915.88,03/03/2020
FIRST CHOICE CARE AGENCY LTD&&ISHC3934,Home Care / Domiciliary,1116,20/03/2020
FIRST CHOICE CARE AGENCY LTD&&ISHC3934,Home Care / Domiciliary,1035,20/03/2020
FIRST CHOICE CARE AGENCY LTD&&ISHC3934,Home Care / Domiciliary,1035,20/03/2020
FIRST CHOICE CARE AGENCY LTD&&ISHC3934,Home Care / Domiciliary,1035,20/03/2020
FIRST CHOICE CARE AGENCY LTD&&ISHC3934,Home Care / Domiciliary,1116,20/03/2020
FIRST CHOICE CARE AGENCY LTD&&ISHC3934,Home Care / Domiciliary,1116,20/03/2020
FIRST CHOICE CARE AGENCY LTD&&ISHC3934,Home Care / Domiciliary,4091.7,20/03/2020
First Class Tailored Solutions Ltd,Payment to Ext SEN Providers,6264,19/03/2020
First Class Tailored Solutions Ltd,Payment to Ext SEN Providers,9660,19/03/2020
First Class Tailored Solutions Ltd,Payment to Ext SEN Providers,6480,19/03/2020
First Class Tailored Solutions Ltd,Payment to Ext SEN Providers,7440,19/03/2020
First Class Tailored Solutions Ltd,Payment to Ext SEN Providers,5712,24/03/2020
Firsthose (Leicester) Ltd,R&M of Vehicles-Non Contract,2104.75,27/03/2020
First Leicester City Bus Ltd,Minimum Cost Contracts,258798.31,17/03/2020
First Leicester City Bus Ltd,Minimum Cost Contracts,1109.67,17/03/2020
First Leicester City Bus Ltd,Minimum Cost Contracts,6506.57,17/03/2020
FIRSTMILE LTD&&SSAROE642,Residential,661.71,09/03/2020
FIRSTMILE LTD&&SSAROE642,Residential,579,09/03/2020
FIRSTMILE LTD&&SSAROE642,Residential,2233.29,09/03/2020
FIRSTMILE LTD&&SSAROE642,Residential,32381.29,09/03/2020
FIRSTMILE LTD&&SSAROE642,Residential,-2316,09/03/2020
First Response (First Aid) Ltd,Training Expenses,1188,09/03/2020
FIRSTSMILE LTD&&SSAROE6,Residential,-1323.43,09/03/2020
FIRSTSMILE LTD&&SSAROE6,Residential,1240.71,09/03/2020
FIRSTSMILE LTD&&SSAROE6,Residential,23244,09/03/2020
FIRSTSMILE LTD&&SSAROE6,Residential,5134.29,09/03/2020
FIRSTSMILE LTD&&SSAROE6,Residential,579,09/03/2020
FIRST STEPS PLAYGROUP (BARLESTONE)&&EYRS1109,Grants,31109.72,27/03/2020
FIVE RIVERS LIVING LTD&&SSARO5939,Residential,4584,09/03/2020
FIVE RIVERS LIVING LTD&&SSARO5939,Residential,4584,09/03/2020
FIVE RIVERS LIVING LTD&&SSARO5939,Residential,1054.86,09/03/2020
FLECKNEY BAPTIST PRESCHOOL&&EYRS1782,Grants,1691.38,27/03/2020
FLECKNEY BAPTIST PRESCHOOL&&EYRS1782,Grants,23389.94,27/03/2020
Fleckney History Group,Other Transfer Payments,500,20/03/2020
Flightpath Ltd,Personal Accounts - Other,15750,17/03/2020
REDACTED PERSONAL DATA,S.E.N. Taxi Hire,2162.16,13/03/2020
REDACTED PERSONAL DATA,S.E.N. Taxi Hire,1653.3,13/03/2020
REDACTED PERSONAL DATA,S.E.N. Taxi Hire,920.56,13/03/2020
FLUTTERBIES PRE SCHOOL&&EYRS2505727,Grants,575.14,27/03/2020
FLUTTERBIES PRE SCHOOL&&EYRS2505727,Grants,15505.08,27/03/2020
Focus Foster Care,Other Agency & Cont Services,3725.89,31/03/2020
FOOTSTEPS DAY NURSERY&&EYRS1693,Grants,30541.95,27/03/2020
FOOTSTEPS DAY NURSERY&&EYRS1693,Grants,-813.45,27/03/2020
FOOTSTEPS DAY NURSERY&&EYRS1693,Grants,-28372.54,27/03/2020
FOOTSTEPS DAY NURSERY&&EYRS1693,Grants,34300.8,27/03/2020
Ford & Slater of Leicester,R&M of Vehicles-Non Contract,522.11,27/03/2020
Ford & Slater of Leicester,R&M of Vehicles-Non Contract,742.8,05/03/2020
Ford & Slater of Leicester,R&M of Vehicles-Non Contract,505.1,12/03/2020
Ford & Slater of Leicester,R&M of Vehicles-Non Contract,4320,13/03/2020
Ford & Slater of Leicester,R&M of Vehicles-Non Contract,597.5,19/03/2020
Ford & Slater of Leicester,R&M of Vehicles-Non Contract,1182,26/03/2020
FOREST COURT CARE LTD&&SARO8173,Private Contractors,-1296.21,05/03/2020
FOREST COURT CARE LTD&&SARO8173,Private Contractors,1296.21,05/03/2020
Forest Driveways,Suspense,4374,03/03/2020
Forest Driveways,Suspense,3948.75,27/03/2020
Forest Way School Academy Trust,Payment to Ext SEN Providers,50000,17/03/2020
Forest Way School Academy Trust,Other Expenditure,4500,30/03/2020
Forest Way School Academy Trust,Payment to Ext SEN Providers,119989,31/03/2020
Forest Way School Academy Trust,Payment to Ext SEN Providers,119989,27/03/2020
Forest Way School Academy Trust,Payment to Ext SEN Providers,-1193,30/03/2020
Fossebrook Primary School T/A Discovery Schools Academies Trust,Payment to Ext SEN Providers,4327,31/03/2020
Fossebrook Primary School T/A Discovery Schools Academies Trust,Payment to Ext SEN Providers,4327,27/03/2020
FOSSE HEALTHCARE LTD&&&&ISHC3231,Home Care / Domiciliary,736.04,20/03/2020
FOSSE HEALTHCARE LTD&&&&ISHC3231,Home Care / Domiciliary,1166.27,20/03/2020
FOSSE HEALTHCARE LTD&&&&ISHC3231,Home Care / Domiciliary,700.03,20/03/2020
FOSSE HEALTHCARE LTD&&&&ISHC3231,Home Care / Domiciliary,1849.59,20/03/2020
FOSSE HEALTHCARE LTD&&&&ISHC3231,Home Care / Domiciliary,919.4,20/03/2020
FOSSE HEALTHCARE LTD&&&&ISHC3231,Home Care / Domiciliary,539.94,20/03/2020
FOSSE HEALTHCARE LTD&&&&ISHC3231,Home Care / Domiciliary,670.01,20/03/2020
FOSSE HEALTHCARE LTD&&&&ISHC3231,Home Care / Domiciliary,879.13,20/03/2020
FOSSE HEALTHCARE LTD&&&&ISHC3231,Home Care / Domiciliary,90101.86,20/03/2020
FOSSE HEALTHCARE LTD&&&&ISHC3231,Home Care / Domiciliary,2823.06,20/03/2020
Foster Care Associates Ltd,Other Agency & Cont Services,3568.1,31/03/2020
Foster Care Associates Ltd,Other Agency & Cont Services,3193.44,31/03/2020
Foster Care Associates Ltd,Other Agency & Cont Services,3398.04,31/03/2020
Foster Care Associates Ltd,Other Agency & Cont Services,3397.6,31/03/2020
Foster Care Associates Ltd,Other Agency & Cont Services,3193.44,31/03/2020
Foster Care Associates Ltd,Other Agency & Cont Services,3568.1,31/03/2020
Foster Care Associates Ltd,Other Agency & Cont Services,3568.1,31/03/2020
Foster Care Associates Ltd,Other Agency & Cont Services,3397.6,31/03/2020
Foster Care Associates Ltd,Other Agency & Cont Services,3398.04,31/03/2020
Fostering People Ltd,Other Agency & Cont Services,3496.8,31/03/2020
Fostering People Ltd,Other Agency & Cont Services,3321.96,31/03/2020
Fostering People Ltd,Other Agency & Cont Services,3375.24,31/03/2020
Fostering People Ltd,Other Agency & Cont Services,3035.92,31/03/2020
Fostering People Ltd,Other Agency & Cont Services,3444.1,31/03/2020
Fostering People Ltd,Other Agency & Cont Services,3034.99,31/03/2020
Fostering People Ltd,Other Agency & Cont Services,3496.8,31/03/2020
Fostering People Ltd,Other Agency & Cont Services,3444.1,31/03/2020
Fostering People Ltd,Other Agency & Cont Services,3205.09,31/03/2020
Fostering People Ltd,Other Agency & Cont Services,3034.99,31/03/2020
Fostering People Ltd,Other Agency & Cont Services,3270.5,31/03/2020
Fostering People Ltd,Other Agency & Cont Services,3444.1,31/03/2020
FOUNDATION CARE LTD T/A MANTON HALL&&SSAROE40333,Residential,4480,09/03/2020
FOUR SEASONS (EVEDALE LTD) RE THE WILLOWS&&SSAROE40243,Private Contractors,5947.36,09/03/2020
FOUR SEASONS (EVEDALE LTD) RE THE WILLOWS&&SSAROE40243,Residential,23387.92,09/03/2020
FOUR SEASONS (EVEDALE) LTD&&SSARO3292,Private Contractors,2311.96,09/03/2020
FOUR SEASONS LTD T/A THE OAKS AND LITTLE OAKS&&SSARO5384,Residential,2140,09/03/2020
FOXTON SCHOOL PRESCHOOL&&EYRS1812,Grants,2361.6,27/03/2020
FPCR Environment & Design Ltd,Design & Supervision Fees Ext,9276,13/03/2020
FRANCES BUTLIN&&EYRSEY471145,Grants,713.4,27/03/2020
FREEDOM ACTIVE LTD&&CLCD3320,Day / CLC Services,2268,20/03/2020
FREEDOM CARE LTD T/A PRIVATE ROAD   HUGGLESCOTE&&SARO3385,Residential,26275.64,09/03/2020
FREEDOM SUPPORT SOLUTIONS LTD&&CLCD4598,Day / CLC Services,2792,20/03/2020
Frisby CE Primary School Academy,Payment to Ext SEN Providers,1361,31/03/2020
Frisby CE Primary School Academy,Payment to Ext SEN Providers,1361,27/03/2020
FRISBY PRESCHOOL&&EYRS1112,Grants,1211.1,27/03/2020
FRISBY PRESCHOOL&&EYRS1112,Grants,12074.52,27/03/2020
FSHC NEWCO LTD T/A THE LAWNS CARE HOME&&SSAROE76864,Residential,-14876,09/03/2020
FSHC NEWCO LTD T/A THE LAWNS CARE HOME&&SSAROE76864,Residential,15328,09/03/2020
FSHC NEWCO LTD T/A THE LAWNS CARE HOME&&SSAROE76864,Residential,-14876,09/03/2020
FSHC NEWCO LTD T/A THE LAWNS CARE HOME&&SSAROE76864,Residential,15328,09/03/2020
FSHC NEWCO LTD T/A THE LAWNS CARE HOME&&SSAROE76864,Residential,-14876,09/03/2020
FSHC NEWCO LTD T/A THE LAWNS CARE HOME&&SSAROE76864,Residential,15328,09/03/2020
FSHC NEWCO LTD T/A THE LAWNS CARE HOME&&SSAROE76864,Residential,-7438,09/03/2020
FSHC NEWCO LTD T/A THE LAWNS CARE HOME&&SSAROE76864,Residential,-14876,09/03/2020
FSHC NEWCO LTD T/A THE LAWNS CARE HOME&&SSAROE76864,Residential,84304,09/03/2020
FSHC NEWCO LTD T/A THE LAWNS CARE HOME&&SSAROE76864,Residential,-14876,09/03/2020
FSHC NEWCO LTD T/A THE LAWNS CARE HOME&&SSAROE76864,Residential,-14876,09/03/2020
FSHC NEWCO LTD T/A THE LAWNS CARE HOME&&SSAROE76864,Residential,-14876,09/03/2020
FSHC NEWCO LTD T/A THE LAWNS CARE HOME&&SSAROE76864,Residential,-14876,09/03/2020
FSHC NEWCO LTD T/A THE LAWNS CARE HOME&&SSAROE76864,Residential,30856,09/03/2020
FSHC NEWCO LTD T/A THE LAWNS CARE HOME&&SSAROE76864,Residential,-14876,09/03/2020
FSHC NEWCO LTD T/A THE LAWNS CARE HOME&&SSAROE76864,Residential,-14876,09/03/2020
FSHC NEWCO LTD T/A THE LAWNS CARE HOME&&SSAROE76864,Residential,18028,09/03/2020
FSHC NEWCO LTD T/A THE LAWNS CARE HOME&&SSAROE76864,Residential,-14876,09/03/2020
FSHC NEWCO LTD T/A THE LAWNS CARE HOME&&SSAROE76864,Residential,15328,09/03/2020
FTM Dance CIC (Forward Thinking Movement),Recharge of Pooled Transp Cost,594,16/03/2020
FTM Dance CIC (Forward Thinking Movement),Personal Accounts - Govt Depts,1584,19/03/2020
FTM Dance CIC (Forward Thinking Movement),Personal Accounts - Govt Depts,1386,27/03/2020
FTM Dance CIC (Forward Thinking Movement),Private Contractors,14793.65,25/03/2020
FTM DANCE&&CLCD3324,Day / CLC Services,2206.75,20/03/2020
Fusion Fostering,Other Agency & Cont Services,4014.5,31/03/2020
Fusion Fostering,Other Agency & Cont Services,4014.5,31/03/2020
FUTURE DIRECTIONS CIC&&SSARO3273,Residential,3227.52,09/03/2020
Futureminds Ltd,Other Agency & Cont Services,-2520,27/03/2020
Futureminds Ltd,Other Agency & Cont Services,2289.17,27/03/2020
Futureminds Ltd,Other Agency & Cont Services,2520,27/03/2020
Futureminds Ltd,Other Agency & Cont Services,2160,27/03/2020
Futureminds Ltd,Other Agency & Cont Services,3120,27/03/2020
GADDESBY SCHOOL COMMUNITY LTD&&EYRS1355,Grants,591.2,24/03/2020
GADDESBY SCHOOL COMMUNITY LTD&&EYRS1355,Grants,18786.92,24/03/2020
REDACTED PERSONAL DATA,Home to Sch Trans - Buses,570,04/03/2020
REDACTED PERSONAL DATA,Home to Sch Trans - Buses,570,04/03/2020
GARENDON RESIDENTIAL HOME&&SSAROE46112,Residential,-6157.4,09/03/2020
GARENDON RESIDENTIAL HOME&&SSAROE46112,Residential,-6157.4,09/03/2020
GARENDON RESIDENTIAL HOME&&SSAROE46112,Residential,65430,09/03/2020
GARENDON RESIDENTIAL HOME&&SSAROE46112,Residential,-6157.4,09/03/2020
GARENDON RESIDENTIAL HOME&&SSAROE46112,Residential,-2898,09/03/2020
GARENDON RESIDENTIAL HOME&&SSAROE46112,Residential,-6157.4,09/03/2020
GARENDON RESIDENTIAL HOME&&SSAROE46112,Residential,-6157.4,09/03/2020
GARENDON RESIDENTIAL HOME&&SSAROE46112,Residential,-6157.4,09/03/2020
GARENDON RESIDENTIAL HOME&&SSAROE46112,Residential,-6157.4,09/03/2020
GARENDON RESIDENTIAL HOME&&SSAROE46112,Residential,-6157.4,09/03/2020
GARENDON RESIDENTIAL HOME&&SSAROE46112,Residential,8023.52,09/03/2020
GARENDON RESIDENTIAL HOME&&SSAROE46112,Residential,13356,09/03/2020
GARENDON RESIDENTIAL HOME&&SSAROE46112,Residential,-6157.4,09/03/2020
GARENDON RESIDENTIAL HOME&&SSAROE46112,Residential,8724,09/03/2020
GARENDON RESIDENTIAL HOME&&SSAROE46112,Residential,-6157.4,09/03/2020
GARENDON RESIDENTIAL HOME&&SSAROE46112,Residential,26172,09/03/2020
GARENDON RESIDENTIAL HOME&&SSAROE46112,Residential,-6157.4,09/03/2020
Gartree High School Academy,Payment to Ext SEN Providers,-634,27/03/2020
Gartree High School Academy,Payment to Ext SEN Providers,10306,05/03/2020
Gartree High School Academy,Payment to Ext SEN Providers,11680,27/03/2020
Gartree High School Academy,Payment to Ext SEN Providers,11680,31/03/2020
Gateway College,Payment to Ext SEN Providers,13035,30/03/2020
REDACTED PERSONAL DATA,Grants,1476,27/03/2020
GB CARE LTD&&SSAROE928,Nursing,4136.8,09/03/2020
GB CARE LTD&&SSAROE928,Private Contractors,4136.8,09/03/2020
REDACTED PERSONAL DATA,Home to Sch Trans - Buses,8308.51,04/03/2020
REDACTED PERSONAL DATA,Home to Sch Trans - Buses,4435.05,27/03/2020
REDACTED PERSONAL DATA,Grants,-644.8,27/03/2020
REDACTED PERSONAL DATA,Grants,109490.34,27/03/2020
REDACTED PERSONAL DATA,Grants,2460,27/03/2020
REDACTED PERSONAL DATA,Grants,958.53,27/03/2020
REDACTED PERSONAL DATA,Grants,4590,27/03/2020
REDACTED PERSONAL DATA,Grants,2296,27/03/2020
Gems Cabs Ltd,S.E.N. Taxi Hire,1514.7,13/03/2020
Gems Cabs Ltd,S.E.N. Taxi Hire,1514.7,13/03/2020
Gems Cabs Ltd,S.E.N. Taxi Hire,1782,13/03/2020
Gems Cabs Ltd,S.E.N. Taxi Hire,1585.08,13/03/2020
Gems Cabs Ltd,S.E.N. Taxi Hire,1425.6,13/03/2020
Gems Cabs Ltd,S.E.N. Taxi Hire,1960.2,13/03/2020
Gems Cabs Ltd,Personal Accounts - Govt Depts,1425.6,13/03/2020
Gems Cabs Ltd,Recharge of Pooled Transp Cost,1425.6,13/03/2020
Gems Cabs Ltd,S.E.N. Taxi Hire,1692.9,13/03/2020
Gems Cabs Ltd,S.E.N. Taxi Hire,1995.84,13/03/2020
Gems Cabs Ltd,S.E.N. Taxi Hire,1776.06,13/03/2020
Gems Cabs Ltd,Personal Accounts - Govt Depts,665.28,13/03/2020
Gems Cabs Ltd,Recharge of Pooled Transp Cost,665.28,13/03/2020
GENESIS HOMES (ESSEX) LTD&&SSARO1089,Residential,-3216,09/03/2020
GENESIS HOMES (ESSEX) LTD&&SSARO1089,Residential,3216,09/03/2020
GENESIS HOMES (ESSEX) LTD&&SSARO1089,Residential,-3216,09/03/2020
GENESIS HOMES (ESSEX) LTD&&SSARO1089,Residential,3216,09/03/2020
GENESIS HOMES (ESSEX) LTD&&SSARO1089,Residential,-3216,09/03/2020
GENESIS HOMES (ESSEX) LTD&&SSARO1089,Residential,20904,09/03/2020
GENESIS HOMES (ESSEX) LTD&&SSARO1089,Residential,-3216,09/03/2020
GENESIS HOMES (ESSEX) LTD&&SSARO1089,Residential,-3216,09/03/2020
GENESIS HOMES (ESSEX) LTD&&SSARO1089,Residential,-3216,09/03/2020
GENESIS HOMES (ESSEX) LTD&&SSARO1089,Residential,2895,09/03/2020
GENESIS HOMES (ESSEX) LTD&&SSARO1089,Residential,-3216,09/03/2020
GENESIS HOMES (ESSEX) LTD&&SSARO1089,Residential,-3216,09/03/2020
GENESIS HOMES (ESSEX) LTD&&SSARO1089,Residential,-1608,09/03/2020
GENESIS HOMES (ESSEX) LTD&&SSARO1089,Residential,13087.16,09/03/2020
GENESIS HOMES (ESSEX) LTD&&SSARO1089,Residential,17996,09/03/2020
GENESIS HOMES (ESSEX) LTD&&SSARO1089,Residential,-3216,09/03/2020
GENESIS HOMES (ESSEX) LTD&&SSARO1089,Residential,4043.14,09/03/2020
GENESIS HOMES (ESSEX) LTD&&SSARO1089,Residential,-3216,09/03/2020
GENESIS HOMES (ESSEX) LTD&&SSARO1089,Residential,3133.29,09/03/2020
GENESIS HOMES (ESSEX) LTD&&SSARO1089,Residential,-3216,09/03/2020
GENESIS HOMES (ESSEX) LTD&&SSARO1089,Residential,3216,09/03/2020
REDACTED PERSONAL DATA,Home to Sch Trans - Buses,510,27/03/2020
REDACTED PERSONAL DATA,S.E.N. Taxi Hire,1170,27/03/2020
GERAINT HOUSE LTD T/A GERAINT HOUSE&&SSARO8965,Residential,3181.1,09/03/2020
GERAINT HOUSE LTD T/A GERAINT HOUSE&&SSARO8965,Residential,2206.29,09/03/2020
Gilmorton Chandler CE Aided Primary School Academy,Payment to Ext SEN Providers,3652,31/03/2020
Gilmorton Chandler CE Aided Primary School Academy,Payment to Ext SEN Providers,3652,27/03/2020
GINGERBREAD 2 NURSERY&&EYRS1729,Grants,65112.33,27/03/2020
GINGERBREAD COTTAGE PLAYGROUP&&EYRS1342,Grants,1708.53,27/03/2020
GINGERBREAD COTTAGE PLAYGROUP&&EYRS1342,Grants,38225.76,27/03/2020
GINGERBREAD NOOK NURSERY&&EY2527496,Grants,12195.6,27/03/2020
Glebe House    1,Private Contractors,1890,27/03/2020
Glebe House    1,Private Contractors,1170,27/03/2020
Glebe House (Charnwood) Ltd     1,Deferred Charges (Grants & Advances),3000,24/03/2020
GLEBE HOUSE (CHARNWOOD) LTD&&CLCD3308,Day / CLC Services,45365.74,20/03/2020
GLENFIELD METHODIST PLAYGROUP GENERAL ACCOUNT TRUST&&EYRS1420,Grants,18836.09,27/03/2020
Glenfield Primary School Academy,Payment to Ext SEN Providers,7638,30/03/2020
Glenfield Primary School Academy,Payment to Ext SEN Providers,7638,27/03/2020
Glenfield Primary School Academy,Payment to Ext SEN Providers,2828,31/03/2020
Glenfield Primary School Academy,Payment to Ext SEN Providers,2828,27/03/2020
GLENHILLS PRE-SCHOOL&&EYRSEY558542,Grants,27323.76,27/03/2020
Glen Hills Primary School Academy,Payment to Ext SEN Providers,3586,31/03/2020
Glen Hills Primary School Academy,Payment to Ext SEN Providers,3586,27/03/2020
Glenmere Primary School Academy,Payment to Ext SEN Providers,1689,31/03/2020
Glenmere Primary School Academy,Payment to Ext SEN Providers,1689,27/03/2020
Global Mediation Ltd,Consultants & Specialists,3780,19/03/2020
Global Mediation Ltd,Consultants & Specialists,540,19/03/2020
Global Mediation Ltd,Consultants & Specialists,4536,16/03/2020
GMBATU,Fees & Charges (833),3985.99,11/03/2020
GMBATU,Suspense,3985.99,11/03/2020
REDACTED PERSONAL DATA,S.E.N. Taxi Hire,1235,04/03/2020
REDACTED PERSONAL DATA,S.E.N. Taxi Hire,975,27/03/2020
REDACTED PERSONAL DATA,R&M of Vehicles-Non Contract,567.62,27/03/2020
Go Cabs Ltd,S.E.N. Taxi Hire,792,06/03/2020
Go Cabs Ltd,S.E.N. Taxi Hire,528,27/03/2020
Goldline Cabs Associates Ltd,S.E.N. Taxi Hire,2976,11/03/2020
Goldline Cabs Associates Ltd,Personal Accounts - Govt Depts,1137.46,11/03/2020
Goldline Cabs Associates Ltd,Recharge of Pooled Transp Cost,1137.46,11/03/2020
Goldline Cabs Associates Ltd,S.E.N. Taxi Hire,2111.28,11/03/2020
Goldline Cabs Associates Ltd,Home to Sch Trans - Buses,1380.37,11/03/2020
Goldline Cabs Associates Ltd,S.E.N. Taxi Hire,2245.8,11/03/2020
Goldline Cabs Associates Ltd,Recharge of Pooled Transp Cost,1259.28,11/03/2020
Goldline Cabs Associates Ltd,Recharge of Pooled Transp Cost,1183.2,11/03/2020
Goldline Cabs Associates Ltd,S.E.N. Taxi Hire,1568.1,11/03/2020
Goldline Cabs Associates Ltd,S.E.N. Taxi Hire,2031.3,11/03/2020
Goldline Cabs Associates Ltd,S.E.N. Taxi Hire,1368,11/03/2020
Goldline Cabs Associates Ltd,S.E.N. Taxi Hire,2639.04,11/03/2020
Goldline Cabs Associates Ltd,S.E.N. Taxi Hire,1020,11/03/2020
Goldline Cabs Associates Ltd,Recharge of Pooled Transp Cost,2052,11/03/2020
GOOSEBERRY BUSH T/A BUSH BABIES CHILDRENS NURSERIES LTD&&EYRS1343,Grants,887.4,27/03/2020
GOOSEBERRY BUSH T/A BUSH BABIES CHILDRENS NURSERIES LTD&&EYRS1343,Grants,26218.99,27/03/2020
GP HOMECARE LTD T/A RADIS COMMUNITY CARE&&ISHC5054,Home Care / Domiciliary,1261.96,20/03/2020
GP HOMECARE LTD T/A RADIS COMMUNITY CARE&&ISHC5054,Home Care / Domiciliary,-550.43,20/03/2020
GP HOMECARE LTD T/A RADIS COMMUNITY CARE&&ISHC5054,Home Care / Domiciliary,10386.53,20/03/2020
GP HOMECARE LTD T/A RADIS COMMUNITY CARE&&ISHC5054,Home Care / Domiciliary,769.71,20/03/2020
GP HOMECARE LTD T/A RADIS COMMUNITY CARE&&ISHC5054,Home Care / Domiciliary,769.7,20/03/2020
GRACE DIEU MANOR PREPARATORY SCHOOL&&EYRSEXMT0025,Grants,60987.6,27/03/2020
Grantham College,Payment to Ext SEN Providers,6648.89,11/03/2020
GRASSHOPPER CLUB&&EYRS1500,Grants,692.15,27/03/2020
GRASSHOPPER CLUB&&EYRS1500,Grants,51058.14,27/03/2020
GRATIA&&SSAROE40405,Residential,15030.92,09/03/2020
GREAT BOWDEN PLAYGROUP&&EYRS1113,Grants,23342.94,27/03/2020
GREAT BOWDEN PLAYGROUP&&EYRS1113,Grants,615,27/03/2020
GREAT BOWDEN PLAYGROUP&&EYRS1113,Grants,-813.45,27/03/2020
GREAT BOWDEN PLAYGROUP&&EYRS1113,Grants,-17694.76,27/03/2020
GREAT BOWDEN PLAYGROUP&&EYRS1113,Grants,25730.7,27/03/2020
GREAT DALBY PRE SCHOOL PLAYGROUP&&EYRS1531,Grants,14746.72,27/03/2020
GREENFIELD PRIMARY SCHOOL&&EYRSEXMT0026,Grants,59510.18,27/03/2020
GREEN LEAF HEALTHCARE LTD T/A LIVESEY LODGE CARE HOME&&SSAROE40457,Residential,-4160,09/03/2020
GREEN LEAF HEALTHCARE LTD T/A LIVESEY LODGE CARE HOME&&SSAROE40457,Residential,4632,09/03/2020
GREEN LEAF HEALTHCARE LTD T/A LIVESEY LODGE CARE HOME&&SSAROE40457,Residential,-4160,09/03/2020
GREEN LEAF HEALTHCARE LTD T/A LIVESEY LODGE CARE HOME&&SSAROE40457,Residential,4632,09/03/2020
GREEN LEAF HEALTHCARE LTD T/A LIVESEY LODGE CARE HOME&&SSAROE40457,Residential,-4160,09/03/2020
GREEN LEAF HEALTHCARE LTD T/A LIVESEY LODGE CARE HOME&&SSAROE40457,Residential,4632,09/03/2020
GREEN LEAF HEALTHCARE LTD T/A LIVESEY LODGE CARE HOME&&SSAROE40457,Residential,-2080,09/03/2020
GREEN LEAF HEALTHCARE LTD T/A LIVESEY LODGE CARE HOME&&SSAROE40457,Residential,-4160,09/03/2020
GREEN LEAF HEALTHCARE LTD T/A LIVESEY LODGE CARE HOME&&SSAROE40457,Residential,25476,09/03/2020
GREEN LEAF HEALTHCARE LTD T/A LIVESEY LODGE CARE HOME&&SSAROE40457,Residential,-4160,09/03/2020
GREEN LEAF HEALTHCARE LTD T/A LIVESEY LODGE CARE HOME&&SSAROE40457,Residential,-4160,09/03/2020
GREEN LEAF HEALTHCARE LTD T/A LIVESEY LODGE CARE HOME&&SSAROE40457,Residential,-4160,09/03/2020
GREEN LEAF HEALTHCARE LTD T/A LIVESEY LODGE CARE HOME&&SSAROE40457,Residential,-4160,09/03/2020
GREEN LEAF HEALTHCARE LTD T/A LIVESEY LODGE CARE HOME&&SSAROE40457,Residential,25600,09/03/2020
GREEN LEAF HEALTHCARE LTD T/A LIVESEY LODGE CARE HOME&&SSAROE40457,Residential,-4160,09/03/2020
GREEN LEAF HEALTHCARE LTD T/A LIVESEY LODGE CARE HOME&&SSAROE40457,Residential,6120.86,09/03/2020
GREEN LEAF HEALTHCARE LTD T/A LIVESEY LODGE CARE HOME&&SSAROE40457,Residential,-4160,09/03/2020
GREEN LEAF HEALTHCARE LTD T/A LIVESEY LODGE CARE HOME&&SSAROE40457,Residential,4632,09/03/2020
GREEN LEAF HEALTHCARE LTD T/A LIVESEY LODGE CARE HOME&&SSAROE40457,Residential,-4160,09/03/2020
GREEN LEAF HEALTHCARE LTD T/A LIVESEY LODGE CARE HOME&&SSAROE40457,Residential,4632,09/03/2020
GREYSTOKE CHILDCARE LTD&&EYRS1759,Grants,28622.3,27/03/2020
Greystoke Primary School T/A Discovery Schools Academies Trust,Payment to Ext SEN Providers,1438,31/03/2020
Greystoke Primary School T/A Discovery Schools Academies Trust,Payment to Ext SEN Providers,1438,27/03/2020
GROBY NURSERY SCHOOL & PLAYGROUP&&EYRS1423,Grants,25146.66,27/03/2020
GROVE CARE LTD T/A OLIVE TREE HOUSE&&SSARO3373,Residential,2913.94,09/03/2020
REDACTED PERSONAL DATA,S.E.N. Taxi Hire,1080,27/03/2020
REDACTED PERSONAL DATA,Recharge of Pooled Transp Cost,1090,27/03/2020
Gryphon House Ltd,Payment to Ext SEN Providers,772487.36,16/03/2020
GS Moon,Recharge of Pooled Transp Cost,552,27/03/2020
GS Moon,Recharge of Pooled Transp Cost,552,10/03/2020
GS Moon,S.E.N. Taxi Hire,1316,27/03/2020
GS Moon,S.E.N. Taxi Hire,1692,10/03/2020
G&S Services (E Mids) CIC,Other Transfer Payments,5040,13/03/2020
REDACTED PERSONAL DATA,S.E.N. Taxi Hire,1795.5,04/03/2020
REDACTED PERSONAL DATA,S.E.N. Taxi Hire,1323,27/03/2020
REDACTED PERSONAL DATA,S.E.N. Taxi Hire,1113,04/03/2020
REDACTED PERSONAL DATA,S.E.N. Taxi Hire,954,27/03/2020
GUTHLAXTON COLLEGE&&EYRS1776,Grants,1637.69,27/03/2020
GUTHLAXTON COLLEGE&&EYRS1776,Grants,31950,27/03/2020
REDACTED PERSONAL DATA,S.E.N. Taxi Hire,1268.75,27/03/2020
REDACTED PERSONAL DATA,S.E.N. Taxi Hire,1095,27/03/2020
HALES GROUP LTD&&ISHC3228,Home Care / Domiciliary,-558.18,20/03/2020
HALES GROUP LTD&&ISHC3228,Home Care / Domiciliary,803.07,20/03/2020
HALES GROUP LTD&&ISHC3228,Home Care / Domiciliary,635.48,20/03/2020
HALES GROUP LTD&&ISHC3228,Home Care / Domiciliary,561.48,20/03/2020
HALES GROUP LTD&&ISHC3228,Home Care / Domiciliary,60456.32,20/03/2020
HALES GROUP LTD&&ISHC3228,Home Care / Domiciliary,3007.78,20/03/2020
Hallam Fields Primary School,Payment to Ext SEN Providers,6070,31/03/2020
Hallam Fields Primary School,Payment to Ext SEN Providers,6070,27/03/2020
Hallbrook Primary School,Payment to Ext SEN Providers,2689,31/03/2020
Hallbrook Primary School,Payment to Ext SEN Providers,2689,27/03/2020
HALL LANE METHODIST PLAYGROUP&&EYRS1516,Grants,542.3,27/03/2020
HALL LANE METHODIST PLAYGROUP&&EYRS1516,Grants,17142.43,27/03/2020
Hall Orchard CE Primary School Academy,Payment to Ext SEN Providers,4613,31/03/2020
Hall Orchard CE Primary School Academy,Payment to Ext SEN Providers,4613,27/03/2020
HALL ORCHARD EXTENDED SERVICES LTD&&EYRS1425,Grants,758.19,27/03/2020
HALL ORCHARD EXTENDED SERVICES LTD&&EYRS1425,Grants,29692.71,27/03/2020
HANDPRINTS@THEBAPTISTCHURCH&&EYRS1794,Grants,-3142.87,27/03/2020
HANDPRINTS@THEBAPTISTCHURCH&&EYRS1794,Grants,-30670.38,27/03/2020
HANDPRINTS@THEBAPTISTCHURCH&&EYRS1794,Grants,22575.6,27/03/2020
HANDPRINTS@THEBAPTISTCHURCH&&EYRS1794,Grants,-1004.77,27/03/2020
HANDPRINTS@THEBAPTISTCHURCH&&EYRS1794,Grants,25002,27/03/2020
Handy Cars Taxis,S.E.N. Taxi Hire,1171.17,16/03/2020
Hanwell Solutions Ltd,Display/Conservn/Exhibitions,-1305,10/03/2020
Happy Childrens Homes Ltd,Private Contractors,4501,05/03/2020
HAPPY DAYS&&EYRSEY494844,Grants,-1195.7,27/03/2020
HAPPY DAYS&&EYRSEY494844,Grants,16470,27/03/2020
HAPPY DAYS(HINCKLEY)&&EYRSEY563467,Grants,2917.05,27/03/2020
HAPPY DAYS(HINCKLEY)&&EYRSEY563467,Grants,25796.8,27/03/2020
Happy Hedgehogs Pre School,Other Transfer Payments,703.75,02/03/2020
Happy Hedgehogs Pre School,Other Transfer Payments,547.2,27/03/2020
HAPPY HEDGEHOGS PRE SCHOOL&&EYRS1115,Grants,797.94,27/03/2020
HAPPY HEDGEHOGS PRE SCHOOL&&EYRS1115,Grants,30055.51,27/03/2020
Harborough District Council,Buildings - Operational,2700,11/03/2020
HARBOROUGH MONTESSORI PRE SCHOOL&&EYRS1538,Grants,17601.24,27/03/2020
REDACTED PERSONAL DATA,Recharge of Pooled Transp Cost,1894,06/03/2020
REDACTED PERSONAL DATA,S.E.N. Taxi Hire,1894,06/03/2020
REDACTED PERSONAL DATA,S.E.N. Taxi Hire,1358.5,06/03/2020
REDACTED PERSONAL DATA,Recharge of Pooled Transp Cost,2180.46,06/03/2020
REDACTED PERSONAL DATA,S.E.N. Taxi Hire,2180.46,06/03/2020
REDACTED PERSONAL DATA,S.E.N. Taxi Hire,2631.5,06/03/2020
REDACTED PERSONAL DATA,S.E.N. Taxi Hire,1947.5,06/03/2020
REDACTED PERSONAL DATA,S.E.N. Taxi Hire,1200.65,06/03/2020
REDACTED PERSONAL DATA,Recharge of Pooled Transp Cost,1406.5,31/03/2020
REDACTED PERSONAL DATA,S.E.N. Taxi Hire,1406.5,31/03/2020
REDACTED PERSONAL DATA,S.E.N. Taxi Hire,1072.5,31/03/2020
REDACTED PERSONAL DATA,Recharge of Pooled Transp Cost,1767.35,31/03/2020
REDACTED PERSONAL DATA,S.E.N. Taxi Hire,1767.35,31/03/2020
REDACTED PERSONAL DATA,S.E.N. Taxi Hire,2077.5,31/03/2020
REDACTED PERSONAL DATA,S.E.N. Taxi Hire,1537.5,31/03/2020
REDACTED PERSONAL DATA,S.E.N. Taxi Hire,973.5,31/03/2020
REDACTED PERSONAL DATA,S.E.N. Taxi Hire,1312.61,31/03/2020
HARLEQUINS PRIVATE DAY NURSERY&&EYRS1529,Grants,13446,24/03/2020
HARLEY HOUSE CARE HOME LIMITED&&SSAROE40260,Private Contractors,10056.57,05/03/2020
HARLEY HOUSE CARE HOME LIMITED&&SSAROE40260,Residential,10056.57,05/03/2020
HARLEY HOUSE CARE HOME LIMITED&&SSAROE40260,Residential,-4064,05/03/2020
HARLEY HOUSE CARE HOME LIMITED&&SSAROE40260,Residential,-4064,05/03/2020
HARLEY HOUSE CARE HOME LIMITED&&SSAROE40260,Private Contractors,-1928.57,05/03/2020
HARMONY CARE & SUPPORT LTD&&ISHC2872,Home Care / Domiciliary,7583.34,20/03/2020
Hart of Fleckney Bowls Club,Deferred Charges (Grants & Advances),960,03/03/2020
Hastings High School Academy,Payment to Ext SEN Providers,3337,05/03/2020
Hastings High School Academy,Payment to Ext SEN Providers,2860,27/03/2020
Hastings High School Academy,Payment to Ext SEN Providers,2860,31/03/2020
Haven Power Ltd,Electricity,5479.95,03/03/2020
HAWTHORNE CARE LTD&&SSAROE1360,Residential,14304,09/03/2020
Haynes,Private Contractors,600,27/03/2020
Haynes,Private Contractors,840,27/03/2020
HC ONE C/O ACACIA CARE HOME&&SSARO3299,Residential,2266.48,09/03/2020
HC ONE LTD RE BEAUVALE CARE HOME&&SSAROE48787,Private Contractors,4672,09/03/2020
HC ONE LTD RE BEAUVALE CARE HOME&&SSAROE48787,Residential,4672,09/03/2020
HC ONE LTD RE CEDAR COURT&&SSAROE43896,Residential,-6304,09/03/2020
HC ONE LTD RE CEDAR COURT&&SSAROE43896,Residential,8354.14,09/03/2020
HC ONE LTD RE CEDAR COURT&&SSAROE43896,Residential,-1737,09/03/2020
HC ONE LTD RE CEDAR COURT&&SSAROE43896,Residential,827.14,09/03/2020
HC ONE LTD RE CEDAR COURT&&SSAROE43896,Residential,-6304,09/03/2020
HC ONE LTD RE CEDAR COURT&&SSAROE43896,Residential,6948,09/03/2020
HC ONE LTD RE CEDAR COURT&&SSAROE43896,Residential,-1110,09/03/2020
HC ONE LTD RE CEDAR COURT&&SSAROE43896,Residential,-5590.43,09/03/2020
HC ONE LTD RE CEDAR COURT&&SSAROE43896,Residential,13151.57,09/03/2020
HC ONE LTD RE CEDAR COURT&&SSAROE43896,Residential,-1110,09/03/2020
HC ONE LTD RE CEDAR COURT&&SSAROE43896,Residential,-4480.43,09/03/2020
HC ONE LTD RE CEDAR COURT&&SSAROE43896,Residential,-4084,09/03/2020
HC ONE LTD RE CEDAR COURT&&SSAROE43896,Residential,-2419,09/03/2020
HC ONE LTD RE CEDAR COURT&&SSAROE43896,Residential,1488.86,09/03/2020
HC ONE LTD RE CEDAR COURT&&SSAROE43896,Residential,-665.71,09/03/2020
HC ONE LTD RE CEDAR COURT&&SSAROE43896,Residential,-713.57,09/03/2020
HC ONE LTD RE CEDAR COURT&&SSAROE43896,Residential,1158,09/03/2020
HC ONE LTD RE CEDAR COURT&&SSAROE43896,Private Contractors,12452,09/03/2020
HC ONE LTD RE CEDAR COURT&&SSAROE43896,Residential,12452,09/03/2020
HC ONE LTD RE CEDAR COURT&&SSAROE43896,Residential,36824.4,09/03/2020
HC ONE LTD RE CEDAR COURT&&SSAROE43896,Residential,-6304,09/03/2020
HC ONE LTD RE CEDAR COURT&&SSAROE43896,Residential,16211.99,09/03/2020
HC ONE LTD RE CEDAR COURT&&SSAROE43896,Residential,-6304,09/03/2020
HC ONE LTD RE CEDAR COURT&&SSAROE43896,Residential,10008.42,09/03/2020
HC ONE LTD RE CEDAR COURT&&SSAROE43896,Residential,4632,09/03/2020
HC ONE LTD RE CEDAR COURT&&SSAROE43896,Residential,-6304,09/03/2020
HC ONE LTD RE CEDAR COURT&&SSAROE43896,Residential,9264,09/03/2020
HC ONE LTD RE CEDAR COURT&&SSAROE43896,Residential,2895,09/03/2020
HC ONE LTD RE HARLEY GRANGE&&SSAROE40253,Private Contractors,13243.72,09/03/2020
HC ONE LTD RE HARLEY GRANGE&&SSAROE40253,Residential,13243.72,09/03/2020
HC ONE LTD RE HINCKLEY PARK&&SSAROE24,Residential,-3540,09/03/2020
HC ONE LTD RE HINCKLEY PARK&&SSAROE24,Residential,3540,09/03/2020
HC ONE LTD RE HINCKLEY PARK&&SSAROE24,Residential,-7080,09/03/2020
HC ONE LTD RE HINCKLEY PARK&&SSAROE24,Residential,7080,09/03/2020
HC ONE LTD RE HINCKLEY PARK&&SSAROE24,Residential,661.71,09/03/2020
HC ONE LTD RE HINCKLEY PARK&&SSAROE24,Residential,-7080,09/03/2020
HC ONE LTD RE HINCKLEY PARK&&SSAROE24,Residential,42828.86,09/03/2020
HC ONE LTD RE HINCKLEY PARK&&SSAROE24,Residential,-1510,09/03/2020
HC ONE LTD RE HINCKLEY PARK&&SSAROE24,Private Contractors,-8100.63,09/03/2020
HC ONE LTD RE HINCKLEY PARK&&SSAROE24,Residential,-8100.63,09/03/2020
HC ONE LTD RE HINCKLEY PARK&&SSAROE24,Residential,-632.15,09/03/2020
HC ONE LTD RE HINCKLEY PARK&&SSAROE24,Residential,632.14,09/03/2020
HC ONE LTD RE HINCKLEY PARK&&SSAROE24,Residential,-1326.82,09/03/2020
HC ONE LTD RE HINCKLEY PARK&&SSAROE24,Residential,-7080,09/03/2020
HC ONE LTD RE HINCKLEY PARK&&SSAROE24,Residential,-6700.71,09/03/2020
HC ONE LTD RE HINCKLEY PARK&&SSAROE24,Residential,-6560,09/03/2020
HC ONE LTD RE HINCKLEY PARK&&SSAROE24,Residential,-6560,09/03/2020
HC ONE LTD RE HINCKLEY PARK&&SSAROE24,Residential,1835.43,09/03/2020
HC ONE LTD RE HINCKLEY PARK&&SSAROE24,Residential,-1770,09/03/2020
HC ONE LTD RE HINCKLEY PARK&&SSAROE24,Private Contractors,11237.24,09/03/2020
HC ONE LTD RE HINCKLEY PARK&&SSAROE24,Residential,11237.24,09/03/2020
HC ONE LTD RE HINCKLEY PARK&&SSAROE24,Residential,9255.52,09/03/2020
HC ONE LTD RE HINCKLEY PARK&&SSAROE24,Residential,-3540,09/03/2020
HC ONE LTD RE HINCKLEY PARK&&SSAROE24,Residential,3540,09/03/2020
HC ONE LTD RE HINCKLEY PARK&&SSAROE24,Residential,-3540,09/03/2020
HC ONE LTD RE HINCKLEY PARK&&SSAROE24,Residential,3540,09/03/2020
HC ONE LTD RE HINCKLEY PARK&&SSAROE24,Private Contractors,-1633,09/03/2020
HC ONE LTD RE HINCKLEY PARK&&SSAROE24,Private Contractors,-2143.32,09/03/2020
HC ONE LTD RE HINCKLEY PARK&&SSAROE24,Residential,4796.95,09/03/2020
HC ONE LTD RE HINCKLEY PARK&&SSAROE24,Residential,-3540,09/03/2020
HC ONE LTD RE HINCKLEY PARK&&SSAROE24,Residential,3540,09/03/2020
HC ONE LTD RE MAGNA&&SSAROE68590,Private Contractors,19564.16,09/03/2020
HC ONE LTD RE MAGNA&&SSAROE68590,Residential,19564.16,09/03/2020
HC ONE LTD RE MAGNA&&SSAROE68590,Residential,5518.64,09/03/2020
HC ONE LTD RE THE WILLOWS&&SSAROE40262,Residential,-3400,09/03/2020
HC ONE LTD RE THE WILLOWS&&SSAROE40262,Residential,-3400,09/03/2020
HC ONE LTD RE THE WILLOWS&&SSAROE40262,Residential,3400,09/03/2020
HC ONE LTD RE THE WILLOWS&&SSAROE40262,Residential,579,09/03/2020
HC ONE LTD RE THE WILLOWS&&SSAROE40262,Residential,-3400,09/03/2020
HC ONE LTD RE THE WILLOWS&&SSAROE40262,Residential,12750,09/03/2020
HC ONE LTD RE THE WILLOWS&&SSAROE40262,Residential,-2462,09/03/2020
HC ONE LTD RE THE WILLOWS&&SSAROE40262,Residential,-3400,09/03/2020
HC ONE LTD RE THE WILLOWS&&SSAROE40262,Residential,-1398,09/03/2020
HC ONE LTD RE THE WILLOWS&&SSAROE40262,Residential,5211,09/03/2020
HC ONE LTD RE THE WILLOWS&&SSAROE40262,Residential,-3400,09/03/2020
HC ONE LTD RE THE WILLOWS&&SSAROE40262,Residential,-1276.88,09/03/2020
HC ONE LTD RE THE WILLOWS&&SSAROE40262,Residential,-2550,09/03/2020
HC ONE LTD RE THE WILLOWS&&SSAROE40262,Residential,-1864,09/03/2020
HC ONE LTD RE THE WILLOWS&&SSAROE40262,Residential,1530,09/03/2020
HC ONE LTD RE THE WILLOWS&&SSAROE40262,Residential,28421.76,09/03/2020
HC ONE LTD RE THE WILLOWS&&SSAROE40262,Residential,9144.32,09/03/2020
HC ONE LTD RE THE WILLOWS&&SSAROE40262,Residential,-8493.76,09/03/2020
HC ONE LTD RE THE WILLOWS&&SSAROE40262,Residential,4392.57,09/03/2020
HC ONE LTD RE THE WILLOWS&&SSAROE40262,Residential,-3400,09/03/2020
HC ONE LTD RE THE WILLOWS&&SSAROE40262,Residential,10200,09/03/2020
HC ONE LTD RE THE WILLOWS&&SSAROE40262,Residential,-3400,09/03/2020
HC ONE OVAL LTD T/A ALEXANDRA&&SSARO2030,Nursing,1694.4,09/03/2020
HC ONE OVAL LTD T/A ALEXANDRA&&SSARO2030,Private Contractors,1694.4,09/03/2020
HC ONE OVAL LTD T/AS GREY FERRER&&SSAROE61119,Private Contractors,49161.14,09/03/2020
HC ONE OVAL LTD T/AS GREY FERRER&&SSAROE61119,Residential,49161.14,09/03/2020
HC ONE RE THE ROWANS&&SSAROE53508,Residential,770,09/03/2020
HC ONE RE THE ROWANS&&SSAROE53508,Residential,-2084,09/03/2020
HC ONE RE THE ROWANS&&SSAROE53508,Residential,2316,09/03/2020
HC ONE RE THE ROWANS&&SSAROE53508,Residential,-1757.14,09/03/2020
HC ONE RE THE ROWANS&&SSAROE53508,Residential,661.71,09/03/2020
HC ONE RE THE ROWANS&&SSAROE53508,Residential,-2084,09/03/2020
HC ONE RE THE ROWANS&&SSAROE53508,Residential,2316,09/03/2020
HC ONE RE THE ROWANS&&SSAROE53508,Residential,-2263.71,09/03/2020
HC ONE RE THE ROWANS&&SSAROE53508,Residential,-2084,09/03/2020
HC ONE RE THE ROWANS&&SSAROE53508,Residential,15054,09/03/2020
HC ONE RE THE ROWANS&&SSAROE53508,Residential,-1597.53,09/03/2020
HC ONE RE THE ROWANS&&SSAROE53508,Residential,-2084,09/03/2020
HC ONE RE THE ROWANS&&SSAROE53508,Residential,-2084,09/03/2020
HC ONE RE THE ROWANS&&SSAROE53508,Residential,-2084,09/03/2020
HC ONE RE THE ROWANS&&SSAROE53508,Residential,-2084,09/03/2020
HC ONE RE THE ROWANS&&SSAROE53508,Residential,827.14,09/03/2020
HC ONE RE THE ROWANS&&SSAROE53508,Residential,-2084,09/03/2020
HC ONE RE THE ROWANS&&SSAROE53508,Residential,20804.04,09/03/2020
HC ONE RE THE ROWANS&&SSAROE53508,Residential,23360,09/03/2020
HC ONE RE THE ROWANS&&SSAROE53508,Residential,2067.86,09/03/2020
HC ONE RE THE ROWANS&&SSAROE53508,Residential,-2084,09/03/2020
HC ONE RE THE ROWANS&&SSAROE53508,Residential,-2316,09/03/2020
HC ONE RE THE ROWANS&&SSAROE53508,Residential,-2084,09/03/2020
HC ONE RE THE ROWANS&&SSAROE53508,Residential,-2138.6,09/03/2020
HC ONE RE THE ROWANS&&SSAROE53508,Residential,-2084,09/03/2020
HC ONE RE THE ROWANS&&SSAROE53508,Residential,2316,09/03/2020
HEATHCOTES CARE LTD&&SSAROE1336,Residential,45930.04,09/03/2020
HEATHCOTES CARE LTD&&SSAROE1336,Residential,38977.44,09/03/2020
HEATHCOTES CARE LTD&&SSAROE1336,Residential,9688.32,09/03/2020
HEATHCOTES M LTD&&SSARO2756,Residential,-15362.88,09/03/2020
HEATHCOTES M LTD&&SSARO2756,Residential,-15362.88,09/03/2020
HEATHCOTES M LTD&&SSARO2756,Residential,-15362.88,09/03/2020
HEATHCOTES M LTD&&SSARO2756,Residential,-8405.38,09/03/2020
HEATHCOTES M LTD&&SSARO2756,Residential,-15362.88,09/03/2020
HEATHCOTES M LTD&&SSARO2756,Residential,77771.22,09/03/2020
HEATHCOTES M LTD&&SSARO2756,Residential,-15362.88,09/03/2020
HEATHCOTES M LTD&&SSARO2756,Residential,-15362.88,09/03/2020
HEATHCOTES M LTD&&SSARO2756,Residential,-14158.22,09/03/2020
HEATHCOTES M LTD&&SSARO2756,Residential,-16810.76,09/03/2020
HEATHCOTES M LTD&&SSARO2756,Residential,15141.44,09/03/2020
HEATHCOTES M LTD&&SSARO2756,Residential,15362.88,09/03/2020
HEATHCOTES M LTD&&SSARO2756,Residential,-15362.88,09/03/2020
HEATHCOTES M LTD&&SSARO2756,Residential,92177.28,09/03/2020
HEATHCOTES M LTD&&SSARO2756,Residential,-15362.88,09/03/2020
HEATHCOTES M LTD&&SSARO2756,Residential,-1566.63,09/03/2020
HEATHCOTES M LTD&&SSARO2756,Residential,9255.61,09/03/2020
HEATHCOTES M LTD&&SSARO2756,Residential,-15362.88,09/03/2020
HEATHCOTES M LTD&&SSARO2756,Residential,35242.26,09/03/2020
HEATHCOTES M LTD&&SSARO3394,Residential,6543.8,09/03/2020
HEATHCOTES M LTD T/A HEATHCOTES DERBY&&SSARO3402,Residential,4887.32,09/03/2020
HEATHCOTES MOULTON&&SSARO3290,Residential,4241.54,09/03/2020
HEATHCOTES&&SSARO2014,Residential,39747.81,09/03/2020
REDACTED PERSONAL DATA,Grants,7475.4,27/03/2020
HEATHER PRE SCHOOL&&EYRS1117,Grants,21624.91,27/03/2020
Heathfield Academy,Payment to Ext SEN Providers,3944,05/03/2020
Heathfield Academy,Payment to Ext SEN Providers,3802,27/03/2020
Heathfield Academy,Payment to Ext SEN Providers,3802,31/03/2020
REDACTED PERSONAL DATA,Consultants & Specialists,5200,18/03/2020
REDACTED PERSONAL DATA,Grants,1476,27/03/2020
REDACTED PERSONAL DATA,Grants,-906.75,27/03/2020
REDACTED PERSONAL DATA,Grants,1476,27/03/2020
HELP AT HOME LTD&&ISHC3234,Home Care / Domiciliary,1581.61,20/03/2020
HELP AT HOME LTD&&ISHC3234,Home Care / Domiciliary,1040.62,20/03/2020
HELP AT HOME LTD&&ISHC3234,Home Care / Domiciliary,600.87,20/03/2020
HELP AT HOME LTD&&ISHC3234,Home Care / Domiciliary,918.94,20/03/2020
HELP AT HOME LTD&&ISHC3234,Home Care / Domiciliary,1067.09,20/03/2020
HELP AT HOME LTD&&ISHC3234,Home Care / Domiciliary,911.74,20/03/2020
HELP AT HOME LTD&&ISHC3234,Home Care / Domiciliary,2064.36,20/03/2020
HELP AT HOME LTD&&ISHC3234,Home Care / Domiciliary,-1067.09,20/03/2020
HELP AT HOME LTD&&ISHC3234,Home Care / Domiciliary,640.93,20/03/2020
HELP AT HOME LTD&&ISHC3234,Home Care / Domiciliary,714.83,20/03/2020
HELP AT HOME LTD&&ISHC3234,Home Care / Domiciliary,180381.7,20/03/2020
HELP AT HOME LTD&&ISHC3234,Home Care / Domiciliary,30392.89,20/03/2020
HELPING HANDS CARE HOME LTD T/A GOODWOOD ORCHARDS&&SSAROE40251,Residential,6352,09/03/2020
Helping Hands Community Trust,Grants,5000,16/03/2020
HERITAGE CARE&&SSAROE929,Nursing,9852.28,09/03/2020
HERITAGE CARE&&SSAROE929,Private Contractors,9852.28,09/03/2020
Her Majestys Courts & Tribunals Service,Personal Accounts - Other,795,12/03/2020
Her Majestys Courts & Tribunals Service,Personal Accounts - Other,580.9,12/03/2020
Her Majestys Courts & Tribunals Service,Other Expenditure,4753,10/03/2020
HERMITAGE DAY NURSERY LTD&&EYRS1535,Grants,34545.62,27/03/2020
HEROIC CARE LTD T/A JUBILEE VILLA&&SSAROE749,Residential,-6216.72,09/03/2020
HEROIC CARE LTD T/A JUBILEE VILLA&&SSAROE749,Residential,-6216.72,09/03/2020
HEROIC CARE LTD T/A JUBILEE VILLA&&SSAROE749,Residential,-6216.72,09/03/2020
HEROIC CARE LTD T/A JUBILEE VILLA&&SSAROE749,Residential,-3108.36,09/03/2020
HEROIC CARE LTD T/A JUBILEE VILLA&&SSAROE749,Residential,-6216.72,09/03/2020
HEROIC CARE LTD T/A JUBILEE VILLA&&SSAROE749,Residential,34191.96,09/03/2020
HEROIC CARE LTD T/A JUBILEE VILLA&&SSAROE749,Residential,-6216.72,09/03/2020
HEROIC CARE LTD T/A JUBILEE VILLA&&SSAROE749,Residential,-6216.72,09/03/2020
HEROIC CARE LTD T/A JUBILEE VILLA&&SSAROE749,Residential,-6216.72,09/03/2020
HEROIC CARE LTD T/A JUBILEE VILLA&&SSAROE749,Residential,-6216.72,09/03/2020
HEROIC CARE LTD T/A JUBILEE VILLA&&SSAROE749,Residential,19076.2,09/03/2020
HEROIC CARE LTD T/A JUBILEE VILLA&&SSAROE749,Residential,6216.72,09/03/2020
HEROIC CARE LTD T/A JUBILEE VILLA&&SSAROE749,Residential,-6216.72,09/03/2020
HEROIC CARE LTD T/A JUBILEE VILLA&&SSAROE749,Residential,37300.32,09/03/2020
HEROIC CARE LTD T/A JUBILEE VILLA&&SSAROE749,Residential,-6216.72,09/03/2020
HEROIC CARE LTD T/A JUBILEE VILLA&&SSAROE749,Residential,-6216.72,09/03/2020
HERONS LODGE&&SSAROE433,Residential,-3108.45,09/03/2020
HERONS LODGE&&SSAROE433,Residential,4728.12,09/03/2020
HERONS LODGE&&SSAROE433,Residential,4728.12,09/03/2020
HERONS LODGE&&SSAROE433,Residential,-5119.8,09/03/2020
Hero Project CIC,Grants,1500,20/03/2020
Hexagon Care Services Ltd,Private Contractors,15742.86,25/03/2020
Hexagon Care Services Ltd,Private Contractors,12283.57,25/03/2020
HFT (CROMWELL CRESCENT)&&SSARO3174,Residential,6453.68,09/03/2020
HF TRUST LTD&&SUPL2212,Supported Living,802.42,20/03/2020
HF TRUST LTD&&SUPL2212,Supported Living,2210.44,20/03/2020
HF TRUST - RECEIPTS T/A THE CORE&&CLCD2132,Day / CLC Services,813.4,20/03/2020
HICARE LTD&&SSAROE438,Residential,4576,09/03/2020
HICARE LTD&&SSAROE438,Residential,4320,09/03/2020
Higham On The Hill CE Primary School Academy,Payment to Ext SEN Providers,1034,31/03/2020
Higham On The Hill CE Primary School Academy,Payment to Ext SEN Providers,1034,27/03/2020
Highcliffe Primary School Academy,Payment to Ext SEN Providers,4467,31/03/2020
Highcliffe Primary School Academy,Payment to Ext SEN Providers,4467,27/03/2020
Highfields Associates Ltd,Home to Sch Trans - Buses,912,04/03/2020
Highfields Associates Ltd,S.E.N. Taxi Hire,700.8,04/03/2020
Highfields Associates Ltd,Home to Sch Trans - Buses,1663.2,04/03/2020
Highfields Associates Ltd,Home to Sch Trans - Buses,1036.8,04/03/2020
Highfields Associates Ltd,S.E.N. Taxi Hire,2289,04/03/2020
Highfields Associates Ltd,S.E.N. Taxi Hire,768,04/03/2020
Highfields Associates Ltd,S.E.N. Taxi Hire,2352,04/03/2020
Highfields Associates Ltd,Recharge of Pooled Transp Cost,1003.2,04/03/2020
Highfields Associates Ltd,Home to Sch Trans - Buses,696,27/03/2020
Highfields Associates Ltd,S.E.N. Taxi Hire,650.4,27/03/2020
Highfields Associates Ltd,Home to Sch Trans - Buses,1386,27/03/2020
Highfields Associates Ltd,Home to Sch Trans - Buses,864,27/03/2020
Highfields Associates Ltd,S.E.N. Taxi Hire,939.6,27/03/2020
Highfields Associates Ltd,S.E.N. Taxi Hire,1962,27/03/2020
Highfields Associates Ltd,Recharge of Pooled Transp Cost,912,27/03/2020
HILL TOP DAY NURSERY LTD T/A KINGFISHER DAY NURSERY&&EYRS1722,Grants,2316.3,27/03/2020
HILL TOP DAY NURSERY LTD T/A KINGFISHER DAY NURSERY&&EYRS1722,Grants,53652.23,27/03/2020
Hinckley Academy & John Cleveland Sixth Form Centre,Payment to Ext SEN Providers,9832,05/03/2020
Hinckley Academy & John Cleveland Sixth Form Centre,Payment to Ext SEN Providers,5635,27/03/2020
Hinckley Academy & John Cleveland Sixth Form Centre,Payment to Ext SEN Providers,5635,31/03/2020
Hinckley & Bosworth Borough Council,Other Local Authorities,9131.47,04/03/2020
Hinckley & Bosworth Borough Council,Personal Accounts - Other,763.29,12/03/2020
Hinckley Homeless Group Ltd.,Other Transfer Payments,974.58,23/03/2020
Hinckley Homeless Group Ltd.,Other Transfer Payments,1010.68,05/03/2020
Hinckley Homeless Group Ltd.,Grants,1500,25/03/2020
Hinckley Parks Primary School (Owls Academy Trust),Payment to Ext SEN Providers,3677,31/03/2020
Hinckley Parks Primary School (Owls Academy Trust),Payment to Ext SEN Providers,3677,27/03/2020
HIND LEYS PRE SCHOOL&&EYRS1119,Grants,1692.66,27/03/2020
HIND LEYS PRE SCHOOL&&EYRS1119,Grants,60738.81,27/03/2020
REDACTED PERSONAL DATA,Residential,4716.45,09/03/2020
REDACTED PERSONAL DATA,Grants,1033.2,27/03/2020
HOLLYBANK TRUST&&SSAROE756,Residential,4970.05,09/03/2020
HOLMSDALE MANOR NURSERY SCHOOL&&EYRS1431,Grants,737.49,27/03/2020
HOLMSDALE MANOR NURSERY SCHOOL&&EYRS1431,Grants,74272.03,27/03/2020
HOLMWOOD CARE LTD&&SSARO3282,Residential,2600,09/03/2020
HOLY CROSS NURSERY&&EYRSEXMT0109,Grants,519.87,27/03/2020
HOLY CROSS NURSERY&&EYRSEXMT0109,Grants,17967.35,27/03/2020
HOLY TRINITY PLAYGROUP&&EYRS1120,Grants,659.77,27/03/2020
HOLY TRINITY PLAYGROUP&&EYRS1120,Grants,33147.84,27/03/2020
Homefield College Ltd,Payment to Ext SEN Providers,16928,05/03/2020
Homefield College Ltd,Payment to Ext SEN Providers,1635,05/03/2020
Homefield College Ltd,Payment to Ext SEN Providers,1635,05/03/2020
Homefield College Ltd,Payment to Ext SEN Providers,1635,05/03/2020
Homefield College Ltd,Payment to Ext SEN Providers,9227,05/03/2020
Homefield College Ltd,Payment to Ext SEN Providers,9227,05/03/2020
Homefield College Ltd,Payment to Ext SEN Providers,9227,05/03/2020
Homefield College Ltd,Payment to Ext SEN Providers,9227,05/03/2020
Homefield College Ltd,Payment to Ext SEN Providers,9227,05/03/2020
Homefield College Ltd,Payment to Ext SEN Providers,9227,05/03/2020
Homefield College Ltd,Payment to Ext SEN Providers,9227,05/03/2020
Homefield College Ltd,Payment to Ext SEN Providers,9227,05/03/2020
Homefield College Ltd,Payment to Ext SEN Providers,9227,05/03/2020
Homefield College Ltd,Payment to Ext SEN Providers,9227,06/03/2020
Homefield College Ltd,Payment to Ext SEN Providers,9227,05/03/2020
Homefield College Ltd,Payment to Ext SEN Providers,9227,05/03/2020
Homefield College Ltd,Payment to Ext SEN Providers,15715,05/03/2020
Homefield College Ltd,Payment to Ext SEN Providers,9227,05/03/2020
Homefield College Ltd,Payment to Ext SEN Providers,26368,05/03/2020
Homefield College Ltd,Payment to Ext SEN Providers,9227,05/03/2020
Homefield College Ltd,Payment to Ext SEN Providers,9227,05/03/2020
Homefield College Ltd,Payment to Ext SEN Providers,11494,05/03/2020
Homefield College Ltd,Payment to Ext SEN Providers,9227,05/03/2020
HOMEFIELD COLLEGE LTD&&SSAROE40389,Residential,-2660.52,09/03/2020
HOMEFIELD COLLEGE LTD&&SSAROE40389,Residential,2908,09/03/2020
HOMEFIELD COLLEGE LTD&&SSAROE40389,Residential,-2660.52,09/03/2020
HOMEFIELD COLLEGE LTD&&SSAROE40389,Residential,2908,09/03/2020
HOMEFIELD COLLEGE LTD&&SSAROE40389,Residential,-1425.28,09/03/2020
HOMEFIELD COLLEGE LTD&&SSAROE40389,Residential,-2660.52,09/03/2020
HOMEFIELD COLLEGE LTD&&SSAROE40389,Residential,-2660.52,09/03/2020
HOMEFIELD COLLEGE LTD&&SSAROE40389,Residential,-2660.52,09/03/2020
HOMEFIELD COLLEGE LTD&&SSAROE40389,Residential,-2660.52,09/03/2020
HOMEFIELD COLLEGE LTD&&SSAROE40389,Residential,-2660.52,09/03/2020
HOMEFIELD COLLEGE LTD&&SSAROE40389,Residential,-2660.52,09/03/2020
HOMEFIELD COLLEGE LTD&&SSAROE40389,Residential,2908,09/03/2020
HOMEFIELD COLLEGE LTD&&SSAROE40389,Residential,2908,09/03/2020
HOMEFIELD COLLEGE LTD&&SSAROE40389,Residential,-2660.52,09/03/2020
HOMEFIELD COLLEGE LTD&&SSAROE40389,Residential,15994,09/03/2020
HOMEFIELD COLLEGE LTD&&SSAROE40389,Residential,2908,09/03/2020
HOMEFIELD COLLEGE LTD&&SSAROE40389,Residential,-2660.52,09/03/2020
HOMEFIELD COLLEGE LTD&&SSAROE40389,Residential,2908,09/03/2020
HOMEFIELD COLLEGE LTD&&SSAROE40389,Residential,-2660.52,09/03/2020
HOMEFIELD COLLEGE LTD&&SSAROE40389,Residential,2908,09/03/2020
HOMEFIELD COLLEGE LTD&&SSAROE40389,Residential,-3721.8,09/03/2020
HOMEFIELD COLLEGE LTD&&SSAROE40389,Residential,3721.8,09/03/2020
HOMEFIELD COLLEGE LTD&&SSAROE40389,Residential,-3721.8,09/03/2020
HOMEFIELD COLLEGE LTD&&SSAROE40389,Residential,3721.8,09/03/2020
HOMEFIELD COLLEGE LTD&&SSAROE40389,Residential,-3721.8,09/03/2020
HOMEFIELD COLLEGE LTD&&SSAROE40389,Residential,-1860.9,09/03/2020
HOMEFIELD COLLEGE LTD&&SSAROE40389,Residential,-3721.8,09/03/2020
HOMEFIELD COLLEGE LTD&&SSAROE40389,Residential,-3721.8,09/03/2020
HOMEFIELD COLLEGE LTD&&SSAROE40389,Residential,-3721.8,09/03/2020
HOMEFIELD COLLEGE LTD&&SSAROE40389,Residential,-3721.8,09/03/2020
HOMEFIELD COLLEGE LTD&&SSAROE40389,Residential,-3721.8,09/03/2020
HOMEFIELD COLLEGE LTD&&SSAROE40389,Residential,3721.8,09/03/2020
HOMEFIELD COLLEGE LTD&&SSAROE40389,Residential,3721.8,09/03/2020
HOMEFIELD COLLEGE LTD&&SSAROE40389,Residential,-3721.8,09/03/2020
HOMEFIELD COLLEGE LTD&&SSAROE40389,Residential,20469.9,09/03/2020
HOMEFIELD COLLEGE LTD&&SSAROE40389,Residential,3721.8,09/03/2020
HOMEFIELD COLLEGE LTD&&SSAROE40389,Residential,-3721.8,09/03/2020
HOMEFIELD COLLEGE LTD&&SSAROE40389,Residential,3721.8,09/03/2020
HOMEFIELD COLLEGE LTD&&SSAROE40389,Residential,-3721.8,09/03/2020
HOMEFIELD COLLEGE LTD&&SSAROE40389,Residential,3721.8,09/03/2020
HOMEFIELD&&SSARO3168,Nursing,4612.75,09/03/2020
HOMEFIELD&&SSARO3168,Private Contractors,4612.75,09/03/2020
HOME FROM HOME RESIDENTIAL CARE LTD&&SSAROE421,Residential,909.86,09/03/2020
HOME FROM HOME RESIDENTIAL CARE LTD&&SSAROE421,Residential,4632,09/03/2020
HOME FROM HOME RESIDENTIAL CARE LTD&&SSAROE421,Residential,1571.57,09/03/2020
Home Start Horizons,Grants,5000,20/03/2020
Home Start South Leicestershire,Grants,5000,20/03/2020
HOMESTEAD ROAD PLAYGROUP&&EYRS1433,Grants,10856.7,27/03/2020
HONEY BEES PAVILION&&EYRSEY340714,Grants,1023.66,27/03/2020
HONEY BEES PAVILION&&EYRSEY340714,Grants,739.5,27/03/2020
HONEY BEES PAVILION&&EYRSEY340714,Grants,-2156.04,27/03/2020
HONEY BEES PAVILION&&EYRSEY340714,Grants,20581.8,27/03/2020
Honeydew Healthcare Ltd,Private Contractors,6760.26,26/03/2020
Honeydew Healthcare Ltd,Private Contractors,5142.42,26/03/2020
HOPE COMMUNITY CHURCH & FAMILY CENTRE&&EYRS1624,Grants,32184.45,27/03/2020
HOPSCOTCH PRE SCHOOL&&EYRS1528,Grants,15633.6,27/03/2020
HOPSCOTCH SOLUTIONS LTD&&SSARO2119,Residential,17726.04,09/03/2020
Horizon Care & Education Group Ltd,Payment to Ext SEN Providers,-12350,05/03/2020
Horizon Care & Education Group Ltd,Payment to Ext SEN Providers,12350,19/03/2020
Horizon Care & Education Group Ltd,Payment to Ext SEN Providers,6695,05/03/2020
Horizon Care & Education Group Ltd,Payment to Ext SEN Providers,-6180,05/03/2020
Horizon Care & Education Group Ltd,Private Contractors,1860,30/03/2020
Horizon Care & Education Group Ltd,Private Contractors,3154.25,05/03/2020
Horizon Care & Education Group Ltd,Private Contractors,2378.58,06/03/2020
Horizon Care & Education Group Ltd,Private Contractors,555,06/03/2020
Horizon Care & Education Group Ltd,Private Contractors,1328.66,05/03/2020
Horizon Care & Education Group Ltd,Private Contractors,9910.75,06/03/2020
Horizon Care & Education Group Ltd,Payment to Ext SEN Providers,3900,05/03/2020
Horizon Care & Education Group Ltd,Private Contractors,11600,05/03/2020
Horizon Care & Education Group Ltd,Private Contractors,11600,05/03/2020
Horizon Care & Education Group Ltd,Private Contractors,13750.06,24/03/2020
Horizon Care & Education Group Ltd,Private Contractors,13750.06,24/03/2020
Horizon Care & Education Group Ltd,Private Contractors,13750.06,24/03/2020
Horizon Care & Education Group Ltd,Private Contractors,11600,05/03/2020
Horizon Care & Education Group Ltd,Private Contractors,11600,05/03/2020
Horizon Care & Education Group Ltd,Private Contractors,10534.2,24/03/2020
Horizon Care & Education Group Ltd,Private Contractors,15274.59,24/03/2020
Horizon Care & Education Group Ltd,Private Contractors,11600,05/03/2020
Horizon Care & Education Group Ltd,Private Contractors,13750.06,24/03/2020
Horizon Care & Education Group Ltd,Private Contractors,11600,06/03/2020
Horizon Care & Education Group Ltd,Private Contractors,11600,06/03/2020
